Transaction Date,Local Authority Department,Beneficiary,Purpose of Expenditure,Amount (excluding VAT),Non Recoverable VAT,Merchant Category
 04-11-2022,Adults,Prepaid Financial Services 266 Corporate,Books Publications And Resources,500.00,0.00,COMMERCIAL SUPPLIER 
 15-11-2022,Adults,Home Support Services (Havering & Essex) Ltd,Home Care - Private Contractors Payment,501.84,0.00,COMMERCIAL SUPPLIER 
 22-11-2022,Adults,Homestead Care Service,Home Care - Private Contractors Payment,504.79,0.00,COMMERCIAL SUPPLIER 
 22-11-2022,Adults,Homestead Care Service,Home Care - Private Contractors Payment,505.78,0.00,COMMERCIAL SUPPLIER 
 22-11-2022,Adults,Prior Care Ltd_a,Home Care - Private Contractors Payment,505.78,0.00,COMMERCIAL SUPPLIER 
 22-11-2022,Adults,Prior Care Ltd_a,Home Care - Private Contractors Payment,507.09,0.00,COMMERCIAL SUPPLIER 
 11-11-2022,Adults,Morepower Ltd t/a Aqs Homecare,Home Care - Private Contractors Payment,509.06,0.00,COMMERCIAL SUPPLIER 
 30-11-2022,Adults,Matrix SCM Ltd,Agency Staff,509.72,0.00,COMMERCIAL SUPPLIER 
 06-11-2022,Adults,Homestead Care Service,Home Care - Private Contractors Payment,511.68,0.00,COMMERCIAL SUPPLIER 
 06-11-2022,Adults,Homestead Care Service,Home Care - Private Contractors Payment,511.68,0.00,COMMERCIAL SUPPLIER 
 07-11-2022,Adults,KJD Care Limited,Home Care - Private Contractors Payment,511.68,0.00,INDIVIDUALS 
 08-11-2022,Adults,KJD Care Limited,Home Care - Private Contractors Payment,511.68,0.00,INDIVIDUALS 
 08-11-2022,Adults,KJD Care Limited,Home Care - Private Contractors Payment,511.68,0.00,INDIVIDUALS 
 15-11-2022,Adults,Home Sweet Home Care Ltd,Home Care - Private Contractors Payment,511.68,0.00,COMMERCIAL SUPPLIER 
 15-11-2022,Adults,Home Support Services (Havering & Essex) Ltd,Home Care - Private Contractors Payment,511.68,0.00,COMMERCIAL SUPPLIER 
 07-11-2022,Adults,Mind in Tower Hamlets And Newham,Private Contractors Payment - Other,512.00,0.00,COMMERCIAL SUPPLIER 
 16-11-2022,Adults,Lodge Group Care UK Ltd,Home Care - Private Contractors Payment,512.01,0.00,COMMERCIAL SUPPLIER 
 08-11-2022,Adults,Tapestry_a.,Daycare - Private Contractors Payment,513.00,0.00,COMMERCIAL SUPPLIER 
 08-11-2022,Adults,Tapestry_a.,Daycare - Private Contractors Payment,513.00,0.00,COMMERCIAL SUPPLIER 
 18-11-2022,Adults,Lukka Care Homes Ltd - Ravenscourt,Nursing Homes - Private Contractors Payment,513.63,0.00,COMMERCIAL SUPPLIER 
 18-11-2022,Adults,Topaz Care and Support Co Ltd,Supported Other Accommodation - Private Contractors Payment,514.08,0.00,COMMERCIAL SUPPLIER 
 18-11-2022,Adults,Lukka Care Homes Ltd - Ravenscourt,Nursing Homes - Private Contractors Payment,514.29,0.00,COMMERCIAL SUPPLIER 
 02-11-2022,Adults,Matrix SCM Ltd,Agency Staff,515.40,0.00,COMMERCIAL SUPPLIER 
 23-11-2022,Adults,Matrix SCM Ltd,Agency Staff,515.40,0.00,COMMERCIAL SUPPLIER 
 30-11-2022,Adults,Matrix SCM Ltd,Agency Staff,515.40,0.00,COMMERCIAL SUPPLIER 
 18-11-2022,Adults,Highfield Care Homes Ltd t/a Romford Grange Care Home,Residential Care Income,515.66,0.00,COMMERCIAL SUPPLIER 
 09-11-2022,Adults,Prestige Care & Support Ltd,Home Care - Private Contractors Payment,515.94,0.00,COMMERCIAL SUPPLIER 
 15-11-2022,Adults,Home Sweet Home Care Ltd,Home Care - Private Contractors Payment,517.58,0.00,COMMERCIAL SUPPLIER 
 07-11-2022,Adults,The Camden Society,Daycare - Private Contractors Payment,520.00,0.00,NON COMMERCIAL SUPPLIER 
 02-11-2022,Adults,Matrix SCM Ltd,Agency Staff,520.66,0.00,COMMERCIAL SUPPLIER 
 09-11-2022,Adults,Matrix SCM Ltd,Agency Staff,520.66,0.00,COMMERCIAL SUPPLIER 
 16-11-2022,Adults,Matrix SCM Ltd,Agency Staff,520.66,0.00,COMMERCIAL SUPPLIER 
 23-11-2022,Adults,Matrix SCM Ltd,Agency Staff,520.66,0.00,COMMERCIAL SUPPLIER 
 30-11-2022,Adults,Matrix SCM Ltd,Agency Staff,520.66,0.00,COMMERCIAL SUPPLIER 
 29-11-2022,Adults,Havering Care Homes Ltd t/a Abbscross Nursing Home,Nursing Care Income,521.44,0.00,COMMERCIAL SUPPLIER 
 06-11-2022,Adults,Homestead Care Service,Home Care - Private Contractors Payment,521.52,0.00,COMMERCIAL SUPPLIER 
 15-11-2022,Adults,Home Sweet Home Care Ltd,Home Care - Private Contractors Payment,521.52,0.00,COMMERCIAL SUPPLIER 
 15-11-2022,Adults,Home Sweet Home Care Ltd,Home Care - Private Contractors Payment,521.52,0.00,COMMERCIAL SUPPLIER 
 09-11-2022,Adults,Prestige Care & Support Ltd,Home Care - Private Contractors Payment,521.85,0.00,COMMERCIAL SUPPLIER 
 11-11-2022,Adults,Morepower Ltd t/a Aqs Homecare,Home Care - Private Contractors Payment,521.85,0.00,COMMERCIAL SUPPLIER 
 07-11-2022,Adults,Mind in Tower Hamlets And Newham,Private Contractors Payment - Other,522.67,0.00,COMMERCIAL SUPPLIER 
 09-11-2022,Adults,Prestige Care & Support Ltd,Home Care - Private Contractors Payment,522.83,0.00,COMMERCIAL SUPPLIER 
 09-11-2022,Adults,Prestige Care & Support Ltd,Home Care - Private Contractors Payment,523.16,0.00,COMMERCIAL SUPPLIER 
 09-11-2022,Adults,Matrix SCM Ltd,Agency Staff,523.99,0.00,COMMERCIAL SUPPLIER 
 16-11-2022,Adults,Matrix SCM Ltd,Agency Staff,523.99,0.00,COMMERCIAL SUPPLIER 
 15-11-2022,Adults,Cera Care Operations Ltd,Home Care - Private Contractors Payment,525.46,0.00,COMMERCIAL SUPPLIER 
 15-11-2022,Adults,Home Sweet Home Care Ltd,Home Care - Private Contractors Payment,525.46,0.00,COMMERCIAL SUPPLIER 
 16-11-2022,Adults,Lodge Group Care UK Ltd,Home Care - Private Contractors Payment,525.78,0.00,COMMERCIAL SUPPLIER 
 22-11-2022,Adults,Prior Care Ltd_a,Home Care - Private Contractors Payment,527.75,0.00,COMMERCIAL SUPPLIER 
 07-11-2022,Adults,Mind in Tower Hamlets And Newham,Private Contractors Payment - Other,528.00,0.00,COMMERCIAL SUPPLIER 
 18-11-2022,Adults,Lodge Lane Care Home Limited,Residential Care Income,530.64,0.00,COMMERCIAL SUPPLIER 
 15-11-2022,Adults,Home Sweet Home Care Ltd,Home Care - Private Contractors Payment,530.70,0.00,COMMERCIAL SUPPLIER 
 30-11-2022,Adults,Matrix SCM Ltd,Agency Staff,530.93,0.00,COMMERCIAL SUPPLIER 
 08-11-2022,Adults,KJD Care Limited,Home Care - Private Contractors Payment,531.36,0.00,INDIVIDUALS 
 11-11-2022,Adults,Morepower Ltd t/a Aqs Homecare,Home Care - Private Contractors Payment,531.36,0.00,COMMERCIAL SUPPLIER 
 11-11-2022,Adults,Morepower Ltd t/a Aqs Homecare,Home Care - Private Contractors Payment,531.36,0.00,COMMERCIAL SUPPLIER 
 15-11-2022,Adults,Cera Care Operations Ltd,Home Care - Private Contractors Payment,531.36,0.00,COMMERCIAL SUPPLIER 
 15-11-2022,Adults,Home Support Services (Havering & Essex) Ltd,Home Care - Private Contractors Payment,531.36,0.00,COMMERCIAL SUPPLIER 
 01-11-2022,Adults,John Stanleys Care Agency Ltd,Home Care - Private Contractors Payment,531.46,0.00,COMMERCIAL SUPPLIER 
 06-11-2022,Adults,Homestead Care Service,Home Care - Private Contractors Payment,532.02,0.00,COMMERCIAL SUPPLIER 
 06-11-2022,Adults,Homestead Care Service,Home Care - Private Contractors Payment,533.00,0.00,COMMERCIAL SUPPLIER 
 02-11-2022,Adults,Matrix SCM Ltd,Agency Staff,534.30,0.00,COMMERCIAL SUPPLIER 
 15-11-2022,Adults,Home Sweet Home Care Ltd,Home Care - Private Contractors Payment,534.31,0.00,COMMERCIAL SUPPLIER 
 02-11-2022,Adults,Matrix SCM Ltd,Agency Staff,534.45,0.00,COMMERCIAL SUPPLIER 
 09-11-2022,Adults,Matrix SCM Ltd,Agency Staff,534.45,0.00,COMMERCIAL SUPPLIER 
 16-11-2022,Adults,Matrix SCM Ltd,Agency Staff,534.45,0.00,COMMERCIAL SUPPLIER 
 23-11-2022,Adults,Matrix SCM Ltd,Agency Staff,534.45,0.00,COMMERCIAL SUPPLIER 
 17-11-2022,Adults,Hospiva Care & Associates Agency Ltd_a,Home Care - Private Contractors Payment,535.95,0.00,COMMERCIAL SUPPLIER 
 15-11-2022,Adults,Home Support Services (Havering & Essex) Ltd,Home Care - Private Contractors Payment,538.58,0.00,COMMERCIAL SUPPLIER 
 15-11-2022,Adults,Home Support Services (Havering & Essex) Ltd,Home Care - Private Contractors Payment,538.58,0.00,COMMERCIAL SUPPLIER 
 18-11-2022,Adults,Bloomscare Ltd,Supported Other Accommodation - Private Contractors Payment,540.00,0.00,COMMERCIAL SUPPLIER 
 09-11-2022,Adults,Prestige Care & Support Ltd,Home Care - Private Contractors Payment,541.20,0.00,COMMERCIAL SUPPLIER 
 15-11-2022,Adults,Home Sweet Home Care Ltd,Home Care - Private Contractors Payment,541.20,0.00,COMMERCIAL SUPPLIER 
 15-11-2022,Adults,Home Support Services (Havering & Essex) Ltd,Home Care - Private Contractors Payment,541.20,0.00,COMMERCIAL SUPPLIER 
 16-11-2022,Adults,Lodge Group Care UK Ltd,Home Care - Private Contractors Payment,541.20,0.00,COMMERCIAL SUPPLIER 
 23-11-2022,Adults,Rosemont Care Limited,Home Care - Private Contractors Payment,541.20,0.00,COMMERCIAL SUPPLIER 
 23-11-2022,Adults,Rosemont Care Limited,Home Care - Private Contractors Payment,541.20,0.00,COMMERCIAL SUPPLIER 
 15-11-2022,Adults,Home Support Services (Havering & Essex) Ltd,Home Care - Private Contractors Payment,541.53,0.00,COMMERCIAL SUPPLIER 
 15-11-2022,Adults,Home Support Services (Havering & Essex) Ltd,Home Care - Private Contractors Payment,541.53,0.00,COMMERCIAL SUPPLIER 
 15-11-2022,Adults,Home Support Services (Havering & Essex) Ltd,Home Care - Private Contractors Payment,541.53,0.00,COMMERCIAL SUPPLIER 
 18-11-2022,Adults,Affinia Healthcare Ltd_a,Supported Other Accommodation - Private Contractors Payment,543.20,0.00,COMMERCIAL SUPPLIER 
 18-11-2022,Adults,Outlook Care - 76 Neave Crescent,Supported Other Accommodation - Private Contractors Payment,543.32,0.00,COMMERCIAL SUPPLIER 
 18-11-2022,Adults,Paradise Independent Living,Supported Other Accommodation - Private Contractors Payment,546.24,0.00,NON COMMERCIAL SUPPLIER 
 15-11-2022,Adults,Home Sweet Home Care Ltd,Home Care - Private Contractors Payment,546.78,0.00,COMMERCIAL SUPPLIER 
 09-11-2022,Adults,Anytime Care 2020_a,Home Care - Private Contractors Payment,547.10,0.00,COMMERCIAL SUPPLIER 
 15-11-2022,Adults,Home Sweet Home Care Ltd,Home Care - Private Contractors Payment,547.10,0.00,COMMERCIAL SUPPLIER 
 06-11-2022,Adults,Homestead Care Service,Home Care - Private Contractors Payment,549.73,0.00,COMMERCIAL SUPPLIER 
 06-11-2022,Adults,Homestead Care Service,Home Care - Private Contractors Payment,549.73,0.00,COMMERCIAL SUPPLIER 
 06-11-2022,Adults,Homestead Care Service,Home Care - Private Contractors Payment,550.38,0.00,COMMERCIAL SUPPLIER 
 07-11-2022,Adults,KJD Care Limited,Home Care - Private Contractors Payment,551.04,0.00,INDIVIDUALS 
 08-11-2022,Adults,Inna Care Ltd,Home Care - Private Contractors Payment,551.04,0.00,COMMERCIAL SUPPLIER 
 08-11-2022,Adults,Inna Care Ltd,Home Care - Private Contractors Payment,551.04,0.00,COMMERCIAL SUPPLIER 
 08-11-2022,Adults,Inna Care Ltd,Home Care - Private Contractors Payment,551.04,0.00,COMMERCIAL SUPPLIER 
 08-11-2022,Adults,Inna Care Ltd,Home Care - Private Contractors Payment,551.04,0.00,COMMERCIAL SUPPLIER 
 08-11-2022,Adults,Inna Care Ltd,Home Care - Private Contractors Payment,551.04,0.00,COMMERCIAL SUPPLIER 
 08-11-2022,Adults,Inna Care Ltd,Home Care - Private Contractors Payment,551.04,0.00,COMMERCIAL SUPPLIER 
 08-11-2022,Adults,KJD Care Limited,Home Care - Private Contractors Payment,551.04,0.00,INDIVIDUALS 
 08-11-2022,Adults,KJD Care Limited,Home Care - Private Contractors Payment,551.04,0.00,INDIVIDUALS 
 09-11-2022,Adults,Anytime Care 2020_a,Home Care - Private Contractors Payment,551.04,0.00,COMMERCIAL SUPPLIER 
 09-11-2022,Adults,Prestige Care & Support Ltd,Home Care - Private Contractors Payment,551.04,0.00,COMMERCIAL SUPPLIER 
 09-11-2022,Adults,Prestige Care & Support Ltd,Home Care - Private Contractors Payment,551.04,0.00,COMMERCIAL SUPPLIER 
 09-11-2022,Adults,Outreach Support Services Ltd,Home Care - Private Contractors Payment,551.04,0.00,COMMERCIAL SUPPLIER 
 09-11-2022,Adults,Outreach Support Services Ltd,Home Care - Private Contractors Payment,551.04,0.00,COMMERCIAL SUPPLIER 
 09-11-2022,Adults,Outreach Support Services Ltd,Home Care - Private Contractors Payment,551.04,0.00,COMMERCIAL SUPPLIER 
 09-11-2022,Adults,Outreach Support Services Ltd,Home Care - Private Contractors Payment,551.04,0.00,COMMERCIAL SUPPLIER 
 09-11-2022,Adults,Outreach Support Services Ltd,Home Care - Private Contractors Payment,551.04,0.00,COMMERCIAL SUPPLIER 
 11-11-2022,Adults,Morepower Ltd t/a Aqs Homecare,Home Care - Private Contractors Payment,551.04,0.00,COMMERCIAL SUPPLIER 
 15-11-2022,Adults,Cera Care Operations Ltd,Home Care - Private Contractors Payment,551.04,0.00,COMMERCIAL SUPPLIER 
 15-11-2022,Adults,Cera Care Operations Ltd,Home Care - Private Contractors Payment,551.04,0.00,COMMERCIAL SUPPLIER 
 15-11-2022,Adults,Cera Care Operations Ltd,Home Care - Private Contractors Payment,551.04,0.00,COMMERCIAL SUPPLIER 
 15-11-2022,Adults,Cera Care Operations Ltd,Home Care - Private Contractors Payment,551.04,0.00,COMMERCIAL SUPPLIER 
 15-11-2022,Adults,Cera Care Operations Ltd,Home Care - Private Contractors Payment,551.04,0.00,COMMERCIAL SUPPLIER 
 15-11-2022,Adults,Home Sweet Home Care Ltd,Home Care - Private Contractors Payment,551.04,0.00,COMMERCIAL SUPPLIER 
 15-11-2022,Adults,Home Sweet Home Care Ltd,Home Care - Private Contractors Payment,551.04,0.00,COMMERCIAL SUPPLIER 
 15-11-2022,Adults,Home Sweet Home Care Ltd,Home Care - Private Contractors Payment,551.04,0.00,COMMERCIAL SUPPLIER 
 15-11-2022,Adults,Home Sweet Home Care Ltd,Home Care - Private Contractors Payment,551.04,0.00,COMMERCIAL SUPPLIER 
 15-11-2022,Adults,Home Sweet Home Care Ltd,Home Care - Private Contractors Payment,551.04,0.00,COMMERCIAL SUPPLIER 
 15-11-2022,Adults,Home Sweet Home Care Ltd,Home Care - Private Contractors Payment,551.04,0.00,COMMERCIAL SUPPLIER 
 15-11-2022,Adults,Home Sweet Home Care Ltd,Home Care - Private Contractors Payment,551.04,0.00,COMMERCIAL SUPPLIER 
 15-11-2022,Adults,Home Support Services (Havering & Essex) Ltd,Home Care - Private Contractors Payment,551.04,0.00,COMMERCIAL SUPPLIER 
 15-11-2022,Adults,Home Support Services (Havering & Essex) Ltd,Home Care - Private Contractors Payment,551.04,0.00,COMMERCIAL SUPPLIER 
 15-11-2022,Adults,Home Support Services (Havering & Essex) Ltd,Home Care - Private Contractors Payment,551.04,0.00,COMMERCIAL SUPPLIER 
 15-11-2022,Adults,Home Support Services (Havering & Essex) Ltd,Home Care - Private Contractors Payment,551.04,0.00,COMMERCIAL SUPPLIER 
 15-11-2022,Adults,Passion Tree Care Services Ltd,Home Care - Private Contractors Payment,551.04,0.00,COMMERCIAL SUPPLIER 
 15-11-2022,Adults,Passion Tree Care Services Ltd,Home Care - Private Contractors Payment,551.04,0.00,COMMERCIAL SUPPLIER 
 15-11-2022,Adults,Passion Tree Care Services Ltd,Home Care - Private Contractors Payment,551.04,0.00,COMMERCIAL SUPPLIER 
 15-11-2022,Adults,Passion Tree Care Services Ltd,Home Care - Private Contractors Payment,551.04,0.00,COMMERCIAL SUPPLIER 
 15-11-2022,Adults,Passion Tree Care Services Ltd,Home Care - Private Contractors Payment,551.04,0.00,COMMERCIAL SUPPLIER 
 15-11-2022,Adults,Passion Tree Care Services Ltd,Home Care - Private Contractors Payment,551.04,0.00,COMMERCIAL SUPPLIER 
 16-11-2022,Adults,Lodge Group Care UK Ltd,Home Care - Private Contractors Payment,551.04,0.00,COMMERCIAL SUPPLIER 
 16-11-2022,Adults,Lodge Group Care UK Ltd,Home Care - Private Contractors Payment,551.04,0.00,COMMERCIAL SUPPLIER 
 16-11-2022,Adults,Lodge Group Care UK Ltd,Home Care - Private Contractors Payment,551.04,0.00,COMMERCIAL SUPPLIER 
 16-11-2022,Adults,Lodge Group Care UK Ltd,Home Care - Private Contractors Payment,551.04,0.00,COMMERCIAL SUPPLIER 
 16-11-2022,Adults,Lodge Group Care UK Ltd,Home Care - Private Contractors Payment,551.04,0.00,COMMERCIAL SUPPLIER 
 16-11-2022,Adults,Lodge Group Care UK Ltd,Home Care - Private Contractors Payment,551.04,0.00,COMMERCIAL SUPPLIER 
 16-11-2022,Adults,Lodge Group Care UK Ltd,Home Care - Private Contractors Payment,551.04,0.00,COMMERCIAL SUPPLIER 
 16-11-2022,Adults,Lodge Group Care UK Ltd,Home Care - Private Contractors Payment,551.04,0.00,COMMERCIAL SUPPLIER 
 16-11-2022,Adults,Lodge Group Care UK Ltd,Home Care - Private Contractors Payment,551.04,0.00,COMMERCIAL SUPPLIER 
 16-11-2022,Adults,Lodge Group Care UK Ltd,Home Care - Private Contractors Payment,551.04,0.00,COMMERCIAL SUPPLIER 
 17-11-2022,Adults,Hospiva Care & Associates Agency Ltd_a,Home Care - Private Contractors Payment,551.04,0.00,COMMERCIAL SUPPLIER 
 17-11-2022,Adults,Hospiva Care & Associates Agency Ltd_a,Home Care - Private Contractors Payment,551.04,0.00,COMMERCIAL SUPPLIER 
 22-11-2022,Adults,Prior Care Ltd_a,Home Care - Private Contractors Payment,551.04,0.00,COMMERCIAL SUPPLIER 
 22-11-2022,Adults,Prior Care Ltd_a,Home Care - Private Contractors Payment,551.04,0.00,COMMERCIAL SUPPLIER 
 25-11-2022,Adults,Connevans Ltd,Purchase - Equipment Furniture And Materials,551.05,0.00,COMMERCIAL SUPPLIER 
 15-11-2022,Adults,Home Sweet Home Care Ltd,Home Care - Private Contractors Payment,551.37,0.00,COMMERCIAL SUPPLIER 
 15-11-2022,Adults,Home Sweet Home Care Ltd,Home Care - Private Contractors Payment,551.37,0.00,COMMERCIAL SUPPLIER 
 15-11-2022,Adults,Home Support Services (Havering & Essex) Ltd,Home Care - Private Contractors Payment,551.37,0.00,COMMERCIAL SUPPLIER 
 15-11-2022,Adults,Cera Care Operations Ltd,Home Care - Private Contractors Payment,551.70,0.00,COMMERCIAL SUPPLIER 
 09-11-2022,Adults,Prestige Care & Support Ltd,Home Care - Private Contractors Payment,552.02,0.00,COMMERCIAL SUPPLIER 
 15-11-2022,Adults,Home Support Services (Havering & Essex) Ltd,Home Care - Private Contractors Payment,552.02,0.00,COMMERCIAL SUPPLIER 
 09-11-2022,Adults,Prestige Care & Support Ltd,Home Care - Private Contractors Payment,552.35,0.00,COMMERCIAL SUPPLIER 
 11-11-2022,Adults,Morepower Ltd t/a Aqs Homecare,Home Care - Private Contractors Payment,552.35,0.00,COMMERCIAL SUPPLIER 
 15-11-2022,Adults,Home Sweet Home Care Ltd,Home Care - Private Contractors Payment,553.01,0.00,COMMERCIAL SUPPLIER 
 09-11-2022,Adults,Prestige Care & Support Ltd,Home Care - Private Contractors Payment,553.34,0.00,COMMERCIAL SUPPLIER 
 15-11-2022,Adults,Home Support Services (Havering & Essex) Ltd,Home Care - Private Contractors Payment,553.34,0.00,COMMERCIAL SUPPLIER 
 16-11-2022,Adults,London Care Plc_a,Home Care - Private Contractors Payment,553.34,0.00,COMMERCIAL SUPPLIER 
 11-11-2022,Adults,Morepower Ltd t/a Aqs Homecare,Home Care - Private Contractors Payment,553.66,0.00,COMMERCIAL SUPPLIER 
 06-11-2022,Adults,Homestead Care Service,Home Care - Private Contractors Payment,554.32,0.00,COMMERCIAL SUPPLIER 
 06-11-2022,Adults,Homestead Care Service,Home Care - Private Contractors Payment,554.32,0.00,COMMERCIAL SUPPLIER 
 15-11-2022,Adults,Home Sweet Home Care Ltd,Home Care - Private Contractors Payment,554.32,0.00,COMMERCIAL SUPPLIER 
 15-11-2022,Adults,Home Support Services (Havering & Essex) Ltd,Home Care - Private Contractors Payment,554.32,0.00,COMMERCIAL SUPPLIER 
 21-11-2022,Adults,John Stanleys Care Agency Ltd,Home Care - Private Contractors Payment,554.65,0.00,COMMERCIAL SUPPLIER 
 22-11-2022,Adults,Prior Care Ltd_a,Home Care - Private Contractors Payment,554.65,0.00,COMMERCIAL SUPPLIER 
 21-11-2022,Adults,John Stanleys Care Agency Ltd,Home Care - Private Contractors Payment,554.98,0.00,COMMERCIAL SUPPLIER 
 06-11-2022,Adults,Homestead Care Service,Home Care - Private Contractors Payment,555.63,0.00,COMMERCIAL SUPPLIER 
 09-11-2022,Adults,Anytime Care 2020_a,Home Care - Private Contractors Payment,555.63,0.00,COMMERCIAL SUPPLIER 
 02-11-2022,Adults,Matrix SCM Ltd,Agency Staff,556.44,0.00,COMMERCIAL SUPPLIER 
 09-11-2022,Adults,Anytime Care 2020_a,Home Care - Private Contractors Payment,556.62,0.00,COMMERCIAL SUPPLIER 
 15-11-2022,Adults,Home Sweet Home Care Ltd,Home Care - Private Contractors Payment,556.62,0.00,COMMERCIAL SUPPLIER 
 15-11-2022,Adults,Home Support Services (Havering & Essex) Ltd,Home Care - Private Contractors Payment,556.94,0.00,COMMERCIAL SUPPLIER 
 09-11-2022,Adults,Prestige Care & Support Ltd,Home Care - Private Contractors Payment,557.27,0.00,COMMERCIAL SUPPLIER 
 09-11-2022,Adults,Prestige Care & Support Ltd,Home Care - Private Contractors Payment,557.60,0.00,COMMERCIAL SUPPLIER 
 15-11-2022,Adults,Home Support Services (Havering & Essex) Ltd,Home Care - Private Contractors Payment,557.60,0.00,COMMERCIAL SUPPLIER 
 17-11-2022,Adults,Hospiva Care & Associates Agency Ltd_a,Home Care - Private Contractors Payment,558.26,0.00,COMMERCIAL SUPPLIER 
 15-11-2022,Adults,Cera Care Operations Ltd,Home Care - Private Contractors Payment,558.91,0.00,COMMERCIAL SUPPLIER 
 21-11-2022,Adults,John Stanleys Care Agency Ltd,Home Care - Private Contractors Payment,558.91,0.00,COMMERCIAL SUPPLIER 
 15-11-2022,Adults,Home Support Services (Havering & Essex) Ltd,Home Care - Private Contractors Payment,559.24,0.00,COMMERCIAL SUPPLIER 
 15-11-2022,Adults,Cera Care Operations Ltd,Home Care - Private Contractors Payment,560.22,0.00,COMMERCIAL SUPPLIER 
 08-11-2022,Adults,KJD Care Limited,Home Care - Private Contractors Payment,560.88,0.00,INDIVIDUALS 
 15-11-2022,Adults,Cera Care Operations Ltd,Home Care - Private Contractors Payment,560.88,0.00,COMMERCIAL SUPPLIER 
 15-11-2022,Adults,Home Sweet Home Care Ltd,Home Care - Private Contractors Payment,560.88,0.00,COMMERCIAL SUPPLIER 
 15-11-2022,Adults,Home Support Services (Havering & Essex) Ltd,Home Care - Private Contractors Payment,560.88,0.00,COMMERCIAL SUPPLIER 
 23-11-2022,Adults,Rosemont Care Limited,Home Care - Private Contractors Payment,560.88,0.00,COMMERCIAL SUPPLIER 
 23-11-2022,Adults,Rosemont Care Limited,Home Care - Private Contractors Payment,560.88,0.00,COMMERCIAL SUPPLIER 
 15-11-2022,Adults,Cera Care Operations Ltd,Home Care - Private Contractors Payment,561.86,0.00,COMMERCIAL SUPPLIER 
 09-11-2022,Adults,Anytime Care 2020_a,Home Care - Private Contractors Payment,562.85,0.00,COMMERCIAL SUPPLIER 
 15-11-2022,Adults,Home Support Services (Havering & Essex) Ltd,Home Care - Private Contractors Payment,563.18,0.00,COMMERCIAL SUPPLIER 
 10-11-2022,Adults,Potton Services Ltd,Home Care - Private Contractors Payment,563.75,0.00,COMMERCIAL SUPPLIER 
 15-11-2022,Adults,Home Support Services (Havering & Essex) Ltd,Home Care - Private Contractors Payment,564.49,0.00,COMMERCIAL SUPPLIER 
 11-11-2022,Adults,Morepower Ltd t/a Aqs Homecare,Home Care - Private Contractors Payment,565.14,0.00,COMMERCIAL SUPPLIER 
 16-11-2022,Adults,Lodge Group Care UK Ltd,Home Care - Private Contractors Payment,566.13,0.00,COMMERCIAL SUPPLIER 
 18-11-2022,Adults,Raynet Recruitment Agency Ltd,Supported Other Accommodation - Private Contractors Payment,568.56,0.00,COMMERCIAL SUPPLIER 
 30-11-2022,Adults,Matrix SCM Ltd,Agency Staff,568.69,0.00,COMMERCIAL SUPPLIER 
 15-11-2022,Adults,Home Sweet Home Care Ltd,Home Care - Private Contractors Payment,571.05,0.00,COMMERCIAL SUPPLIER 
 18-11-2022,Adults,Ash Grove Residential Care Home,Respite Care - Private Contractors Payment,571.43,0.00,COMMERCIAL SUPPLIER 
 18-11-2022,Adults,Ash Grove Residential Care Home,Respite Care - Private Contractors Payment,571.43,0.00,COMMERCIAL SUPPLIER 
 15-11-2022,Adults,Home Support Services (Havering & Essex) Ltd,Home Care - Private Contractors Payment,572.69,0.00,COMMERCIAL SUPPLIER 
 11-11-2022,Adults,Morepower Ltd t/a Aqs Homecare,Home Care - Private Contractors Payment,573.67,0.00,COMMERCIAL SUPPLIER 
 16-11-2022,Adults,Lodge Group Care UK Ltd,Home Care - Private Contractors Payment,574.00,0.00,COMMERCIAL SUPPLIER 
 07-11-2022,Adults,KJD Care Limited,Home Care - Private Contractors Payment,575.64,0.00,INDIVIDUALS 
 15-11-2022,Adults,Home Support Services (Havering & Essex) Ltd,Home Care - Private Contractors Payment,575.64,0.00,COMMERCIAL SUPPLIER 
 16-11-2022,Adults,Lodge Group Care UK Ltd,Home Care - Private Contractors Payment,575.64,0.00,COMMERCIAL SUPPLIER 
 15-11-2022,Adults,Home Support Services (Havering & Essex) Ltd,Home Care - Private Contractors Payment,577.61,0.00,COMMERCIAL SUPPLIER 
 11-11-2022,Adults,Morepower Ltd t/a Aqs Homecare,Home Care - Private Contractors Payment,578.92,0.00,COMMERCIAL SUPPLIER 
 11-11-2022,Adults,Morepower Ltd t/a Aqs Homecare,Home Care - Private Contractors Payment,579.25,0.00,COMMERCIAL SUPPLIER 
 15-11-2022,Adults,Quality Healthcare Solutions Ltd t/a Kare Plus Romford,Home Care - Private Contractors Payment,579.25,0.00,COMMERCIAL SUPPLIER 
 16-11-2022,Adults,Matrix SCM Ltd,Agency Staff,579.71,0.00,COMMERCIAL SUPPLIER 
 15-11-2022,Adults,Home Sweet Home Care Ltd,Home Care - Private Contractors Payment,579.90,0.00,COMMERCIAL SUPPLIER 
 16-11-2022,Adults,Lodge Group Care UK Ltd,Home Care - Private Contractors Payment,580.56,0.00,COMMERCIAL SUPPLIER 
 10-11-2022,Adults,Care-Away Ltd T/A Care Support,Home Care - Private Contractors Payment,582.40,0.00,COMMERCIAL SUPPLIER 
 10-11-2022,Adults,Care-Away Ltd T/A Care Support,Home Care - Private Contractors Payment,582.40,0.00,COMMERCIAL SUPPLIER 
 10-11-2022,Adults,Care-Away Ltd T/A Care Support,Home Care - Private Contractors Payment,582.40,0.00,COMMERCIAL SUPPLIER 
 02-11-2022,Adults,Matrix SCM Ltd,Agency Staff,583.11,0.00,COMMERCIAL SUPPLIER 
 16-11-2022,Adults,London Care Plc_a,Home Care - Private Contractors Payment,585.15,0.00,COMMERCIAL SUPPLIER 
 15-11-2022,Adults,Home Sweet Home Care Ltd,Home Care - Private Contractors Payment,587.45,0.00,COMMERCIAL SUPPLIER 
 21-11-2022,Adults,John Stanleys Care Agency Ltd,Home Care - Private Contractors Payment,588.43,0.00,COMMERCIAL SUPPLIER 
 07-11-2022,Adults,London Homecare Ltd,Home Care - Private Contractors Payment,590.40,0.00,COMMERCIAL SUPPLIER 
 15-11-2022,Adults,Home Support Services (Havering & Essex) Ltd,Home Care - Private Contractors Payment,590.40,0.00,COMMERCIAL SUPPLIER 
 22-11-2022,Adults,Prior Care Ltd_a,Home Care - Private Contractors Payment,590.40,0.00,COMMERCIAL SUPPLIER 
 06-11-2022,Adults,Homestead Care Service,Home Care - Private Contractors Payment,591.38,0.00,COMMERCIAL SUPPLIER 
 15-11-2022,Adults,Home Support Services (Havering & Essex) Ltd,Home Care - Private Contractors Payment,592.04,0.00,COMMERCIAL SUPPLIER 
 11-11-2022,Adults,Morepower Ltd t/a Aqs Homecare,Home Care - Private Contractors Payment,592.37,0.00,COMMERCIAL SUPPLIER 
 06-11-2022,Adults,Homestead Care Service,Home Care - Private Contractors Payment,593.02,0.00,COMMERCIAL SUPPLIER 
 18-11-2022,Adults,Westminster Health Care Ltd Derham House,Respite Care - Private Contractors Payment,595.71,0.00,COMMERCIAL SUPPLIER 
 16-11-2022,Adults,Lodge Group Care UK Ltd,Home Care - Private Contractors Payment,597.29,0.00,COMMERCIAL SUPPLIER 
 15-11-2022,Adults,Home Support Services (Havering & Essex) Ltd,Home Care - Private Contractors Payment,597.94,0.00,COMMERCIAL SUPPLIER 
 29-11-2022,Adults,Havering Care Homes Ltd t/a Abbscross Nursing Home,Other Short Term Support,600.00,0.00,COMMERCIAL SUPPLIER 
 07-11-2022,Adults,London Homecare Ltd,Home Care - Private Contractors Payment,600.24,0.00,COMMERCIAL SUPPLIER 
 07-11-2022,Adults,London Homecare Ltd,Home Care - Private Contractors Payment,600.24,0.00,COMMERCIAL SUPPLIER 
 15-11-2022,Adults,Home Support Services (Havering & Essex) Ltd,Home Care - Private Contractors Payment,600.24,0.00,COMMERCIAL SUPPLIER 
 15-11-2022,Adults,Home Support Services (Havering & Essex) Ltd,Home Care - Private Contractors Payment,600.24,0.00,COMMERCIAL SUPPLIER 
 16-11-2022,Adults,Matrix SCM Ltd,Agency Staff,600.58,0.00,COMMERCIAL SUPPLIER 
 09-11-2022,Adults,Prestige Care & Support Ltd,Home Care - Private Contractors Payment,601.22,0.00,COMMERCIAL SUPPLIER 
 09-11-2022,Adults,Prestige Care & Support Ltd,Home Care - Private Contractors Payment,601.88,0.00,COMMERCIAL SUPPLIER 
 09-11-2022,Adults,Prestige Care & Support Ltd,Home Care - Private Contractors Payment,603.85,0.00,COMMERCIAL SUPPLIER 
 15-11-2022,Adults,Home Sweet Home Care Ltd,Home Care - Private Contractors Payment,604.18,0.00,COMMERCIAL SUPPLIER 
 17-11-2022,Adults,Hospiva Care & Associates Agency Ltd_a,Home Care - Private Contractors Payment,604.18,0.00,COMMERCIAL SUPPLIER 
 16-11-2022,Adults,Matrix SCM Ltd,Agency Staff,604.45,0.00,COMMERCIAL SUPPLIER 
 15-11-2022,Adults,Home Sweet Home Care Ltd,Home Care - Private Contractors Payment,604.50,0.00,COMMERCIAL SUPPLIER 
 18-11-2022,Adults,Highfield Care Homes Ltd t/a Romford Grange Care Home,Residential Placements - Private Contractors Payment,605.71,0.00,COMMERCIAL SUPPLIER 
 06-11-2022,Adults,Homestead Care Service,Home Care - Private Contractors Payment,606.14,0.00,COMMERCIAL SUPPLIER 
 15-11-2022,Adults,Home Sweet Home Care Ltd,Home Care - Private Contractors Payment,608.77,0.00,COMMERCIAL SUPPLIER 
 15-11-2022,Adults,Quality Healthcare Solutions Ltd t/a Kare Plus Romford,Home Care - Private Contractors Payment,610.41,0.00,COMMERCIAL SUPPLIER 
 15-11-2022,Adults,Quality Healthcare Solutions Ltd t/a Kare Plus Romford,Home Care - Private Contractors Payment,611.39,0.00,COMMERCIAL SUPPLIER 
 02-11-2022,Adults,Matrix SCM Ltd,Agency Staff,611.64,0.00,COMMERCIAL SUPPLIER 
 09-11-2022,Adults,Matrix SCM Ltd,Agency Staff,611.64,0.00,COMMERCIAL SUPPLIER 
 16-11-2022,Adults,Matrix SCM Ltd,Agency Staff,611.64,0.00,COMMERCIAL SUPPLIER 
 23-11-2022,Adults,Matrix SCM Ltd,Agency Staff,611.64,0.00,COMMERCIAL SUPPLIER 
 16-11-2022,Adults,Matrix SCM Ltd,Agency Staff,611.65,0.00,COMMERCIAL SUPPLIER 
 30-11-2022,Adults,Matrix SCM Ltd,Agency Staff,611.65,0.00,COMMERCIAL SUPPLIER 
 02-11-2022,Adults,Matrix SCM Ltd,Agency Staff,612.35,0.00,COMMERCIAL SUPPLIER 
 09-11-2022,Adults,Matrix SCM Ltd,Agency Staff,612.35,0.00,COMMERCIAL SUPPLIER 
 16-11-2022,Adults,Matrix SCM Ltd,Agency Staff,612.35,0.00,COMMERCIAL SUPPLIER 
 23-11-2022,Adults,Matrix SCM Ltd,Agency Staff,612.35,0.00,COMMERCIAL SUPPLIER 
 30-11-2022,Adults,Matrix SCM Ltd,Agency Staff,612.35,0.00,COMMERCIAL SUPPLIER 
 02-11-2022,Adults,Matrix SCM Ltd,Agency Staff,613.09,0.00,COMMERCIAL SUPPLIER 
 21-11-2022,Adults,John Stanleys Care Agency Ltd,Home Care - Private Contractors Payment,614.02,0.00,COMMERCIAL SUPPLIER 
 09-11-2022,Adults,Anytime Care 2020_a,Home Care - Private Contractors Payment,615.00,0.00,COMMERCIAL SUPPLIER 
 15-11-2022,Adults,Home Sweet Home Care Ltd,Home Care - Private Contractors Payment,616.31,0.00,COMMERCIAL SUPPLIER 
 15-11-2022,Adults,Home Support Services (Havering & Essex) Ltd,Home Care - Private Contractors Payment,619.92,0.00,COMMERCIAL SUPPLIER 
 16-11-2022,Adults,Action First Assessments Ltd,Private Contractors Payment - Other,620.00,0.00,COMMERCIAL SUPPLIER 
 18-11-2022,Adults,Barleycroft Care Home Ltd,Residential Placements - Private Contractors Payment,620.00,0.00,COMMERCIAL SUPPLIER 
 15-11-2022,Adults,Home Sweet Home Care Ltd,Home Care - Private Contractors Payment,620.58,0.00,COMMERCIAL SUPPLIER 
 15-11-2022,Adults,Home Support Services (Havering & Essex) Ltd,Home Care - Private Contractors Payment,621.56,0.00,COMMERCIAL SUPPLIER 
 02-11-2022,Adults,Matrix SCM Ltd,Agency Staff,622.08,0.00,COMMERCIAL SUPPLIER 
 09-11-2022,Adults,Matrix SCM Ltd,Agency Staff,622.08,0.00,COMMERCIAL SUPPLIER 
 16-11-2022,Adults,Matrix SCM Ltd,Agency Staff,622.08,0.00,COMMERCIAL SUPPLIER 
 23-11-2022,Adults,Matrix SCM Ltd,Agency Staff,622.08,0.00,COMMERCIAL SUPPLIER 
 11-11-2022,Adults,Morepower Ltd t/a Aqs Homecare,Home Care - Private Contractors Payment,622.22,0.00,COMMERCIAL SUPPLIER 
 16-11-2022,Adults,Lodge Group Care UK Ltd,Home Care - Private Contractors Payment,623.20,0.00,COMMERCIAL SUPPLIER 
 16-11-2022,Adults,Lodge Group Care UK Ltd,Home Care - Private Contractors Payment,623.20,0.00,COMMERCIAL SUPPLIER 
 21-11-2022,Adults,John Stanleys Care Agency Ltd,Home Care - Private Contractors Payment,623.20,0.00,COMMERCIAL SUPPLIER 
 15-11-2022,Adults,Home Sweet Home Care Ltd,Home Care - Private Contractors Payment,628.78,0.00,COMMERCIAL SUPPLIER 
 17-11-2022,Adults,Hospiva Care & Associates Agency Ltd_a,Home Care - Private Contractors Payment,629.73,0.00,COMMERCIAL SUPPLIER 
 18-11-2022,Adults,Cygnet Health Care,Residential Placements - Private Contractors Payment,630.00,0.00,COMMERCIAL SUPPLIER 
 06-11-2022,Adults,Homestead Care Service,Home Care - Private Contractors Payment,632.06,0.00,COMMERCIAL SUPPLIER 
 09-11-2022,Adults,Matrix SCM Ltd,Agency Staff,632.90,0.00,COMMERCIAL SUPPLIER 
 16-11-2022,Adults,Matrix SCM Ltd,Agency Staff,632.90,0.00,COMMERCIAL SUPPLIER 
 23-11-2022,Adults,Matrix SCM Ltd,Agency Staff,632.90,0.00,COMMERCIAL SUPPLIER 
 30-11-2022,Adults,Matrix SCM Ltd,Agency Staff,632.90,0.00,COMMERCIAL SUPPLIER 
 06-11-2022,Adults,Homestead Care Service,Home Care - Private Contractors Payment,633.04,0.00,COMMERCIAL SUPPLIER 
 06-11-2022,Adults,Homestead Care Service,Home Care - Private Contractors Payment,634.35,0.00,COMMERCIAL SUPPLIER 
 06-11-2022,Adults,Homestead Care Service,Home Care - Private Contractors Payment,639.60,0.00,COMMERCIAL SUPPLIER 
 15-11-2022,Adults,Quality Healthcare Solutions Ltd t/a Kare Plus Romford,Home Care - Private Contractors Payment,639.93,0.00,COMMERCIAL SUPPLIER 
 16-11-2022,Adults,Lodge Group Care UK Ltd,Home Care - Private Contractors Payment,641.24,0.00,COMMERCIAL SUPPLIER 
 11-11-2022,Adults,Morepower Ltd t/a Aqs Homecare,Home Care - Private Contractors Payment,641.57,0.00,COMMERCIAL SUPPLIER 
 15-11-2022,Adults,Home Sweet Home Care Ltd,Home Care - Private Contractors Payment,644.52,0.00,COMMERCIAL SUPPLIER 
 15-11-2022,Adults,Quality Healthcare Solutions Ltd t/a Kare Plus Romford,Home Care - Private Contractors Payment,645.18,0.00,COMMERCIAL SUPPLIER 
 16-11-2022,Adults,Lodge Group Care UK Ltd,Home Care - Private Contractors Payment,645.18,0.00,COMMERCIAL SUPPLIER 
 09-11-2022,Adults,Prestige Care & Support Ltd,Home Care - Private Contractors Payment,648.13,0.00,COMMERCIAL SUPPLIER 
 06-11-2022,Adults,Homestead Care Service,Home Care - Private Contractors Payment,649.44,0.00,COMMERCIAL SUPPLIER 
 15-11-2022,Adults,Home Support Services (Havering & Essex) Ltd,Home Care - Private Contractors Payment,649.44,0.00,COMMERCIAL SUPPLIER 
 30-11-2022,Adults,Matrix SCM Ltd,Agency Staff,650.73,0.00,COMMERCIAL SUPPLIER 
 09-11-2022,Adults,Prestige Care & Support Ltd,Home Care - Private Contractors Payment,650.75,0.00,COMMERCIAL SUPPLIER 
 15-11-2022,Adults,Home Support Services (Havering & Essex) Ltd,Home Care - Private Contractors Payment,651.74,0.00,COMMERCIAL SUPPLIER 
 16-11-2022,Adults,Lodge Group Care UK Ltd,Home Care - Private Contractors Payment,655.02,0.00,COMMERCIAL SUPPLIER 
 06-11-2022,Adults,Homestead Care Service,Home Care - Private Contractors Payment,655.34,0.00,COMMERCIAL SUPPLIER 
 09-11-2022,Adults,Prestige Care & Support Ltd,Home Care - Private Contractors Payment,655.34,0.00,COMMERCIAL SUPPLIER 
 11-11-2022,Adults,Care-Away Ltd T/A Care Support,Home Care - Private Contractors Payment,657.28,0.00,COMMERCIAL SUPPLIER 
 02-11-2022,Adults,Matrix SCM Ltd,Agency Staff,657.73,0.00,COMMERCIAL SUPPLIER 
 09-11-2022,Adults,Matrix SCM Ltd,Agency Staff,657.73,0.00,COMMERCIAL SUPPLIER 
 16-11-2022,Adults,Matrix SCM Ltd,Agency Staff,657.73,0.00,COMMERCIAL SUPPLIER 
 23-11-2022,Adults,Matrix SCM Ltd,Agency Staff,657.73,0.00,COMMERCIAL SUPPLIER 
 30-11-2022,Adults,Matrix SCM Ltd,Agency Staff,657.73,0.00,COMMERCIAL SUPPLIER 
 23-11-2022,Adults,Matrix SCM Ltd,Agency Staff,659.06,0.00,COMMERCIAL SUPPLIER 
 06-11-2022,Adults,Westminster Homecare Ltd_a,Home Care - Private Contractors Payment,659.28,0.00,COMMERCIAL SUPPLIER 
 04-11-2022,Adults,Pristine Care London Ltd ,Daycare - Private Contractors Payment,660.00,0.00,COMMERCIAL SUPPLIER 
 11-11-2022,Adults,Morepower Ltd t/a Aqs Homecare,Home Care - Private Contractors Payment,665.18,0.00,COMMERCIAL SUPPLIER 
 15-11-2022,Adults,Cera Care Operations Ltd,Home Care - Private Contractors Payment,665.18,0.00,COMMERCIAL SUPPLIER 
 09-11-2022,Adults,Matrix SCM Ltd,Agency Staff,668.16,0.00,COMMERCIAL SUPPLIER 
 07-11-2022,Adults,KJD Care Limited,Home Care - Private Contractors Payment,668.88,0.00,INDIVIDUALS 
 08-11-2022,Adults,KJD Care Limited,Home Care - Private Contractors Payment,668.88,0.00,INDIVIDUALS 
 08-11-2022,Adults,Premier Carewaiting Ltd,Home Care - Private Contractors Payment,669.12,0.00,COMMERCIAL SUPPLIER 
 23-11-2022,Adults,Rosemont Care Limited,Home Care - Private Contractors Payment,669.12,0.00,COMMERCIAL SUPPLIER 
 23-11-2022,Adults,Rosemont Care Limited,Home Care - Private Contractors Payment,669.12,0.00,COMMERCIAL SUPPLIER 
 23-11-2022,Adults,Rosemont Care Limited,Home Care - Private Contractors Payment,669.12,0.00,COMMERCIAL SUPPLIER 
 06-11-2022,Adults,Homestead Care Service,Home Care - Private Contractors Payment,669.78,0.00,COMMERCIAL SUPPLIER 
 09-11-2022,Adults,Prestige Care & Support Ltd,Home Care - Private Contractors Payment,670.10,0.00,COMMERCIAL SUPPLIER 
 06-11-2022,Adults,Homestead Care Service,Home Care - Private Contractors Payment,670.76,0.00,COMMERCIAL SUPPLIER 
 16-11-2022,Adults,Lodge Group Care UK Ltd,Home Care - Private Contractors Payment,671.42,0.00,COMMERCIAL SUPPLIER 
 21-11-2022,Adults,Gims Care Solution Ltd_a,Home Care - Private Contractors Payment,672.00,0.00,NON COMMERCIAL SUPPLIER 
 22-11-2022,Adults,Prior Care Ltd_a,Home Care - Private Contractors Payment,673.71,0.00,COMMERCIAL SUPPLIER 
 15-11-2022,Adults,Quality Healthcare Solutions Ltd t/a Kare Plus Romford,Home Care - Private Contractors Payment,674.70,0.00,COMMERCIAL SUPPLIER 
 15-11-2022,Adults,Home Support Services (Havering & Essex) Ltd,Home Care - Private Contractors Payment,676.01,0.00,COMMERCIAL SUPPLIER 
 22-11-2022,Adults,Prior Care Ltd_a,Home Care - Private Contractors Payment,677.65,0.00,COMMERCIAL SUPPLIER 
 30-11-2022,Adults,Matrix SCM Ltd,Agency Staff,677.89,0.00,COMMERCIAL SUPPLIER 
 22-11-2022,Adults,Prior Care Ltd_a,Home Care - Private Contractors Payment,677.98,0.00,COMMERCIAL SUPPLIER 
 18-11-2022,Adults,Fountains Care Centre - Bondcare,Respite Care - Private Contractors Payment,678.00,0.00,COMMERCIAL SUPPLIER 
 29-11-2022,Adults,Havering Care Homes Ltd t/a Abbscross Nursing Home,Nursing Homes - Private Contractors Payment,678.00,0.00,COMMERCIAL SUPPLIER 
 18-11-2022,Adults,Affinia Healthcare Ltd_a,Supported Other Accommodation - Private Contractors Payment,678.96,0.00,COMMERCIAL SUPPLIER 
 06-11-2022,Adults,Homestead Care Service,Home Care - Private Contractors Payment,679.29,0.00,COMMERCIAL SUPPLIER 
 22-11-2022,Adults,Prior Care Ltd_a,Home Care - Private Contractors Payment,679.94,0.00,COMMERCIAL SUPPLIER 
 22-11-2022,Adults,Prior Care Ltd_a,Home Care - Private Contractors Payment,681.58,0.00,COMMERCIAL SUPPLIER 
 06-11-2022,Adults,Homestead Care Service,Home Care - Private Contractors Payment,682.90,0.00,COMMERCIAL SUPPLIER 
 06-11-2022,Adults,Homestead Care Service,Home Care - Private Contractors Payment,682.90,0.00,COMMERCIAL SUPPLIER 
 15-11-2022,Adults,Home Support Services (Havering & Essex) Ltd,Home Care - Private Contractors Payment,683.55,0.00,COMMERCIAL SUPPLIER 
 08-11-2022,Adults,Tapestry_a.,Daycare - Private Contractors Payment,684.00,0.00,COMMERCIAL SUPPLIER 
 08-11-2022,Adults,Tapestry_a.,Daycare - Private Contractors Payment,684.00,0.00,COMMERCIAL SUPPLIER 
 08-11-2022,Adults,Tapestry_a.,Daycare - Private Contractors Payment,684.00,0.00,COMMERCIAL SUPPLIER 
 08-11-2022,Adults,Tapestry_a.,Daycare - Private Contractors Payment,684.00,0.00,COMMERCIAL SUPPLIER 
 08-11-2022,Adults,Tapestry_a.,Daycare - Private Contractors Payment,684.00,0.00,COMMERCIAL SUPPLIER 
 08-11-2022,Adults,Tapestry_a.,Daycare - Private Contractors Payment,684.00,0.00,COMMERCIAL SUPPLIER 
 08-11-2022,Adults,Tapestry_a.,Daycare - Private Contractors Payment,684.00,0.00,COMMERCIAL SUPPLIER 
 18-11-2022,Adults,Gemini Assisted Living Ltd,Supported Other Accommodation - Private Contractors Payment,686.40,0.00,COMMERCIAL SUPPLIER 
 08-11-2022,Adults,Mayflower Travel,Client Transport,688.00,0.00,COMMERCIAL SUPPLIER 
 21-11-2022,Adults,John Stanleys Care Agency Ltd,Home Care - Private Contractors Payment,688.14,0.00,COMMERCIAL SUPPLIER 
 07-11-2022,Adults,KJD Care Limited,Home Care - Private Contractors Payment,688.80,0.00,INDIVIDUALS 
 07-11-2022,Adults,London Homecare Ltd,Home Care - Private Contractors Payment,688.80,0.00,COMMERCIAL SUPPLIER 
 08-11-2022,Adults,KJD Care Limited,Home Care - Private Contractors Payment,688.80,0.00,INDIVIDUALS 
 15-11-2022,Adults,Passion Tree Care Services Ltd,Home Care - Private Contractors Payment,688.80,0.00,COMMERCIAL SUPPLIER 
 04-11-2022,Adults,Theraposture Ltd,Purchase - Equipment Furniture And Materials,689.00,0.00,COMMERCIAL SUPPLIER 
 06-11-2022,Adults,Homestead Care Service,Home Care - Private Contractors Payment,689.46,0.00,COMMERCIAL SUPPLIER 
 10-11-2022,Adults,Care-Away Ltd T/A Care Support,Home Care - Private Contractors Payment,690.56,0.00,COMMERCIAL SUPPLIER 
 15-11-2022,Adults,Home Sweet Home Care Ltd,Home Care - Private Contractors Payment,691.10,0.00,COMMERCIAL SUPPLIER 
 02-11-2022,Adults,Matrix SCM Ltd,Agency Staff,692.31,0.00,COMMERCIAL SUPPLIER 
 09-11-2022,Adults,Anytime Care 2020_a,Home Care - Private Contractors Payment,693.39,0.00,COMMERCIAL SUPPLIER 
 16-11-2022,Adults,Lodge Group Care UK Ltd,Home Care - Private Contractors Payment,694.38,0.00,COMMERCIAL SUPPLIER 
 16-11-2022,Adults,Lodge Group Care UK Ltd,Home Care - Private Contractors Payment,695.03,0.00,COMMERCIAL SUPPLIER 
 18-11-2022,Adults,Beechcourt Care Centre - Bondcare,Nursing Care Income,697.62,0.00,COMMERCIAL SUPPLIER 
 16-11-2022,Adults,Lodge Group Care UK Ltd,Home Care - Private Contractors Payment,697.98,0.00,COMMERCIAL SUPPLIER 
 17-11-2022,Adults,Hospiva Care & Associates Agency Ltd_a,Home Care - Private Contractors Payment,698.64,0.00,COMMERCIAL SUPPLIER 
 10-11-2022,Adults,Care-Away Ltd T/A Care Support,Home Care - Private Contractors Payment,698.88,0.00,COMMERCIAL SUPPLIER 
 10-11-2022,Adults,Care-Away Ltd T/A Care Support,Home Care - Private Contractors Payment,698.88,0.00,COMMERCIAL SUPPLIER 
 10-11-2022,Adults,Care-Away Ltd T/A Care Support,Home Care - Private Contractors Payment,698.88,0.00,COMMERCIAL SUPPLIER 
 08-11-2022,Adults,Flex360 Limited,Private Contractors Payment - Other,700.00,0.00,COMMERCIAL SUPPLIER 
 08-11-2022,Adults,Flex360 Limited,Private Contractors Payment - Other,700.00,0.00,COMMERCIAL SUPPLIER 
 02-11-2022,Adults,Inclusive Care Support Limited,Supported Other Accommodation - Private Contractors Payment,700.84,0.00,COMMERCIAL SUPPLIER 
 02-11-2022,Adults,Inclusive Care Support Limited,Supported Other Accommodation - Private Contractors Payment,700.84,0.00,COMMERCIAL SUPPLIER 
 02-11-2022,Adults,Inclusive Care Support Limited,Supported Other Accommodation - Private Contractors Payment,700.84,0.00,COMMERCIAL SUPPLIER 
 02-11-2022,Adults,Inclusive Care Support Limited,Long Term Support - Community: Supported Living,700.84,0.00,COMMERCIAL SUPPLIER 
 02-11-2022,Adults,Inclusive Care Support Limited,Supported Other Accommodation - Private Contractors Payment,700.84,0.00,COMMERCIAL SUPPLIER 
 06-11-2022,Adults,Homestead Care Service,Home Care - Private Contractors Payment,701.59,0.00,COMMERCIAL SUPPLIER 
 15-11-2022,Adults,Home Support Services (Havering & Essex) Ltd,Home Care - Private Contractors Payment,702.58,0.00,COMMERCIAL SUPPLIER 
 15-11-2022,Adults,Home Support Services (Havering & Essex) Ltd,Home Care - Private Contractors Payment,704.22,0.00,COMMERCIAL SUPPLIER 
 30-11-2022,Adults,Matrix SCM Ltd,Agency Staff,705.41,0.00,COMMERCIAL SUPPLIER 
 09-11-2022,Adults,Anytime Care 2020_a,Home Care - Private Contractors Payment,708.15,0.00,COMMERCIAL SUPPLIER 
 07-11-2022,Adults,KJD Care Limited,Home Care - Private Contractors Payment,708.48,0.00,INDIVIDUALS 
 08-11-2022,Adults,KJD Care Limited,Home Care - Private Contractors Payment,708.48,0.00,INDIVIDUALS 
 09-11-2022,Adults,Outreach Support Services Ltd,Home Care - Private Contractors Payment,708.48,0.00,COMMERCIAL SUPPLIER 
 11-11-2022,Adults,Gims Care Solution Ltd_a,Home Care - Private Contractors Payment,708.48,0.00,NON COMMERCIAL SUPPLIER 
 11-11-2022,Adults,Gims Care Solution Ltd_a,Home Care - Private Contractors Payment,708.48,0.00,NON COMMERCIAL SUPPLIER 
 23-11-2022,Adults,Matrix SCM Ltd,Agency Staff,709.92,0.00,COMMERCIAL SUPPLIER 
 06-11-2022,Adults,Homestead Care Service,Home Care - Private Contractors Payment,710.12,0.00,COMMERCIAL SUPPLIER 
 30-11-2022,Adults,Matrix SCM Ltd,Agency Staff,710.14,0.00,COMMERCIAL SUPPLIER 
 16-11-2022,Adults,Lodge Group Care UK Ltd,Home Care - Private Contractors Payment,710.45,0.00,COMMERCIAL SUPPLIER 
 23-11-2022,Adults,Matrix SCM Ltd,Agency Staff,712.10,0.00,COMMERCIAL SUPPLIER 
 23-11-2022,Adults,Matrix SCM Ltd,Agency Staff,712.10,0.00,COMMERCIAL SUPPLIER 
 11-11-2022,Adults,Morepower Ltd t/a Aqs Homecare,Home Care - Private Contractors Payment,714.38,0.00,COMMERCIAL SUPPLIER 
 11-11-2022,Adults,Morepower Ltd t/a Aqs Homecare,Home Care - Private Contractors Payment,714.38,0.00,COMMERCIAL SUPPLIER 
 30-11-2022,Adults,Matrix SCM Ltd,Agency Staff,714.80,0.00,COMMERCIAL SUPPLIER 
 22-11-2022,Adults,Prior Care Ltd_a,Home Care - Private Contractors Payment,715.04,0.00,COMMERCIAL SUPPLIER 
 10-11-2022,Adults,Care-Away Ltd T/A Care Support,Home Care - Private Contractors Payment,715.52,0.00,COMMERCIAL SUPPLIER 
 18-11-2022,Adults,Masumin Ltd t/s Abbeleigh House,Respite Care - Private Contractors Payment,715.71,0.00,COMMERCIAL SUPPLIER 
 09-11-2022,Adults,Matrix SCM Ltd,Agency Staff,716.52,0.00,COMMERCIAL SUPPLIER 
 15-11-2022,Adults,Home Sweet Home Care Ltd,Home Care - Private Contractors Payment,718.32,0.00,COMMERCIAL SUPPLIER 
 15-11-2022,Adults,Quality Healthcare Solutions Ltd t/a Kare Plus Romford,Home Care - Private Contractors Payment,718.65,0.00,COMMERCIAL SUPPLIER 
 15-11-2022,Adults,Home Support Services (Havering & Essex) Ltd,Home Care - Private Contractors Payment,719.63,0.00,COMMERCIAL SUPPLIER 
 17-11-2022,Adults,Hospiva Care & Associates Agency Ltd_a,Home Care - Private Contractors Payment,719.63,0.00,COMMERCIAL SUPPLIER 
 10-11-2022,Adults,Care-Away Ltd T/A Care Support,Home Care - Private Contractors Payment,719.68,0.00,COMMERCIAL SUPPLIER 
 15-11-2022,Adults,Home Support Services (Havering & Essex) Ltd,Home Care - Private Contractors Payment,719.96,0.00,COMMERCIAL SUPPLIER 
 15-11-2022,Adults,Cera Care Operations Ltd,Home Care - Private Contractors Payment,721.93,0.00,COMMERCIAL SUPPLIER 
 18-11-2022,Adults,HC-One Oval Ltd - The Hornchurch Nursing Centre,Respite Care - Private Contractors Payment,722.29,0.00,COMMERCIAL SUPPLIER 
 15-11-2022,Adults,Cera Care Operations Ltd,Home Care - Private Contractors Payment,724.55,0.00,COMMERCIAL SUPPLIER 
 16-11-2022,Adults,Lodge Group Care UK Ltd,Home Care - Private Contractors Payment,729.47,0.00,COMMERCIAL SUPPLIER 
 16-11-2022,Adults,Lodge Group Care UK Ltd,Home Care - Private Contractors Payment,730.78,0.00,COMMERCIAL SUPPLIER 
 16-11-2022,Adults,Lodge Group Care UK Ltd,Home Care - Private Contractors Payment,731.11,0.00,COMMERCIAL SUPPLIER 
 06-11-2022,Adults,Homestead Care Service,Home Care - Private Contractors Payment,731.77,0.00,COMMERCIAL SUPPLIER 
 06-11-2022,Adults,Homestead Care Service,Home Care - Private Contractors Payment,732.75,0.00,COMMERCIAL SUPPLIER 
 02-11-2022,Adults,Matrix SCM Ltd,Agency Staff,735.84,0.00,COMMERCIAL SUPPLIER 
 09-11-2022,Adults,Matrix SCM Ltd,Agency Staff,735.84,0.00,COMMERCIAL SUPPLIER 
 16-11-2022,Adults,Matrix SCM Ltd,Agency Staff,735.84,0.00,COMMERCIAL SUPPLIER 
 23-11-2022,Adults,Matrix SCM Ltd,Agency Staff,735.84,0.00,COMMERCIAL SUPPLIER 
 30-11-2022,Adults,Matrix SCM Ltd,Agency Staff,735.84,0.00,COMMERCIAL SUPPLIER 
 16-11-2022,Adults,Lodge Group Care UK Ltd,Home Care - Private Contractors Payment,737.02,0.00,COMMERCIAL SUPPLIER 
 16-11-2022,Adults,Lodge Group Care UK Ltd,Home Care - Private Contractors Payment,737.02,0.00,COMMERCIAL SUPPLIER 
 15-11-2022,Adults,Cera Care Operations Ltd,Home Care - Private Contractors Payment,738.66,0.00,COMMERCIAL SUPPLIER 
 15-11-2022,Adults,Home Sweet Home Care Ltd,Home Care - Private Contractors Payment,738.66,0.00,COMMERCIAL SUPPLIER 
 15-11-2022,Adults,Home Support Services (Havering & Essex) Ltd,Home Care - Private Contractors Payment,740.30,0.00,COMMERCIAL SUPPLIER 
 02-11-2022,Adults,Matrix SCM Ltd,Agency Staff,741.75,0.00,COMMERCIAL SUPPLIER 
 09-11-2022,Adults,Matrix SCM Ltd,Agency Staff,741.75,0.00,COMMERCIAL SUPPLIER 
 16-11-2022,Adults,Matrix SCM Ltd,Agency Staff,741.75,0.00,COMMERCIAL SUPPLIER 
 23-11-2022,Adults,Matrix SCM Ltd,Agency Staff,741.75,0.00,COMMERCIAL SUPPLIER 
 30-11-2022,Adults,Matrix SCM Ltd,Agency Staff,741.75,0.00,COMMERCIAL SUPPLIER 
 15-11-2022,Adults,Home Sweet Home Care Ltd,Home Care - Private Contractors Payment,742.92,0.00,COMMERCIAL SUPPLIER 
 18-11-2022,Adults,Ashgate House Ltd_a,Residential Placements - Private Contractors Payment,746.16,0.00,COMMERCIAL SUPPLIER 
 11-11-2022,Adults,Morepower Ltd t/a Aqs Homecare,Home Care - Private Contractors Payment,747.84,0.00,COMMERCIAL SUPPLIER 
 16-11-2022,Adults,Lodge Group Care UK Ltd,Home Care - Private Contractors Payment,747.84,0.00,COMMERCIAL SUPPLIER 
 09-11-2022,Adults,Anytime Care 2020_a,Home Care - Private Contractors Payment,749.48,0.00,COMMERCIAL SUPPLIER 
 06-11-2022,Adults,Homestead Care Service,Home Care - Private Contractors Payment,750.46,0.00,COMMERCIAL SUPPLIER 
 21-11-2022,Adults,EDF Energy Customers Plc,Electricity,751.35,0.00,COMMERCIAL SUPPLIER 
 23-11-2022,Adults,Matrix SCM Ltd,Agency Staff,752.03,0.00,COMMERCIAL SUPPLIER 
 23-11-2022,Adults,Matrix SCM Ltd,Agency Staff,752.03,0.00,COMMERCIAL SUPPLIER 
 30-11-2022,Adults,Matrix SCM Ltd,Agency Staff,752.03,0.00,COMMERCIAL SUPPLIER 
 18-11-2022,Adults,HC-One Oval Ltd - The Hornchurch Nursing Centre,Nursing Care Income,753.16,0.00,COMMERCIAL SUPPLIER 
 21-11-2022,Adults,John Stanleys Care Agency Ltd,Home Care - Private Contractors Payment,753.42,0.00,COMMERCIAL SUPPLIER 
 15-11-2022,Adults,Home Sweet Home Care Ltd,Home Care - Private Contractors Payment,753.74,0.00,COMMERCIAL SUPPLIER 
 01-11-2022,Adults,HSL Compliance Ltd,Professional Services - General,753.89,0.00,CIS 
 09-11-2022,Adults,Prestige Care & Support Ltd,Home Care - Private Contractors Payment,757.68,0.00,COMMERCIAL SUPPLIER 
 15-11-2022,Adults,Home Sweet Home Care Ltd,Home Care - Private Contractors Payment,758.66,0.00,COMMERCIAL SUPPLIER 
 11-11-2022,Adults,Morepower Ltd t/a Aqs Homecare,Home Care - Private Contractors Payment,759.32,0.00,COMMERCIAL SUPPLIER 
 07-11-2022,Adults,Bluebird Care Havering,Home Care - Private Contractors Payment,762.60,0.00,COMMERCIAL SUPPLIER 
 21-11-2022,Adults,Bluebird Care Havering,Home Care - Private Contractors Payment,762.60,0.00,COMMERCIAL SUPPLIER 
 06-11-2022,Adults,Homestead Care Service,Home Care - Private Contractors Payment,763.58,0.00,COMMERCIAL SUPPLIER 
 16-11-2022,Adults,Matrix SCM Ltd,Agency Staff,764.31,0.00,COMMERCIAL SUPPLIER 
 23-11-2022,Adults,Matrix SCM Ltd,Agency Staff,765.14,0.00,COMMERCIAL SUPPLIER 
 16-11-2022,Adults,Matrix SCM Ltd,Agency Staff,766.08,0.00,COMMERCIAL SUPPLIER 
 11-11-2022,Adults,Morepower Ltd t/a Aqs Homecare,Home Care - Private Contractors Payment,766.21,0.00,COMMERCIAL SUPPLIER 
 15-11-2022,Adults,Home Sweet Home Care Ltd,Home Care - Private Contractors Payment,767.19,0.00,COMMERCIAL SUPPLIER 
 11-11-2022,Adults,Morepower Ltd t/a Aqs Homecare,Home Care - Private Contractors Payment,767.52,0.00,COMMERCIAL SUPPLIER 
 17-11-2022,Adults,Hospiva Care & Associates Agency Ltd_a,Home Care - Private Contractors Payment,767.52,0.00,COMMERCIAL SUPPLIER 
 16-11-2022,Adults,Lodge Group Care UK Ltd,Home Care - Private Contractors Payment,767.85,0.00,COMMERCIAL SUPPLIER 
 16-11-2022,Adults,Lodge Group Care UK Ltd,Home Care - Private Contractors Payment,768.50,0.00,COMMERCIAL SUPPLIER 
 02-11-2022,Adults,Matrix SCM Ltd,Agency Staff,772.19,0.00,COMMERCIAL SUPPLIER 
 09-11-2022,Adults,Matrix SCM Ltd,Agency Staff,772.19,0.00,COMMERCIAL SUPPLIER 
 16-11-2022,Adults,Matrix SCM Ltd,Agency Staff,772.19,0.00,COMMERCIAL SUPPLIER 
 23-11-2022,Adults,Matrix SCM Ltd,Agency Staff,772.19,0.00,COMMERCIAL SUPPLIER 
 30-11-2022,Adults,Matrix SCM Ltd,Agency Staff,772.19,0.00,COMMERCIAL SUPPLIER 
 09-11-2022,Adults,Prestige Care & Support Ltd,Home Care - Private Contractors Payment,772.44,0.00,COMMERCIAL SUPPLIER 
 18-11-2022,Adults,Chosen Care Group Ltd,Supported Other Accommodation - Private Contractors Payment,772.60,0.00,COMMERCIAL SUPPLIER 
 09-11-2022,Adults,Prestige Care & Support Ltd,Home Care - Private Contractors Payment,773.75,0.00,COMMERCIAL SUPPLIER 
 18-11-2022,Adults,One Tree Estates Ltd t/a Ashbrook Nursing Home,Nursing Homes - Private Contractors Payment,774.86,0.00,COMMERCIAL SUPPLIER 
 18-11-2022,Adults,Acorn Village_a,Residential Placements - Private Contractors Payment,774.92,0.00,COMMERCIAL SUPPLIER 
 09-11-2022,Adults,Matrix SCM Ltd,Agency Staff,775.20,0.00,COMMERCIAL SUPPLIER 
 06-11-2022,Adults,Homestead Care Service,Home Care - Private Contractors Payment,777.36,0.00,COMMERCIAL SUPPLIER 
 06-11-2022,Adults,Homestead Care Service,Home Care - Private Contractors Payment,777.36,0.00,COMMERCIAL SUPPLIER 
 02-11-2022,Adults,Matrix SCM Ltd,Agency Staff,777.42,0.00,COMMERCIAL SUPPLIER 
 16-11-2022,Adults,Matrix SCM Ltd,Agency Staff,777.42,0.00,COMMERCIAL SUPPLIER 
 23-11-2022,Adults,Matrix SCM Ltd,Agency Staff,777.42,0.00,COMMERCIAL SUPPLIER 
 15-11-2022,Adults,Home Sweet Home Care Ltd,Home Care - Private Contractors Payment,778.34,0.00,COMMERCIAL SUPPLIER 
 02-11-2022,Adults,Matrix SCM Ltd,Agency Staff,778.44,0.00,COMMERCIAL SUPPLIER 
 21-11-2022,Adults,John Stanleys Care Agency Ltd,Home Care - Private Contractors Payment,779.33,0.00,COMMERCIAL SUPPLIER 
 17-11-2022,Adults,New Opportunity Groups Havering,Daycare - Private Contractors Payment,780.00,0.00,COMMERCIAL SUPPLIER 
 15-11-2022,Adults,Home Sweet Home Care Ltd,Home Care - Private Contractors Payment,780.31,0.00,COMMERCIAL SUPPLIER 
 15-11-2022,Adults,Home Support Services (Havering & Essex) Ltd,Home Care - Private Contractors Payment,780.31,0.00,COMMERCIAL SUPPLIER 
 15-11-2022,Adults,Home Support Services (Havering & Essex) Ltd,Home Care - Private Contractors Payment,780.31,0.00,COMMERCIAL SUPPLIER 
 06-11-2022,Adults,Homestead Care Service,Home Care - Private Contractors Payment,780.97,0.00,COMMERCIAL SUPPLIER 
 15-11-2022,Adults,Home Support Services (Havering & Essex) Ltd,Home Care - Private Contractors Payment,782.28,0.00,COMMERCIAL SUPPLIER 
 30-11-2022,Adults,Matrix SCM Ltd,Agency Staff,783.36,0.00,COMMERCIAL SUPPLIER 
 16-11-2022,Adults,Lodge Group Care UK Ltd,Home Care - Private Contractors Payment,785.89,0.00,COMMERCIAL SUPPLIER 
 06-11-2022,Adults,Homestead Care Service,Home Care - Private Contractors Payment,787.20,0.00,COMMERCIAL SUPPLIER 
 09-11-2022,Adults,Prestige Care & Support Ltd,Home Care - Private Contractors Payment,787.20,0.00,COMMERCIAL SUPPLIER 
 10-11-2022,Adults,Carers Trust East Midlands,Home Care - Private Contractors Payment,787.20,0.00,COMMERCIAL SUPPLIER 
 15-11-2022,Adults,Cera Care Operations Ltd,Home Care - Private Contractors Payment,788.51,0.00,COMMERCIAL SUPPLIER 
 09-11-2022,Adults,Anytime Care 2020_a,Home Care - Private Contractors Payment,790.81,0.00,COMMERCIAL SUPPLIER 
 15-11-2022,Adults,Cera Care Operations Ltd,Home Care - Private Contractors Payment,792.45,0.00,COMMERCIAL SUPPLIER 
 18-11-2022,Adults,Westminster Health Care Ltd Derham House,Respite Care - Private Contractors Payment,794.29,0.00,COMMERCIAL SUPPLIER 
 15-11-2022,Adults,Home Support Services (Havering & Essex) Ltd,Home Care - Private Contractors Payment,796.71,0.00,COMMERCIAL SUPPLIER 
 18-11-2022,Adults,Outlook Care - 76 Neave Crescent,Supported Other Accommodation - Private Contractors Payment,796.96,0.00,COMMERCIAL SUPPLIER 
 15-11-2022,Adults,Home Sweet Home Care Ltd,Home Care - Private Contractors Payment,797.04,0.00,COMMERCIAL SUPPLIER 
 08-11-2022,Adults,Tapestry_a.,Daycare - Private Contractors Payment,798.00,0.00,COMMERCIAL SUPPLIER 
 09-11-2022,Adults,Anytime Care 2020_a,Home Care - Private Contractors Payment,798.68,0.00,COMMERCIAL SUPPLIER 
 16-11-2022,Adults,Lodge Group Care UK Ltd,Home Care - Private Contractors Payment,799.99,0.00,COMMERCIAL SUPPLIER 
 16-11-2022,Adults,Lodge Group Care UK Ltd,Home Care - Private Contractors Payment,800.65,0.00,COMMERCIAL SUPPLIER 
 15-11-2022,Adults,Quality Healthcare Solutions Ltd t/a Kare Plus Romford,Home Care - Private Contractors Payment,803.27,0.00,COMMERCIAL SUPPLIER 
 15-11-2022,Adults,Cera Care Operations Ltd,Home Care - Private Contractors Payment,804.58,0.00,COMMERCIAL SUPPLIER 
 16-11-2022,Adults,Lodge Group Care UK Ltd,Home Care - Private Contractors Payment,804.91,0.00,COMMERCIAL SUPPLIER 
 02-11-2022,Adults,Matrix SCM Ltd,Agency Staff,806.40,0.00,COMMERCIAL SUPPLIER 
 16-11-2022,Adults,Matrix SCM Ltd,Agency Staff,806.40,0.00,COMMERCIAL SUPPLIER 
 06-11-2022,Adults,Homestead Care Service,Home Care - Private Contractors Payment,806.55,0.00,COMMERCIAL SUPPLIER 
 15-11-2022,Adults,Home Sweet Home Care Ltd,Home Care - Private Contractors Payment,806.88,0.00,COMMERCIAL SUPPLIER 
 11-11-2022,Adults,Morepower Ltd t/a Aqs Homecare,Home Care - Private Contractors Payment,807.54,0.00,COMMERCIAL SUPPLIER 
 24-11-2022,Adults,Field Court Chambers,Legal Fees,810.00,0.00,COMMERCIAL SUPPLIER 
 06-11-2022,Adults,Westminster Homecare Ltd_a,Home Care - Private Contractors Payment,810.16,0.00,COMMERCIAL SUPPLIER 
 15-11-2022,Adults,Home Sweet Home Care Ltd,Home Care - Private Contractors Payment,810.16,0.00,COMMERCIAL SUPPLIER 
 15-11-2022,Adults,Home Sweet Home Care Ltd,Home Care - Private Contractors Payment,811.47,0.00,COMMERCIAL SUPPLIER 
 15-11-2022,Adults,Cera Care Operations Ltd,Home Care - Private Contractors Payment,811.80,0.00,COMMERCIAL SUPPLIER 
 18-11-2022,Adults,One Tree Estates Ltd t/a Ashbrook Nursing Home,Nursing Homes - Private Contractors Payment,814.29,0.00,COMMERCIAL SUPPLIER 
 10-11-2022,Adults,Care-Away Ltd T/A Care Support,Home Care - Private Contractors Payment,815.36,0.00,COMMERCIAL SUPPLIER 
 11-11-2022,Adults,Care-Away Ltd T/A Care Support,Home Care - Private Contractors Payment,815.36,0.00,COMMERCIAL SUPPLIER 
 15-11-2022,Adults,Home Sweet Home Care Ltd,Home Care - Private Contractors Payment,816.72,0.00,COMMERCIAL SUPPLIER 
 15-11-2022,Adults,Home Support Services (Havering & Essex) Ltd,Home Care - Private Contractors Payment,816.72,0.00,COMMERCIAL SUPPLIER 
 11-11-2022,Adults,Morepower Ltd t/a Aqs Homecare,Home Care - Private Contractors Payment,818.03,0.00,COMMERCIAL SUPPLIER 
 15-11-2022,Adults,Home Support Services (Havering & Essex) Ltd,Home Care - Private Contractors Payment,818.36,0.00,COMMERCIAL SUPPLIER 
 22-11-2022,Adults,Prior Care Ltd_a,Home Care - Private Contractors Payment,818.36,0.00,COMMERCIAL SUPPLIER 
 09-11-2022,Adults,Prestige Care & Support Ltd,Home Care - Private Contractors Payment,818.69,0.00,COMMERCIAL SUPPLIER 
 06-11-2022,Adults,Homestead Care Service,Home Care - Private Contractors Payment,819.02,0.00,COMMERCIAL SUPPLIER 
 09-11-2022,Adults,Prestige Care & Support Ltd,Home Care - Private Contractors Payment,819.02,0.00,COMMERCIAL SUPPLIER 
 15-11-2022,Adults,Cera Care Operations Ltd,Home Care - Private Contractors Payment,819.34,0.00,COMMERCIAL SUPPLIER 
 15-11-2022,Adults,Cera Care Operations Ltd,Home Care - Private Contractors Payment,819.67,0.00,COMMERCIAL SUPPLIER 
 21-11-2022,Adults,John Stanleys Care Agency Ltd,Home Care - Private Contractors Payment,822.95,0.00,COMMERCIAL SUPPLIER 
 15-11-2022,Adults,Cera Care Operations Ltd,Home Care - Private Contractors Payment,824.92,0.00,COMMERCIAL SUPPLIER 
 02-11-2022,Adults,Matrix SCM Ltd,Agency Staff,825.55,0.00,COMMERCIAL SUPPLIER 
 08-11-2022,Adults,Inna Care Ltd,Home Care - Private Contractors Payment,826.56,0.00,COMMERCIAL SUPPLIER 
 08-11-2022,Adults,Inna Care Ltd,Home Care - Private Contractors Payment,826.56,0.00,COMMERCIAL SUPPLIER 
 08-11-2022,Adults,Inna Care Ltd,Home Care - Private Contractors Payment,826.56,0.00,COMMERCIAL SUPPLIER 
 08-11-2022,Adults,Inna Care Ltd,Home Care - Private Contractors Payment,826.56,0.00,COMMERCIAL SUPPLIER 
 08-11-2022,Adults,Inna Care Ltd,Home Care - Private Contractors Payment,826.56,0.00,COMMERCIAL SUPPLIER 
 08-11-2022,Adults,Inna Care Ltd,Home Care - Private Contractors Payment,826.56,0.00,COMMERCIAL SUPPLIER 
 08-11-2022,Adults,Inna Care Ltd,Home Care - Private Contractors Payment,826.56,0.00,COMMERCIAL SUPPLIER 
 09-11-2022,Adults,Outreach Support Services Ltd,Home Care - Private Contractors Payment,826.56,0.00,COMMERCIAL SUPPLIER 
 09-11-2022,Adults,Outreach Support Services Ltd,Home Care - Private Contractors Payment,826.56,0.00,COMMERCIAL SUPPLIER 
 15-11-2022,Adults,Home Sweet Home Care Ltd,Home Care - Private Contractors Payment,826.56,0.00,COMMERCIAL SUPPLIER 
 15-11-2022,Adults,Home Sweet Home Care Ltd,Home Care - Private Contractors Payment,826.56,0.00,COMMERCIAL SUPPLIER 
 15-11-2022,Adults,Home Sweet Home Care Ltd,Home Care - Private Contractors Payment,826.56,0.00,COMMERCIAL SUPPLIER 
 15-11-2022,Adults,Home Sweet Home Care Ltd,Home Care - Private Contractors Payment,826.56,0.00,COMMERCIAL SUPPLIER 
 15-11-2022,Adults,Home Support Services (Havering & Essex) Ltd,Home Care - Private Contractors Payment,826.56,0.00,COMMERCIAL SUPPLIER 
 15-11-2022,Adults,Home Support Services (Havering & Essex) Ltd,Home Care - Private Contractors Payment,826.56,0.00,COMMERCIAL SUPPLIER 
 15-11-2022,Adults,Home Support Services (Havering & Essex) Ltd,Home Care - Private Contractors Payment,826.56,0.00,COMMERCIAL SUPPLIER 
 15-11-2022,Adults,Home Support Services (Havering & Essex) Ltd,Home Care - Private Contractors Payment,826.56,0.00,COMMERCIAL SUPPLIER 
 15-11-2022,Adults,Home Support Services (Havering & Essex) Ltd,Home Care - Private Contractors Payment,826.56,0.00,COMMERCIAL SUPPLIER 
 15-11-2022,Adults,Home Support Services (Havering & Essex) Ltd,Home Care - Private Contractors Payment,826.56,0.00,COMMERCIAL SUPPLIER 
 15-11-2022,Adults,Passion Tree Care Services Ltd,Home Care - Private Contractors Payment,826.56,0.00,COMMERCIAL SUPPLIER 
 16-11-2022,Adults,Lodge Group Care UK Ltd,Home Care - Private Contractors Payment,826.56,0.00,COMMERCIAL SUPPLIER 
 16-11-2022,Adults,Lodge Group Care UK Ltd,Home Care - Private Contractors Payment,826.56,0.00,COMMERCIAL SUPPLIER 
 16-11-2022,Adults,Lodge Group Care UK Ltd,Home Care - Private Contractors Payment,826.56,0.00,COMMERCIAL SUPPLIER 
 16-11-2022,Adults,Lodge Group Care UK Ltd,Home Care - Private Contractors Payment,826.56,0.00,COMMERCIAL SUPPLIER 
 16-11-2022,Adults,Lodge Group Care UK Ltd,Home Care - Private Contractors Payment,826.56,0.00,COMMERCIAL SUPPLIER 
 16-11-2022,Adults,Lodge Group Care UK Ltd,Home Care - Private Contractors Payment,826.56,0.00,COMMERCIAL SUPPLIER 
 16-11-2022,Adults,Lodge Group Care UK Ltd,Home Care - Private Contractors Payment,826.56,0.00,COMMERCIAL SUPPLIER 
 16-11-2022,Adults,Lodge Group Care UK Ltd,Home Care - Private Contractors Payment,826.56,0.00,COMMERCIAL SUPPLIER 
 16-11-2022,Adults,Lodge Group Care UK Ltd,Home Care - Private Contractors Payment,826.56,0.00,COMMERCIAL SUPPLIER 
 16-11-2022,Adults,Lodge Group Care UK Ltd,Home Care - Private Contractors Payment,826.56,0.00,COMMERCIAL SUPPLIER 
 16-11-2022,Adults,Lodge Group Care UK Ltd,Home Care - Private Contractors Payment,826.56,0.00,COMMERCIAL SUPPLIER 
 17-11-2022,Adults,Hospiva Care & Associates Agency Ltd_a,Home Care - Private Contractors Payment,826.56,0.00,COMMERCIAL SUPPLIER 
 23-11-2022,Adults,Rosemont Care Limited,Home Care - Private Contractors Payment,826.56,0.00,COMMERCIAL SUPPLIER 
 23-11-2022,Adults,Rosemont Care Limited,Home Care - Private Contractors Payment,826.56,0.00,COMMERCIAL SUPPLIER 
 23-11-2022,Adults,Rosemont Care Limited,Home Care - Private Contractors Payment,826.56,0.00,COMMERCIAL SUPPLIER 
 15-11-2022,Adults,Home Sweet Home Care Ltd,Home Care - Private Contractors Payment,827.22,0.00,COMMERCIAL SUPPLIER 
 16-11-2022,Adults,Lodge Group Care UK Ltd,Home Care - Private Contractors Payment,827.22,0.00,COMMERCIAL SUPPLIER 
 15-11-2022,Adults,Cera Care Operations Ltd,Home Care - Private Contractors Payment,827.54,0.00,COMMERCIAL SUPPLIER 
 16-11-2022,Adults,Lodge Group Care UK Ltd,Home Care - Private Contractors Payment,827.54,0.00,COMMERCIAL SUPPLIER 
 16-11-2022,Adults,Lodge Group Care UK Ltd,Home Care - Private Contractors Payment,827.54,0.00,COMMERCIAL SUPPLIER 
 11-11-2022,Adults,Morepower Ltd t/a Aqs Homecare,Home Care - Private Contractors Payment,828.20,0.00,COMMERCIAL SUPPLIER 
 11-11-2022,Adults,Morepower Ltd t/a Aqs Homecare,Home Care - Private Contractors Payment,828.86,0.00,COMMERCIAL SUPPLIER 
 15-11-2022,Adults,Home Support Services (Havering & Essex) Ltd,Home Care - Private Contractors Payment,828.86,0.00,COMMERCIAL SUPPLIER 
 16-11-2022,Adults,Lodge Group Care UK Ltd,Home Care - Private Contractors Payment,828.86,0.00,COMMERCIAL SUPPLIER 
 02-11-2022,Adults,Matrix SCM Ltd,Agency Staff,829.44,0.00,COMMERCIAL SUPPLIER 
 09-11-2022,Adults,Matrix SCM Ltd,Agency Staff,829.44,0.00,COMMERCIAL SUPPLIER 
 30-11-2022,Adults,Matrix SCM Ltd,Agency Staff,829.44,0.00,COMMERCIAL SUPPLIER 
 16-11-2022,Adults,Lodge Group Care UK Ltd,Home Care - Private Contractors Payment,829.51,0.00,COMMERCIAL SUPPLIER 
 15-11-2022,Adults,Quality Healthcare Solutions Ltd t/a Kare Plus Romford,Home Care - Private Contractors Payment,829.84,0.00,COMMERCIAL SUPPLIER 
 15-11-2022,Adults,Home Sweet Home Care Ltd,Home Care - Private Contractors Payment,830.17,0.00,COMMERCIAL SUPPLIER 
 15-11-2022,Adults,Cera Care Operations Ltd,Home Care - Private Contractors Payment,830.50,0.00,COMMERCIAL SUPPLIER 
 16-11-2022,Adults,Lodge Group Care UK Ltd,Home Care - Private Contractors Payment,830.50,0.00,COMMERCIAL SUPPLIER 
 09-11-2022,Adults,Anytime Care 2020_a,Home Care - Private Contractors Payment,830.82,0.00,COMMERCIAL SUPPLIER 
 15-11-2022,Adults,Cera Care Operations Ltd,Home Care - Private Contractors Payment,830.82,0.00,COMMERCIAL SUPPLIER 
 15-11-2022,Adults,Home Support Services (Havering & Essex) Ltd,Home Care - Private Contractors Payment,830.82,0.00,COMMERCIAL SUPPLIER 
 16-11-2022,Adults,Lodge Group Care UK Ltd,Home Care - Private Contractors Payment,831.48,0.00,COMMERCIAL SUPPLIER 
 06-11-2022,Adults,Westminster Homecare Ltd_a,Home Care - Private Contractors Payment,831.81,0.00,COMMERCIAL SUPPLIER 
 09-11-2022,Adults,Prestige Care & Support Ltd,Home Care - Private Contractors Payment,832.14,0.00,COMMERCIAL SUPPLIER 
 16-11-2022,Adults,Lodge Group Care UK Ltd,Home Care - Private Contractors Payment,833.78,0.00,COMMERCIAL SUPPLIER 
 11-11-2022,Adults,Morepower Ltd t/a Aqs Homecare,Home Care - Private Contractors Payment,834.10,0.00,COMMERCIAL SUPPLIER 
 09-11-2022,Adults,Prestige Care & Support Ltd,Home Care - Private Contractors Payment,834.76,0.00,COMMERCIAL SUPPLIER 
 06-11-2022,Adults,Homestead Care Service,Home Care - Private Contractors Payment,835.09,0.00,COMMERCIAL SUPPLIER 
 16-11-2022,Adults,Lodge Group Care UK Ltd,Home Care - Private Contractors Payment,835.42,0.00,COMMERCIAL SUPPLIER 
 15-11-2022,Adults,Home Support Services (Havering & Essex) Ltd,Home Care - Private Contractors Payment,836.40,0.00,COMMERCIAL SUPPLIER 
 16-11-2022,Adults,Lodge Group Care UK Ltd,Home Care - Private Contractors Payment,836.40,0.00,COMMERCIAL SUPPLIER 
 16-11-2022,Adults,Lodge Group Care UK Ltd,Home Care - Private Contractors Payment,837.06,0.00,COMMERCIAL SUPPLIER 
 15-11-2022,Adults,Home Sweet Home Care Ltd,Home Care - Private Contractors Payment,837.38,0.00,COMMERCIAL SUPPLIER 
 06-11-2022,Adults,Homestead Care Service,Home Care - Private Contractors Payment,839.68,0.00,COMMERCIAL SUPPLIER 
 11-11-2022,Adults,Morepower Ltd t/a Aqs Homecare,Home Care - Private Contractors Payment,839.68,0.00,COMMERCIAL SUPPLIER 
 11-11-2022,Adults,Morepower Ltd t/a Aqs Homecare,Home Care - Private Contractors Payment,840.34,0.00,COMMERCIAL SUPPLIER 
 11-11-2022,Adults,Morepower Ltd t/a Aqs Homecare,Home Care - Private Contractors Payment,840.66,0.00,COMMERCIAL SUPPLIER 
 11-11-2022,Adults,Morepower Ltd t/a Aqs Homecare,Home Care - Private Contractors Payment,841.32,0.00,COMMERCIAL SUPPLIER 
 15-11-2022,Adults,Home Support Services (Havering & Essex) Ltd,Home Care - Private Contractors Payment,841.32,0.00,COMMERCIAL SUPPLIER 
 11-11-2022,Adults,Morepower Ltd t/a Aqs Homecare,Home Care - Private Contractors Payment,842.63,0.00,COMMERCIAL SUPPLIER 
 09-11-2022,Adults,Matrix SCM Ltd,Agency Staff,844.58,0.00,COMMERCIAL SUPPLIER 
 16-11-2022,Adults,Matrix SCM Ltd,Agency Staff,844.58,0.00,COMMERCIAL SUPPLIER 
 23-11-2022,Adults,Matrix SCM Ltd,Agency Staff,844.58,0.00,COMMERCIAL SUPPLIER 
 23-11-2022,Adults,Matrix SCM Ltd,Agency Staff,844.58,0.00,COMMERCIAL SUPPLIER 
 30-11-2022,Adults,Matrix SCM Ltd,Agency Staff,844.58,0.00,COMMERCIAL SUPPLIER 
 16-11-2022,Adults,Lodge Group Care UK Ltd,Home Care - Private Contractors Payment,844.60,0.00,COMMERCIAL SUPPLIER 
 16-11-2022,Adults,Lodge Group Care UK Ltd,Home Care - Private Contractors Payment,844.60,0.00,COMMERCIAL SUPPLIER 
 16-11-2022,Adults,Lodge Group Care UK Ltd,Home Care - Private Contractors Payment,846.24,0.00,COMMERCIAL SUPPLIER 
 30-11-2022,Adults,Matrix SCM Ltd,Agency Staff,846.30,0.00,COMMERCIAL SUPPLIER 
 09-11-2022,Adults,Matrix SCM Ltd,Agency Staff,847.36,0.00,COMMERCIAL SUPPLIER 
 16-11-2022,Adults,Matrix SCM Ltd,Agency Staff,847.36,0.00,COMMERCIAL SUPPLIER 
 30-11-2022,Adults,Matrix SCM Ltd,Agency Staff,847.36,0.00,COMMERCIAL SUPPLIER 
 16-11-2022,Adults,Lodge Group Care UK Ltd,Home Care - Private Contractors Payment,847.88,0.00,COMMERCIAL SUPPLIER 
 17-11-2022,Adults,Hospiva Care & Associates Agency Ltd_a,Home Care - Private Contractors Payment,847.88,0.00,COMMERCIAL SUPPLIER 
 15-11-2022,Adults,Home Sweet Home Care Ltd,Home Care - Private Contractors Payment,849.19,0.00,COMMERCIAL SUPPLIER 
 16-11-2022,Adults,Matrix SCM Ltd,Agency Staff,852.48,0.00,COMMERCIAL SUPPLIER 
 15-11-2022,Adults,Cera Care Operations Ltd,Home Care - Private Contractors Payment,853.46,0.00,COMMERCIAL SUPPLIER 
 16-11-2022,Adults,Lodge Group Care UK Ltd,Home Care - Private Contractors Payment,853.78,0.00,COMMERCIAL SUPPLIER 
 18-11-2022,Adults,Topaz Care and Support Co Ltd,Supported Other Accommodation - Private Contractors Payment,854.20,0.00,COMMERCIAL SUPPLIER 
 06-11-2022,Adults,Eastway Care Ltd_a,Daycare - Private Contractors Payment,860.00,0.00,COMMERCIAL SUPPLIER 
 06-11-2022,Adults,Eastway Care Ltd_a,Daycare - Private Contractors Payment,860.00,0.00,COMMERCIAL SUPPLIER 
 16-11-2022,Adults,Lodge Group Care UK Ltd,Home Care - Private Contractors Payment,862.97,0.00,COMMERCIAL SUPPLIER 
 07-11-2022,Adults,R G Care Ltd ,Daycare - Private Contractors Payment,864.00,0.00,COMMERCIAL SUPPLIER 
 07-11-2022,Adults,R G Care Ltd ,Daycare - Private Contractors Payment,864.00,0.00,COMMERCIAL SUPPLIER 
 07-11-2022,Adults,KJD Care Limited,Home Care - Private Contractors Payment,865.92,0.00,INDIVIDUALS 
 08-11-2022,Adults,KJD Care Limited,Home Care - Private Contractors Payment,865.92,0.00,INDIVIDUALS 
 10-11-2022,Adults,Carers Trust East Midlands,Home Care - Private Contractors Payment,865.92,0.00,COMMERCIAL SUPPLIER 
 16-11-2022,Adults,London Care Plc_a,Home Care - Private Contractors Payment,865.92,0.00,COMMERCIAL SUPPLIER 
 16-11-2022,Adults,Lodge Group Care UK Ltd,Home Care - Private Contractors Payment,865.92,0.00,COMMERCIAL SUPPLIER 
 16-11-2022,Adults,Lodge Group Care UK Ltd,Home Care - Private Contractors Payment,865.92,0.00,COMMERCIAL SUPPLIER 
 21-11-2022,Adults,John Stanleys Care Agency Ltd,Home Care - Private Contractors Payment,865.92,0.00,COMMERCIAL SUPPLIER 
 06-11-2022,Adults,Homestead Care Service,Home Care - Private Contractors Payment,867.23,0.00,COMMERCIAL SUPPLIER 
 15-11-2022,Adults,Home Support Services (Havering & Essex) Ltd,Home Care - Private Contractors Payment,867.56,0.00,COMMERCIAL SUPPLIER 
 15-11-2022,Adults,Cera Care Operations Ltd,Home Care - Private Contractors Payment,868.22,0.00,COMMERCIAL SUPPLIER 
 15-11-2022,Adults,Home Sweet Home Care Ltd,Home Care - Private Contractors Payment,868.54,0.00,COMMERCIAL SUPPLIER 
 24-11-2022,Adults,Cleanlifeuk,Home Care - Private Contractors Payment,870.00,0.00,COMMERCIAL SUPPLIER 
 09-11-2022,Adults,Prestige Care & Support Ltd,Home Care - Private Contractors Payment,871.50,0.00,COMMERCIAL SUPPLIER 
 11-11-2022,Adults,Care-Away Ltd T/A Care Support,Home Care - Private Contractors Payment,873.60,0.00,COMMERCIAL SUPPLIER 
 15-11-2022,Adults,Home Sweet Home Care Ltd,Home Care - Private Contractors Payment,874.45,0.00,COMMERCIAL SUPPLIER 
 16-11-2022,Adults,Lodge Group Care UK Ltd,Home Care - Private Contractors Payment,874.45,0.00,COMMERCIAL SUPPLIER 
 16-11-2022,Adults,Lodge Group Care UK Ltd,Home Care - Private Contractors Payment,874.78,0.00,COMMERCIAL SUPPLIER 
 06-11-2022,Adults,Homestead Care Service,Home Care - Private Contractors Payment,876.09,0.00,COMMERCIAL SUPPLIER 
 06-11-2022,Adults,Homestead Care Service,Home Care - Private Contractors Payment,877.07,0.00,COMMERCIAL SUPPLIER 
 16-11-2022,Adults,Lodge Group Care UK Ltd,Home Care - Private Contractors Payment,877.73,0.00,COMMERCIAL SUPPLIER 
 15-11-2022,Adults,Quality Healthcare Solutions Ltd t/a Kare Plus Romford,Home Care - Private Contractors Payment,878.06,0.00,COMMERCIAL SUPPLIER 
 11-11-2022,Adults,Morepower Ltd t/a Aqs Homecare,Home Care - Private Contractors Payment,880.02,0.00,COMMERCIAL SUPPLIER 
 16-11-2022,Adults,Lodge Group Care UK Ltd,Home Care - Private Contractors Payment,884.62,0.00,COMMERCIAL SUPPLIER 
 18-11-2022,Adults,Clover Cottage Ltd,Residential Placements - Private Contractors Payment,885.71,0.00,COMMERCIAL SUPPLIER 
 11-11-2022,Adults,Morepower Ltd t/a Aqs Homecare,Home Care - Private Contractors Payment,887.24,0.00,COMMERCIAL SUPPLIER 
 06-11-2022,Adults,Homestead Care Service,Home Care - Private Contractors Payment,888.88,0.00,COMMERCIAL SUPPLIER 
 15-11-2022,Adults,Home Sweet Home Care Ltd,Home Care - Private Contractors Payment,892.16,0.00,COMMERCIAL SUPPLIER 
 11-11-2022,Adults,Morepower Ltd t/a Aqs Homecare,Home Care - Private Contractors Payment,895.77,0.00,COMMERCIAL SUPPLIER 
 18-11-2022,Adults,Fresh Tree Care Services,Supported Other Accommodation - Private Contractors Payment,896.00,0.00,COMMERCIAL SUPPLIER 
 09-11-2022,Adults,Prestige Care & Support Ltd,Home Care - Private Contractors Payment,896.42,0.00,COMMERCIAL SUPPLIER 
 15-11-2022,Adults,Home Support Services (Havering & Essex) Ltd,Home Care - Private Contractors Payment,897.08,0.00,COMMERCIAL SUPPLIER 
 15-11-2022,Adults,Home Support Services (Havering & Essex) Ltd,Home Care - Private Contractors Payment,897.41,0.00,COMMERCIAL SUPPLIER 
 15-11-2022,Adults,Home Sweet Home Care Ltd,Home Care - Private Contractors Payment,897.74,0.00,COMMERCIAL SUPPLIER 
 16-11-2022,Adults,Lodge Group Care UK Ltd,Home Care - Private Contractors Payment,899.05,0.00,COMMERCIAL SUPPLIER 
 19-11-2022,Adults,Jaktol Day Centers,Daycare - Private Contractors Payment,899.88,0.00,COMMERCIAL SUPPLIER 
 15-11-2022,Adults,Cera Care Operations Ltd,Home Care - Private Contractors Payment,901.34,0.00,COMMERCIAL SUPPLIER 
 18-11-2022,Adults,Pathways Care Group Ltd,Residential Placements - Private Contractors Payment,904.04,0.00,COMMERCIAL SUPPLIER 
 08-11-2022,Adults,Inna Care Ltd,Home Care - Private Contractors Payment,905.28,0.00,COMMERCIAL SUPPLIER 
 09-11-2022,Adults,Prestige Care & Support Ltd,Home Care - Private Contractors Payment,905.28,0.00,COMMERCIAL SUPPLIER 
 09-11-2022,Adults,Prestige Care & Support Ltd,Home Care - Private Contractors Payment,905.28,0.00,COMMERCIAL SUPPLIER 
 09-11-2022,Adults,Prestige Care & Support Ltd,Home Care - Private Contractors Payment,905.28,0.00,COMMERCIAL SUPPLIER 
 15-11-2022,Adults,Home Sweet Home Care Ltd,Home Care - Private Contractors Payment,905.61,0.00,COMMERCIAL SUPPLIER 
 15-11-2022,Adults,Home Support Services (Havering & Essex) Ltd,Home Care - Private Contractors Payment,906.26,0.00,COMMERCIAL SUPPLIER 
 15-11-2022,Adults,Home Support Services (Havering & Essex) Ltd,Home Care - Private Contractors Payment,907.58,0.00,COMMERCIAL SUPPLIER 
 11-11-2022,Adults,Morepower Ltd t/a Aqs Homecare,Home Care - Private Contractors Payment,907.90,0.00,COMMERCIAL SUPPLIER 
 21-11-2022,Adults,John Stanleys Care Agency Ltd,Home Care - Private Contractors Payment,910.53,0.00,COMMERCIAL SUPPLIER 
 08-11-2022,Adults,Tapestry_a.,Daycare - Private Contractors Payment,912.00,0.00,COMMERCIAL SUPPLIER 
 08-11-2022,Adults,Tapestry_a.,Daycare - Private Contractors Payment,912.00,0.00,COMMERCIAL SUPPLIER 
 06-11-2022,Adults,Homestead Care Service,Home Care - Private Contractors Payment,913.15,0.00,COMMERCIAL SUPPLIER 
 06-11-2022,Adults,Homestead Care Service,Home Care - Private Contractors Payment,914.46,0.00,COMMERCIAL SUPPLIER 
 16-11-2022,Adults,Lodge Group Care UK Ltd,Home Care - Private Contractors Payment,915.12,0.00,COMMERCIAL SUPPLIER 
 15-11-2022,Adults,Home Sweet Home Care Ltd,Home Care - Private Contractors Payment,917.09,0.00,COMMERCIAL SUPPLIER 
 18-11-2022,Adults,Outlook Care - 4 Peel Way,Supported Other Accommodation - Private Contractors Payment,917.60,0.00,COMMERCIAL SUPPLIER 
 18-11-2022,Adults,Omega Elifar Ltd,Residential Placements - Private Contractors Payment,918.40,0.00,COMMERCIAL SUPPLIER 
 09-11-2022,Adults,Prestige Care & Support Ltd,Home Care - Private Contractors Payment,919.38,0.00,COMMERCIAL SUPPLIER 
 09-11-2022,Adults,Prestige Care & Support Ltd,Home Care - Private Contractors Payment,919.71,0.00,COMMERCIAL SUPPLIER 
 15-11-2022,Adults,Cera Care Operations Ltd,Home Care - Private Contractors Payment,921.68,0.00,COMMERCIAL SUPPLIER 
 16-11-2022,Adults,Matrix SCM Ltd,Agency Staff,926.23,0.00,COMMERCIAL SUPPLIER 
 06-11-2022,Adults,Homestead Care Service,Home Care - Private Contractors Payment,927.26,0.00,COMMERCIAL SUPPLIER 
 09-11-2022,Adults,Anytime Care 2020_a,Home Care - Private Contractors Payment,927.58,0.00,COMMERCIAL SUPPLIER 
 15-11-2022,Adults,Cera Care Operations Ltd,Home Care - Private Contractors Payment,928.57,0.00,COMMERCIAL SUPPLIER 
 23-11-2022,Adults,Action First Assessments Ltd,Private Contractors Payment - Other,930.00,0.00,COMMERCIAL SUPPLIER 
 15-11-2022,Adults,Home Support Services (Havering & Essex) Ltd,Home Care - Private Contractors Payment,931.52,0.00,COMMERCIAL SUPPLIER 
 10-11-2022,Adults,Care-Away Ltd T/A Care Support,Home Care - Private Contractors Payment,931.84,0.00,COMMERCIAL SUPPLIER 
 10-11-2022,Adults,Care-Away Ltd T/A Care Support,Home Care - Private Contractors Payment,931.84,0.00,COMMERCIAL SUPPLIER 
 10-11-2022,Adults,Care-Away Ltd T/A Care Support,Home Care - Private Contractors Payment,931.84,0.00,COMMERCIAL SUPPLIER 
 10-11-2022,Adults,Care-Away Ltd T/A Care Support,Home Care - Private Contractors Payment,931.84,0.00,COMMERCIAL SUPPLIER 
 10-11-2022,Adults,Care-Away Ltd T/A Care Support,Home Care - Private Contractors Payment,931.84,0.00,COMMERCIAL SUPPLIER 
 10-11-2022,Adults,Care-Away Ltd T/A Care Support,Home Care - Private Contractors Payment,931.84,0.00,COMMERCIAL SUPPLIER 
 10-11-2022,Adults,Care-Away Ltd T/A Care Support,Home Care - Private Contractors Payment,931.84,0.00,COMMERCIAL SUPPLIER 
 10-11-2022,Adults,Care-Away Ltd T/A Care Support,Home Care - Private Contractors Payment,931.84,0.00,COMMERCIAL SUPPLIER 
 10-11-2022,Adults,Care-Away Ltd T/A Care Support,Home Care - Private Contractors Payment,931.84,0.00,COMMERCIAL SUPPLIER 
 15-11-2022,Adults,Home Support Services (Havering & Essex) Ltd,Home Care - Private Contractors Payment,933.49,0.00,COMMERCIAL SUPPLIER 
 09-11-2022,Adults,Prestige Care & Support Ltd,Home Care - Private Contractors Payment,933.82,0.00,COMMERCIAL SUPPLIER 
 15-11-2022,Adults,Cera Care Operations Ltd,Home Care - Private Contractors Payment,936.44,0.00,COMMERCIAL SUPPLIER 
 09-11-2022,Adults,Anytime Care 2020_a,Home Care - Private Contractors Payment,937.42,0.00,COMMERCIAL SUPPLIER 
 07-11-2022,Adults,KJD Care Limited,Home Care - Private Contractors Payment,944.64,0.00,INDIVIDUALS 
 15-11-2022,Adults,Passion Tree Care Services Ltd,Home Care - Private Contractors Payment,944.64,0.00,COMMERCIAL SUPPLIER 
 16-11-2022,Adults,Lodge Group Care UK Ltd,Home Care - Private Contractors Payment,945.30,0.00,COMMERCIAL SUPPLIER 
 17-11-2022,Adults,Hospiva Care & Associates Agency Ltd_a,Home Care - Private Contractors Payment,947.59,0.00,COMMERCIAL SUPPLIER 
 15-11-2022,Adults,Personal Information � Redacted,Direct Payments Income,947.80,0.00,INDIVIDUALS 
 15-11-2022,Adults,Personal Information � Redacted,Direct Payments Income,947.80,0.00,INDIVIDUALS 
 15-11-2022,Adults,Personal Information � Redacted,Direct Payments Income,947.80,0.00,INDIVIDUALS 
 15-11-2022,Adults,Personal Information � Redacted,Direct Payments Income,947.80,0.00,INDIVIDUALS 
 21-11-2022,Adults,John Stanleys Care Agency Ltd,Home Care - Private Contractors Payment,950.22,0.00,COMMERCIAL SUPPLIER 
 09-11-2022,Adults,Prestige Care & Support Ltd,Home Care - Private Contractors Payment,952.84,0.00,COMMERCIAL SUPPLIER 
 09-11-2022,Adults,Prestige Care & Support Ltd,Home Care - Private Contractors Payment,954.15,0.00,COMMERCIAL SUPPLIER 
 18-11-2022,Adults,Masumin Ltd t/s Abbeleigh House,Respite Care - Private Contractors Payment,954.29,0.00,COMMERCIAL SUPPLIER 
 06-11-2022,Adults,Homestead Care Service,Home Care - Private Contractors Payment,954.48,0.00,COMMERCIAL SUPPLIER 
 06-11-2022,Adults,Homestead Care Service,Home Care - Private Contractors Payment,954.48,0.00,COMMERCIAL SUPPLIER 
 15-11-2022,Adults,Home Sweet Home Care Ltd,Home Care - Private Contractors Payment,954.48,0.00,COMMERCIAL SUPPLIER 
 15-11-2022,Adults,Cera Care Operations Ltd,Home Care - Private Contractors Payment,957.43,0.00,COMMERCIAL SUPPLIER 
 06-11-2022,Adults,Homestead Care Service,Home Care - Private Contractors Payment,958.42,0.00,COMMERCIAL SUPPLIER 
 15-11-2022,Adults,Cera Care Operations Ltd,Home Care - Private Contractors Payment,958.42,0.00,COMMERCIAL SUPPLIER 
 16-11-2022,Adults,Lodge Group Care UK Ltd,Home Care - Private Contractors Payment,959.40,0.00,COMMERCIAL SUPPLIER 
 18-11-2022,Adults,2 Peel Way - Outlook Care,Supported Other Accommodation - Private Contractors Payment,963.92,0.00,NON COMMERCIAL SUPPLIER 
 06-11-2022,Adults,Homestead Care Service,Home Care - Private Contractors Payment,964.32,0.00,COMMERCIAL SUPPLIER 
 07-11-2022,Adults,KJD Care Limited,Home Care - Private Contractors Payment,964.32,0.00,INDIVIDUALS 
 08-11-2022,Adults,KJD Care Limited,Home Care - Private Contractors Payment,964.32,0.00,INDIVIDUALS 
 08-11-2022,Adults,Premier Carewaiting Ltd,Home Care - Private Contractors Payment,964.32,0.00,COMMERCIAL SUPPLIER 
 09-11-2022,Adults,Outreach Support Services Ltd,Home Care - Private Contractors Payment,964.32,0.00,COMMERCIAL SUPPLIER 
 18-11-2022,Adults,IECC Care,Supported Other Accommodation - Private Contractors Payment,964.32,0.00,COMMERCIAL SUPPLIER 
 10-11-2022,Adults,Care-Away Ltd T/A Care Support,Home Care - Private Contractors Payment,965.12,0.00,COMMERCIAL SUPPLIER 
 10-11-2022,Adults,Care-Away Ltd T/A Care Support,Home Care - Private Contractors Payment,965.12,0.00,COMMERCIAL SUPPLIER 
 10-11-2022,Adults,Care-Away Ltd T/A Care Support,Home Care - Private Contractors Payment,965.12,0.00,COMMERCIAL SUPPLIER 
 18-11-2022,Adults,HC-One Oval Ltd - The Hornchurch Nursing Centre,Nursing Homes - Private Contractors Payment,968.57,0.00,COMMERCIAL SUPPLIER 
 06-11-2022,Adults,Homestead Care Service,Home Care - Private Contractors Payment,968.58,0.00,COMMERCIAL SUPPLIER 
 06-11-2022,Adults,Homestead Care Service,Home Care - Private Contractors Payment,969.57,0.00,COMMERCIAL SUPPLIER 
 06-11-2022,Adults,Homestead Care Service,Home Care - Private Contractors Payment,970.22,0.00,COMMERCIAL SUPPLIER 
 15-11-2022,Adults,Home Support Services (Havering & Essex) Ltd,Home Care - Private Contractors Payment,974.16,0.00,COMMERCIAL SUPPLIER 
 15-11-2022,Adults,Home Support Services (Havering & Essex) Ltd,Home Care - Private Contractors Payment,974.49,0.00,COMMERCIAL SUPPLIER 
 29-11-2022,Adults,Havering Care Homes Ltd t/a Abbscross Nursing Home,Nursing Homes - Private Contractors Payment,975.00,0.00,COMMERCIAL SUPPLIER 
 21-11-2022,Adults,John Stanleys Care Agency Ltd,Home Care - Private Contractors Payment,977.44,0.00,COMMERCIAL SUPPLIER 
 06-11-2022,Adults,Vibrance Outreach,Daycare - Private Contractors Payment,979.44,0.00,COMMERCIAL SUPPLIER 
 16-11-2022,Adults,Lodge Group Care UK Ltd,Home Care - Private Contractors Payment,979.74,0.00,COMMERCIAL SUPPLIER 
 06-11-2022,Adults,Homestead Care Service,Home Care - Private Contractors Payment,984.00,0.00,COMMERCIAL SUPPLIER 
 07-11-2022,Adults,KJD Care Limited,Home Care - Private Contractors Payment,984.00,0.00,INDIVIDUALS 
 08-11-2022,Adults,Inna Care Ltd,Home Care - Private Contractors Payment,984.00,0.00,COMMERCIAL SUPPLIER 
 21-11-2022,Adults,John Stanleys Care Agency Ltd,Home Care - Private Contractors Payment,984.00,0.00,COMMERCIAL SUPPLIER 
 09-11-2022,Adults,Prestige Care & Support Ltd,Home Care - Private Contractors Payment,984.33,0.00,COMMERCIAL SUPPLIER 
 15-11-2022,Adults,Home Sweet Home Care Ltd,Home Care - Private Contractors Payment,984.33,0.00,COMMERCIAL SUPPLIER 
 06-11-2022,Adults,Homestead Care Service,Home Care - Private Contractors Payment,984.98,0.00,COMMERCIAL SUPPLIER 
 06-11-2022,Adults,Homestead Care Service,Home Care - Private Contractors Payment,985.64,0.00,COMMERCIAL SUPPLIER 
 15-11-2022,Adults,Cera Care Operations Ltd,Home Care - Private Contractors Payment,985.64,0.00,COMMERCIAL SUPPLIER 
 18-11-2022,Adults,Willows Care Home - Churchgate Healthcare (Willows) Ltd,Respite Care - Private Contractors Payment,985.71,0.00,COMMERCIAL SUPPLIER 
 15-11-2022,Adults,Cera Care Operations Ltd,Home Care - Private Contractors Payment,987.61,0.00,COMMERCIAL SUPPLIER 
 09-11-2022,Adults,Matrix SCM Ltd,Agency Staff,991.30,0.00,COMMERCIAL SUPPLIER 
 18-11-2022,Adults,Ebony Health Care Services Limited,Supported Other Accommodation - Private Contractors Payment,992.24,0.00,COMMERCIAL SUPPLIER 
 06-11-2022,Adults,Homestead Care Service,Home Care - Private Contractors Payment,993.84,0.00,COMMERCIAL SUPPLIER 
 15-11-2022,Adults,Home Sweet Home Care Ltd,Home Care - Private Contractors Payment,995.15,0.00,COMMERCIAL SUPPLIER 
 06-11-2022,Adults,Homestead Care Service,Home Care - Private Contractors Payment,995.48,0.00,COMMERCIAL SUPPLIER 
 15-11-2022,Adults,Home Sweet Home Care Ltd,Home Care - Private Contractors Payment,998.10,0.00,COMMERCIAL SUPPLIER 
 30-11-2022,Adults,Matrix SCM Ltd,Agency Staff,999.92,0.00,COMMERCIAL SUPPLIER 
 18-11-2022,Adults,Coastal Supported Living CIC,Supported Other Accommodation - Private Contractors Payment,1002.56,0.00,COMMERCIAL SUPPLIER 
 06-11-2022,Adults,Homestead Care Service,Home Care - Private Contractors Payment,1003.68,0.00,COMMERCIAL SUPPLIER 
 15-11-2022,Adults,Home Sweet Home Care Ltd,Home Care - Private Contractors Payment,1004.34,0.00,COMMERCIAL SUPPLIER 
 06-11-2022,Adults,Homestead Care Service,Home Care - Private Contractors Payment,1006.96,0.00,COMMERCIAL SUPPLIER 
 18-11-2022,Adults,Independent Community Support Ltd t/a Wingletye Lodge ,Supported Other Accommodation - Private Contractors Payment,1008.00,0.00,COMMERCIAL SUPPLIER 
 18-11-2022,Adults,KJD Care Limited,Supported Other Accommodation - Private Contractors Payment,1008.00,0.00,INDIVIDUALS 
 23-11-2022,Adults,Matrix SCM Ltd,Agency Staff,1008.00,0.00,COMMERCIAL SUPPLIER 
 09-11-2022,Adults,Prestige Care & Support Ltd,Home Care - Private Contractors Payment,1008.27,0.00,COMMERCIAL SUPPLIER 
 15-11-2022,Adults,Home Sweet Home Care Ltd,Home Care - Private Contractors Payment,1008.93,0.00,COMMERCIAL SUPPLIER 
 16-11-2022,Adults,Matrix SCM Ltd,Agency Staff,1010.29,0.00,COMMERCIAL SUPPLIER 
 16-11-2022,Adults,Matrix SCM Ltd,Agency Staff,1011.96,0.00,COMMERCIAL SUPPLIER 
 03-11-2022,Adults,Anglian Water Business,Water And Sewerage,1012.80,0.00,COMMERCIAL SUPPLIER 
 21-11-2022,Adults,John Stanleys Care Agency Ltd,Home Care - Private Contractors Payment,1012.86,0.00,COMMERCIAL SUPPLIER 
 15-11-2022,Adults,Home Sweet Home Care Ltd,Home Care - Private Contractors Payment,1014.18,0.00,COMMERCIAL SUPPLIER 
 10-11-2022,Adults,Care-Away Ltd T/A Care Support,Home Care - Private Contractors Payment,1015.04,0.00,COMMERCIAL SUPPLIER 
 06-11-2022,Adults,Homestead Care Service,Home Care - Private Contractors Payment,1017.78,0.00,COMMERCIAL SUPPLIER 
 18-11-2022,Adults,Lukka Care Homes Ltd - Ravenscourt,Nursing Care Income,1018.99,0.00,COMMERCIAL SUPPLIER 
 06-11-2022,Adults,Homestead Care Service,Home Care - Private Contractors Payment,1020.08,0.00,COMMERCIAL SUPPLIER 
 15-11-2022,Adults,Home Support Services (Havering & Essex) Ltd,Home Care - Private Contractors Payment,1020.08,0.00,COMMERCIAL SUPPLIER 
 11-11-2022,Adults,Morepower Ltd t/a Aqs Homecare,Home Care - Private Contractors Payment,1021.72,0.00,COMMERCIAL SUPPLIER 
 07-11-2022,Adults,KJD Care Limited,Home Care - Private Contractors Payment,1023.36,0.00,INDIVIDUALS 
 08-11-2022,Adults,KJD Care Limited,Home Care - Private Contractors Payment,1023.36,0.00,INDIVIDUALS 
 10-11-2022,Adults,IJB Healthcare Ltd,Home Care - Private Contractors Payment,1023.36,0.00,COMMERCIAL SUPPLIER 
 15-11-2022,Adults,Home Support Services (Havering & Essex) Ltd,Home Care - Private Contractors Payment,1023.36,0.00,COMMERCIAL SUPPLIER 
 15-11-2022,Adults,Home Support Services (Havering & Essex) Ltd,Home Care - Private Contractors Payment,1023.36,0.00,COMMERCIAL SUPPLIER 
 15-11-2022,Adults,Home Support Services (Havering & Essex) Ltd,Home Care - Private Contractors Payment,1023.36,0.00,COMMERCIAL SUPPLIER 
 16-11-2022,Adults,Amachyck Care Solution Ltd.,Home Care - Private Contractors Payment,1023.36,0.00,COMMERCIAL SUPPLIER 
 16-11-2022,Adults,Lodge Group Care UK Ltd,Home Care - Private Contractors Payment,1023.36,0.00,COMMERCIAL SUPPLIER 
 16-11-2022,Adults,Lodge Group Care UK Ltd,Home Care - Private Contractors Payment,1023.36,0.00,COMMERCIAL SUPPLIER 
 23-11-2022,Adults,Matrix SCM Ltd,Agency Staff,1024.09,0.00,COMMERCIAL SUPPLIER 
 15-11-2022,Adults,Home Sweet Home Care Ltd,Home Care - Private Contractors Payment,1024.67,0.00,COMMERCIAL SUPPLIER 
 23-11-2022,Adults,Trinity London Care Ltd,Daycare - Private Contractors Payment,1025.20,0.00,COMMERCIAL SUPPLIER 
 23-11-2022,Adults,Trinity London Care Ltd,Daycare - Private Contractors Payment,1025.20,0.00,COMMERCIAL SUPPLIER 
 23-11-2022,Adults,Trinity London Care Ltd,Daycare - Private Contractors Payment,1025.20,0.00,COMMERCIAL SUPPLIER 
 09-11-2022,Adults,Prestige Care & Support Ltd,Home Care - Private Contractors Payment,1025.33,0.00,COMMERCIAL SUPPLIER 
 06-11-2022,Adults,Homestead Care Service,Home Care - Private Contractors Payment,1025.98,0.00,COMMERCIAL SUPPLIER 
 08-11-2022,Adults,Tapestry_a.,Daycare - Private Contractors Payment,1026.00,0.00,COMMERCIAL SUPPLIER 
 18-11-2022,Adults,Lukka Care Homes Ltd - Ravenscourt,Nursing Care Income,1027.88,0.00,COMMERCIAL SUPPLIER 
 18-11-2022,Adults,Lukka Care Homes Ltd - Ravenscourt,Nursing Care Income,1027.88,0.00,COMMERCIAL SUPPLIER 
 18-11-2022,Adults,Lukka Care Homes Ltd - Ravenscourt,Nursing Care Income,1027.88,0.00,COMMERCIAL SUPPLIER 
 18-11-2022,Adults,Lukka Care Homes Ltd - Ravenscourt,Nursing Care Income,1027.88,0.00,COMMERCIAL SUPPLIER 
 18-11-2022,Adults,Lukka Care Homes Ltd - Ravenscourt,Nursing Care Income,1027.88,0.00,COMMERCIAL SUPPLIER 
 18-11-2022,Adults,Lukka Care Homes Ltd - Ravenscourt,Nursing Care Income,1027.88,0.00,COMMERCIAL SUPPLIER 
 18-11-2022,Adults,Lukka Care Homes Ltd - Ravenscourt,Nursing Care Income,1027.88,0.00,COMMERCIAL SUPPLIER 
 18-11-2022,Adults,Lukka Care Homes Ltd - Ravenscourt,Nursing Care Income,1028.07,0.00,COMMERCIAL SUPPLIER 
 18-11-2022,Adults,Lukka Care Homes Ltd - Ravenscourt,Nursing Care Income,1028.40,0.00,COMMERCIAL SUPPLIER 
 18-11-2022,Adults,Lukka Care Homes Ltd - Ravenscourt,Nursing Care Income,1028.40,0.00,COMMERCIAL SUPPLIER 
 18-11-2022,Adults,Lukka Care Homes Ltd - Ravenscourt,Nursing Care Income,1028.40,0.00,COMMERCIAL SUPPLIER 
 18-11-2022,Adults,Lukka Care Homes Ltd - Ravenscourt,Nursing Care Income,1028.40,0.00,COMMERCIAL SUPPLIER 
 18-11-2022,Adults,Lukka Care Homes Ltd - Ravenscourt,Nursing Care Income,1028.40,0.00,COMMERCIAL SUPPLIER 
 18-11-2022,Adults,Lukka Care Homes Ltd - Ravenscourt,Nursing Care Income,1028.40,0.00,COMMERCIAL SUPPLIER 
 18-11-2022,Adults,Lukka Care Homes Ltd - Ravenscourt,Nursing Care Income,1028.40,0.00,COMMERCIAL SUPPLIER 
 18-11-2022,Adults,Lukka Care Homes Ltd - Ravenscourt,Nursing Care Income,1028.40,0.00,COMMERCIAL SUPPLIER 
 18-11-2022,Adults,Lukka Care Homes Ltd - Ravenscourt,Nursing Care Income,1028.40,0.00,COMMERCIAL SUPPLIER 
 18-11-2022,Adults,Lukka Care Homes Ltd - Ravenscourt,Nursing Care Income,1028.40,0.00,COMMERCIAL SUPPLIER 
 18-11-2022,Adults,Lukka Care Homes Ltd - Ravenscourt,Nursing Care Income,1028.40,0.00,COMMERCIAL SUPPLIER 
 18-11-2022,Adults,Ash Grove Residential Care Home,Respite Care - Private Contractors Payment,1028.57,0.00,COMMERCIAL SUPPLIER 
 18-11-2022,Adults,Ash Grove Residential Care Home,Respite Care - Private Contractors Payment,1028.57,0.00,COMMERCIAL SUPPLIER 
 06-11-2022,Adults,Homestead Care Service,Home Care - Private Contractors Payment,1028.61,0.00,COMMERCIAL SUPPLIER 
 06-11-2022,Adults,Homestead Care Service,Home Care - Private Contractors Payment,1028.94,0.00,COMMERCIAL SUPPLIER 
 06-11-2022,Adults,Homestead Care Service,Home Care - Private Contractors Payment,1031.23,0.00,COMMERCIAL SUPPLIER 
 10-11-2022,Adults,Care-Away Ltd T/A Care Support,Home Care - Private Contractors Payment,1031.68,0.00,COMMERCIAL SUPPLIER 
 18-11-2022,Adults,Acer Healthcare Operation Ltd,Nursing Homes - Private Contractors Payment,1032.29,0.00,COMMERCIAL SUPPLIER 
 06-11-2022,Adults,Homestead Care Service,Home Care - Private Contractors Payment,1033.20,0.00,COMMERCIAL SUPPLIER 
 16-11-2022,Adults,Lodge Group Care UK Ltd,Home Care - Private Contractors Payment,1033.53,0.00,COMMERCIAL SUPPLIER 
 15-11-2022,Adults,Home Support Services (Havering & Essex) Ltd,Home Care - Private Contractors Payment,1033.86,0.00,COMMERCIAL SUPPLIER 
 09-11-2022,Adults,Matrix SCM Ltd,Agency Staff,1034.44,0.00,COMMERCIAL SUPPLIER 
 15-11-2022,Adults,Quality Healthcare Solutions Ltd t/a Kare Plus Romford,Home Care - Private Contractors Payment,1034.51,0.00,COMMERCIAL SUPPLIER 
 16-11-2022,Adults,Lodge Group Care UK Ltd,Home Care - Private Contractors Payment,1034.84,0.00,COMMERCIAL SUPPLIER 
 18-11-2022,Adults,Outlook Care - 4 Peel Way,Supported Other Accommodation - Private Contractors Payment,1035.08,0.00,COMMERCIAL SUPPLIER 
 15-11-2022,Adults,Home Sweet Home Care Ltd,Home Care - Private Contractors Payment,1035.17,0.00,COMMERCIAL SUPPLIER 
 15-11-2022,Adults,Home Support Services (Havering & Essex) Ltd,Home Care - Private Contractors Payment,1036.15,0.00,COMMERCIAL SUPPLIER 
 15-11-2022,Adults,Home Support Services (Havering & Essex) Ltd,Home Care - Private Contractors Payment,1036.15,0.00,COMMERCIAL SUPPLIER 
 15-11-2022,Adults,Home Support Services (Havering & Essex) Ltd,Home Care - Private Contractors Payment,1036.15,0.00,COMMERCIAL SUPPLIER 
 09-11-2022,Adults,Matrix SCM Ltd,Agency Staff,1036.56,0.00,COMMERCIAL SUPPLIER 
 09-11-2022,Adults,Prestige Care & Support Ltd,Home Care - Private Contractors Payment,1037.14,0.00,COMMERCIAL SUPPLIER 
 06-11-2022,Adults,Homestead Care Service,Home Care - Private Contractors Payment,1039.10,0.00,COMMERCIAL SUPPLIER 
 06-11-2022,Adults,Homestead Care Service,Home Care - Private Contractors Payment,1039.43,0.00,COMMERCIAL SUPPLIER 
 15-11-2022,Adults,Home Support Services (Havering & Essex) Ltd,Home Care - Private Contractors Payment,1039.76,0.00,COMMERCIAL SUPPLIER 
 15-11-2022,Adults,Home Support Services (Havering & Essex) Ltd,Home Care - Private Contractors Payment,1040.09,0.00,COMMERCIAL SUPPLIER 
 18-11-2022,Adults,The Cottage Residential Care Home,Residential Placements - Private Contractors Payment,1040.28,0.00,COMMERCIAL SUPPLIER 
 18-11-2022,Adults,Lukka Care Homes Ltd - Ravenscourt,Nursing Care Income,1040.31,0.00,COMMERCIAL SUPPLIER 
 09-11-2022,Adults,Anytime Care 2020_a,Home Care - Private Contractors Payment,1041.07,0.00,COMMERCIAL SUPPLIER 
 16-11-2022,Adults,Lodge Group Care UK Ltd,Home Care - Private Contractors Payment,1043.37,0.00,COMMERCIAL SUPPLIER 
 06-11-2022,Adults,Homestead Care Service,Home Care - Private Contractors Payment,1043.70,0.00,COMMERCIAL SUPPLIER 
 15-11-2022,Adults,Home Support Services (Havering & Essex) Ltd,Home Care - Private Contractors Payment,1047.30,0.00,COMMERCIAL SUPPLIER 
 18-11-2022,Adults,Care Management Group Ltd - The Ridgeway,Supported Other Accommodation - Private Contractors Payment,1047.76,0.00,COMMERCIAL SUPPLIER 
 06-11-2022,Adults,Homestead Care Service,Home Care - Private Contractors Payment,1048.29,0.00,COMMERCIAL SUPPLIER 
 17-11-2022,Adults,Hospiva Care & Associates Agency Ltd_a,Home Care - Private Contractors Payment,1048.29,0.00,COMMERCIAL SUPPLIER 
 17-11-2022,Adults,Hospiva Care & Associates Agency Ltd_a,Home Care - Private Contractors Payment,1048.29,0.00,COMMERCIAL SUPPLIER 
 10-11-2022,Adults,Care-Away Ltd T/A Care Support,Home Care - Private Contractors Payment,1048.32,0.00,COMMERCIAL SUPPLIER 
 10-11-2022,Adults,Care-Away Ltd T/A Care Support,Home Care - Private Contractors Payment,1048.32,0.00,COMMERCIAL SUPPLIER 
 02-11-2022,Adults,Matrix SCM Ltd,Agency Staff,1049.44,0.00,COMMERCIAL SUPPLIER 
 09-11-2022,Adults,Matrix SCM Ltd,Agency Staff,1049.44,0.00,COMMERCIAL SUPPLIER 
 16-11-2022,Adults,Matrix SCM Ltd,Agency Staff,1049.44,0.00,COMMERCIAL SUPPLIER 
 23-11-2022,Adults,Matrix SCM Ltd,Agency Staff,1049.44,0.00,COMMERCIAL SUPPLIER 
 30-11-2022,Adults,Matrix SCM Ltd,Agency Staff,1049.44,0.00,COMMERCIAL SUPPLIER 
 18-11-2022,Adults,Protecthand Care Ltd ,Supported Other Accommodation - Private Contractors Payment,1050.00,0.00,COMMERCIAL SUPPLIER 
 06-11-2022,Adults,Homestead Care Service,Home Care - Private Contractors Payment,1052.88,0.00,COMMERCIAL SUPPLIER 
 15-11-2022,Adults,Home Support Services (Havering & Essex) Ltd,Home Care - Private Contractors Payment,1052.88,0.00,COMMERCIAL SUPPLIER 
 06-11-2022,Adults,Homestead Care Service,Home Care - Private Contractors Payment,1053.54,0.00,COMMERCIAL SUPPLIER 
 22-11-2022,Adults,Prior Care Ltd_a,Home Care - Private Contractors Payment,1054.52,0.00,COMMERCIAL SUPPLIER 
 15-11-2022,Adults,Home Sweet Home Care Ltd,Home Care - Private Contractors Payment,1054.85,0.00,COMMERCIAL SUPPLIER 
 15-11-2022,Adults,Home Sweet Home Care Ltd,Home Care - Private Contractors Payment,1055.83,0.00,COMMERCIAL SUPPLIER 
 18-11-2022,Adults,Outreach Support Services Ltd,Supported Other Accommodation - Private Contractors Payment,1058.40,0.00,COMMERCIAL SUPPLIER 
 08-11-2022,Adults,Inna Care Ltd,Home Care - Private Contractors Payment,1062.72,0.00,COMMERCIAL SUPPLIER 
 18-11-2022,Adults,Lodge Lane Care Home Limited,Residential Placements - Private Contractors Payment,1064.00,0.00,COMMERCIAL SUPPLIER 
 18-11-2022,Adults,Lukka Care Homes Ltd - Ravenscourt,Nursing Care Income,1065.12,0.00,COMMERCIAL SUPPLIER 
 18-11-2022,Adults,HC-One Oval Ltd - The Hornchurch Nursing Centre,Nursing Homes - Private Contractors Payment,1065.43,0.00,COMMERCIAL SUPPLIER 
 15-11-2022,Adults,Cera Care Operations Ltd,Home Care - Private Contractors Payment,1066.98,0.00,COMMERCIAL SUPPLIER 
 15-11-2022,Adults,Home Support Services (Havering & Essex) Ltd,Home Care - Private Contractors Payment,1072.23,0.00,COMMERCIAL SUPPLIER 
 06-11-2022,Adults,Homestead Care Service,Home Care - Private Contractors Payment,1072.56,0.00,COMMERCIAL SUPPLIER 
 06-11-2022,Adults,Homestead Care Service,Home Care - Private Contractors Payment,1072.56,0.00,COMMERCIAL SUPPLIER 
 06-11-2022,Adults,Homestead Care Service,Home Care - Private Contractors Payment,1073.87,0.00,COMMERCIAL SUPPLIER 
 22-11-2022,Adults,Prior Care Ltd_a,Home Care - Private Contractors Payment,1073.87,0.00,COMMERCIAL SUPPLIER 
 06-11-2022,Adults,Homestead Care Service,Home Care - Private Contractors Payment,1076.50,0.00,COMMERCIAL SUPPLIER 
 15-11-2022,Adults,Home Support Services (Havering & Essex) Ltd,Home Care - Private Contractors Payment,1076.50,0.00,COMMERCIAL SUPPLIER 
 06-11-2022,Adults,Homestead Care Service,Home Care - Private Contractors Payment,1078.14,0.00,COMMERCIAL SUPPLIER 
 06-11-2022,Adults,Homestead Care Service,Home Care - Private Contractors Payment,1078.14,0.00,COMMERCIAL SUPPLIER 
 11-11-2022,Adults,Morepower Ltd t/a Aqs Homecare,Home Care - Private Contractors Payment,1078.46,0.00,COMMERCIAL SUPPLIER 
 15-11-2022,Adults,Home Sweet Home Care Ltd,Home Care - Private Contractors Payment,1081.09,0.00,COMMERCIAL SUPPLIER 
 07-11-2022,Adults,London Homecare Ltd,Home Care - Private Contractors Payment,1082.40,0.00,COMMERCIAL SUPPLIER 
 09-11-2022,Adults,Prestige Care & Support Ltd,Home Care - Private Contractors Payment,1082.40,0.00,COMMERCIAL SUPPLIER 
 14-11-2022,Adults,Certified Healthcare Solutions Ltd t/a In Home Care Havering,Home Care - Private Contractors Payment,1082.40,0.00,COMMERCIAL SUPPLIER 
 14-11-2022,Adults,Certified Healthcare Solutions Ltd t/a In Home Care Havering,Home Care - Private Contractors Payment,1082.40,0.00,COMMERCIAL SUPPLIER 
 15-11-2022,Adults,Home Sweet Home Care Ltd,Home Care - Private Contractors Payment,1082.40,0.00,COMMERCIAL SUPPLIER 
 15-11-2022,Adults,Home Support Services (Havering & Essex) Ltd,Home Care - Private Contractors Payment,1082.40,0.00,COMMERCIAL SUPPLIER 
 15-11-2022,Adults,Home Sweet Home Care Ltd,Home Care - Private Contractors Payment,1082.73,0.00,COMMERCIAL SUPPLIER 
 15-11-2022,Adults,Home Sweet Home Care Ltd,Home Care - Private Contractors Payment,1082.73,0.00,COMMERCIAL SUPPLIER 
 15-11-2022,Adults,Home Sweet Home Care Ltd,Home Care - Private Contractors Payment,1085.68,0.00,COMMERCIAL SUPPLIER 
 15-11-2022,Adults,Quality Healthcare Solutions Ltd t/a Kare Plus Romford,Home Care - Private Contractors Payment,1086.66,0.00,COMMERCIAL SUPPLIER 
 06-11-2022,Adults,Homestead Care Service,Home Care - Private Contractors Payment,1087.32,0.00,COMMERCIAL SUPPLIER 
 09-11-2022,Adults,Prestige Care & Support Ltd,Home Care - Private Contractors Payment,1087.32,0.00,COMMERCIAL SUPPLIER 
 11-11-2022,Adults,Morepower Ltd t/a Aqs Homecare,Home Care - Private Contractors Payment,1088.63,0.00,COMMERCIAL SUPPLIER 
 15-11-2022,Adults,Home Sweet Home Care Ltd,Home Care - Private Contractors Payment,1089.29,0.00,COMMERCIAL SUPPLIER 
 09-11-2022,Adults,Prestige Care & Support Ltd,Home Care - Private Contractors Payment,1090.27,0.00,COMMERCIAL SUPPLIER 
 15-11-2022,Adults,Home Sweet Home Care Ltd,Home Care - Private Contractors Payment,1090.27,0.00,COMMERCIAL SUPPLIER 
 15-11-2022,Adults,Home Sweet Home Care Ltd,Home Care - Private Contractors Payment,1090.93,0.00,COMMERCIAL SUPPLIER 
 15-11-2022,Adults,Home Sweet Home Care Ltd,Home Care - Private Contractors Payment,1091.58,0.00,COMMERCIAL SUPPLIER 
 15-11-2022,Adults,Home Sweet Home Care Ltd,Home Care - Private Contractors Payment,1091.91,0.00,COMMERCIAL SUPPLIER 
 02-11-2022,Adults,Matrix SCM Ltd,Agency Staff,1092.00,0.00,COMMERCIAL SUPPLIER 
 09-11-2022,Adults,Prestige Care & Support Ltd,Home Care - Private Contractors Payment,1092.24,0.00,COMMERCIAL SUPPLIER 
 09-11-2022,Adults,Prestige Care & Support Ltd,Home Care - Private Contractors Payment,1092.24,0.00,COMMERCIAL SUPPLIER 
 09-11-2022,Adults,Prestige Care & Support Ltd,Home Care - Private Contractors Payment,1092.24,0.00,COMMERCIAL SUPPLIER 
 09-11-2022,Adults,Prestige Care & Support Ltd,Home Care - Private Contractors Payment,1092.24,0.00,COMMERCIAL SUPPLIER 
 15-11-2022,Adults,Home Sweet Home Care Ltd,Home Care - Private Contractors Payment,1092.24,0.00,COMMERCIAL SUPPLIER 
 15-11-2022,Adults,Home Support Services (Havering & Essex) Ltd,Home Care - Private Contractors Payment,1092.24,0.00,COMMERCIAL SUPPLIER 
 15-11-2022,Adults,Home Support Services (Havering & Essex) Ltd,Home Care - Private Contractors Payment,1092.24,0.00,COMMERCIAL SUPPLIER 
 22-11-2022,Adults,Prior Care Ltd_a,Home Care - Private Contractors Payment,1092.24,0.00,COMMERCIAL SUPPLIER 
 16-11-2022,Adults,Lodge Group Care UK Ltd,Home Care - Private Contractors Payment,1092.57,0.00,COMMERCIAL SUPPLIER 
 06-11-2022,Adults,Homestead Care Service,Home Care - Private Contractors Payment,1092.90,0.00,COMMERCIAL SUPPLIER 
 15-11-2022,Adults,Home Support Services (Havering & Essex) Ltd,Home Care - Private Contractors Payment,1093.22,0.00,COMMERCIAL SUPPLIER 
 15-11-2022,Adults,Home Support Services (Havering & Essex) Ltd,Home Care - Private Contractors Payment,1093.55,0.00,COMMERCIAL SUPPLIER 
 15-11-2022,Adults,Home Sweet Home Care Ltd,Home Care - Private Contractors Payment,1094.21,0.00,COMMERCIAL SUPPLIER 
 09-11-2022,Adults,Anytime Care 2020_a,Home Care - Private Contractors Payment,1095.52,0.00,COMMERCIAL SUPPLIER 
 15-11-2022,Adults,Home Sweet Home Care Ltd,Home Care - Private Contractors Payment,1095.85,0.00,COMMERCIAL SUPPLIER 
 15-11-2022,Adults,Home Sweet Home Care Ltd,Home Care - Private Contractors Payment,1096.18,0.00,COMMERCIAL SUPPLIER 
 15-11-2022,Adults,Home Sweet Home Care Ltd,Home Care - Private Contractors Payment,1097.16,0.00,COMMERCIAL SUPPLIER 
 21-11-2022,Adults,John Stanleys Care Agency Ltd,Home Care - Private Contractors Payment,1098.14,0.00,COMMERCIAL SUPPLIER 
 06-11-2022,Adults,Homestead Care Service,Home Care - Private Contractors Payment,1099.13,0.00,COMMERCIAL SUPPLIER 
 17-11-2022,Adults,Hospiva Care & Associates Agency Ltd_a,Home Care - Private Contractors Payment,1099.78,0.00,COMMERCIAL SUPPLIER 
 06-11-2022,Adults,Homestead Care Service,Home Care - Private Contractors Payment,1100.44,0.00,COMMERCIAL SUPPLIER 
 15-11-2022,Adults,Home Support Services (Havering & Essex) Ltd,Home Care - Private Contractors Payment,1100.77,0.00,COMMERCIAL SUPPLIER 
 06-11-2022,Adults,Homestead Care Service,Home Care - Private Contractors Payment,1101.10,0.00,COMMERCIAL SUPPLIER 
 01-11-2022,Adults,Crystalize Care Services,Home Care - Private Contractors Payment,1102.08,0.00,COMMERCIAL SUPPLIER 
 01-11-2022,Adults,Crystalize Care Services,Home Care - Private Contractors Payment,1102.08,0.00,COMMERCIAL SUPPLIER 
 06-11-2022,Adults,Homestead Care Service,Home Care - Private Contractors Payment,1102.08,0.00,COMMERCIAL SUPPLIER 
 06-11-2022,Adults,Homestead Care Service,Home Care - Private Contractors Payment,1102.08,0.00,COMMERCIAL SUPPLIER 
 07-11-2022,Adults,KJD Care Limited,Home Care - Private Contractors Payment,1102.08,0.00,INDIVIDUALS 
 07-11-2022,Adults,KJD Care Limited,Home Care - Private Contractors Payment,1102.08,0.00,INDIVIDUALS 
 07-11-2022,Adults,KJD Care Limited,Home Care - Private Contractors Payment,1102.08,0.00,INDIVIDUALS 
 07-11-2022,Adults,KJD Care Limited,Home Care - Private Contractors Payment,1102.08,0.00,INDIVIDUALS 
 07-11-2022,Adults,London Homecare Ltd,Home Care - Private Contractors Payment,1102.08,0.00,COMMERCIAL SUPPLIER 
 08-11-2022,Adults,Inna Care Ltd,Home Care - Private Contractors Payment,1102.08,0.00,COMMERCIAL SUPPLIER 
 08-11-2022,Adults,Inna Care Ltd,Home Care - Private Contractors Payment,1102.08,0.00,COMMERCIAL SUPPLIER 
 08-11-2022,Adults,Inna Care Ltd,Home Care - Private Contractors Payment,1102.08,0.00,COMMERCIAL SUPPLIER 
 08-11-2022,Adults,Inna Care Ltd,Home Care - Private Contractors Payment,1102.08,0.00,COMMERCIAL SUPPLIER 
 08-11-2022,Adults,Inna Care Ltd,Home Care - Private Contractors Payment,1102.08,0.00,COMMERCIAL SUPPLIER 
 08-11-2022,Adults,Inna Care Ltd,Home Care - Private Contractors Payment,1102.08,0.00,COMMERCIAL SUPPLIER 
 08-11-2022,Adults,Inna Care Ltd,Home Care - Private Contractors Payment,1102.08,0.00,COMMERCIAL SUPPLIER 
 08-11-2022,Adults,Inna Care Ltd,Home Care - Private Contractors Payment,1102.08,0.00,COMMERCIAL SUPPLIER 
 08-11-2022,Adults,KJD Care Limited,Home Care - Private Contractors Payment,1102.08,0.00,INDIVIDUALS 
 08-11-2022,Adults,KJD Care Limited,Home Care - Private Contractors Payment,1102.08,0.00,INDIVIDUALS 
 08-11-2022,Adults,KJD Care Limited,Home Care - Private Contractors Payment,1102.08,0.00,INDIVIDUALS 
 08-11-2022,Adults,KJD Care Limited,Home Care - Private Contractors Payment,1102.08,0.00,INDIVIDUALS 
 09-11-2022,Adults,Prestige Care & Support Ltd,Home Care - Private Contractors Payment,1102.08,0.00,COMMERCIAL SUPPLIER 
 09-11-2022,Adults,Prestige Care & Support Ltd,Home Care - Private Contractors Payment,1102.08,0.00,COMMERCIAL SUPPLIER 
 09-11-2022,Adults,Outreach Support Services Ltd,Home Care - Private Contractors Payment,1102.08,0.00,COMMERCIAL SUPPLIER 
 09-11-2022,Adults,Outreach Support Services Ltd,Home Care - Private Contractors Payment,1102.08,0.00,COMMERCIAL SUPPLIER 
 09-11-2022,Adults,Outreach Support Services Ltd,Home Care - Private Contractors Payment,1102.08,0.00,COMMERCIAL SUPPLIER 
 09-11-2022,Adults,Outreach Support Services Ltd,Home Care - Private Contractors Payment,1102.08,0.00,COMMERCIAL SUPPLIER 
 09-11-2022,Adults,Outreach Support Services Ltd,Home Care - Private Contractors Payment,1102.08,0.00,COMMERCIAL SUPPLIER 
 09-11-2022,Adults,Outreach Support Services Ltd,Home Care - Private Contractors Payment,1102.08,0.00,COMMERCIAL SUPPLIER 
 10-11-2022,Adults,IJB Healthcare Ltd,Home Care - Private Contractors Payment,1102.08,0.00,COMMERCIAL SUPPLIER 
 10-11-2022,Adults,IJB Healthcare Ltd,Home Care - Private Contractors Payment,1102.08,0.00,COMMERCIAL SUPPLIER 
 15-11-2022,Adults,Quality Healthcare Solutions Ltd t/a Kare Plus Romford,Home Care - Private Contractors Payment,1102.08,0.00,COMMERCIAL SUPPLIER 
 15-11-2022,Adults,Home Sweet Home Care Ltd,Home Care - Private Contractors Payment,1102.08,0.00,COMMERCIAL SUPPLIER 
 15-11-2022,Adults,Home Sweet Home Care Ltd,Home Care - Private Contractors Payment,1102.08,0.00,COMMERCIAL SUPPLIER 
 15-11-2022,Adults,Home Sweet Home Care Ltd,Home Care - Private Contractors Payment,1102.08,0.00,COMMERCIAL SUPPLIER 
 15-11-2022,Adults,Home Support Services (Havering & Essex) Ltd,Home Care - Private Contractors Payment,1102.08,0.00,COMMERCIAL SUPPLIER 
 15-11-2022,Adults,Home Support Services (Havering & Essex) Ltd,Home Care - Private Contractors Payment,1102.08,0.00,COMMERCIAL SUPPLIER 
 15-11-2022,Adults,Home Support Services (Havering & Essex) Ltd,Home Care - Private Contractors Payment,1102.08,0.00,COMMERCIAL SUPPLIER 
 15-11-2022,Adults,Passion Tree Care Services Ltd,Home Care - Private Contractors Payment,1102.08,0.00,COMMERCIAL SUPPLIER 
 15-11-2022,Adults,Passion Tree Care Services Ltd,Home Care - Private Contractors Payment,1102.08,0.00,COMMERCIAL SUPPLIER 
 15-11-2022,Adults,Passion Tree Care Services Ltd,Home Care - Private Contractors Payment,1102.08,0.00,COMMERCIAL SUPPLIER 
 16-11-2022,Adults,Lodge Group Care UK Ltd,Home Care - Private Contractors Payment,1102.08,0.00,COMMERCIAL SUPPLIER 
 16-11-2022,Adults,Lodge Group Care UK Ltd,Home Care - Private Contractors Payment,1102.08,0.00,COMMERCIAL SUPPLIER 
 16-11-2022,Adults,Lodge Group Care UK Ltd,Home Care - Private Contractors Payment,1102.08,0.00,COMMERCIAL SUPPLIER 
 16-11-2022,Adults,Lodge Group Care UK Ltd,Home Care - Private Contractors Payment,1102.08,0.00,COMMERCIAL SUPPLIER 
 22-11-2022,Adults,Prior Care Ltd_a,Home Care - Private Contractors Payment,1102.08,0.00,COMMERCIAL SUPPLIER 
 22-11-2022,Adults,Prior Care Ltd_a,Home Care - Private Contractors Payment,1102.08,0.00,COMMERCIAL SUPPLIER 
 23-11-2022,Adults,Rosemont Care Limited,Home Care - Private Contractors Payment,1102.08,0.00,COMMERCIAL SUPPLIER 
 23-11-2022,Adults,Rosemont Care Limited,Home Care - Private Contractors Payment,1102.08,0.00,COMMERCIAL SUPPLIER 
 23-11-2022,Adults,Rosemont Care Limited,Home Care - Private Contractors Payment,1102.08,0.00,COMMERCIAL SUPPLIER 
 23-11-2022,Adults,Rosemont Care Limited,Home Care - Private Contractors Payment,1102.08,0.00,COMMERCIAL SUPPLIER 
 23-11-2022,Adults,Rosemont Care Limited,Home Care - Private Contractors Payment,1102.08,0.00,COMMERCIAL SUPPLIER 
 23-11-2022,Adults,Rosemont Care Limited,Home Care - Private Contractors Payment,1102.08,0.00,COMMERCIAL SUPPLIER 
 09-11-2022,Adults,Prestige Care & Support Ltd,Home Care - Private Contractors Payment,1102.41,0.00,COMMERCIAL SUPPLIER 
 15-11-2022,Adults,Home Support Services (Havering & Essex) Ltd,Home Care - Private Contractors Payment,1102.41,0.00,COMMERCIAL SUPPLIER 
 09-11-2022,Adults,Prestige Care & Support Ltd,Home Care - Private Contractors Payment,1102.74,0.00,COMMERCIAL SUPPLIER 
 15-11-2022,Adults,Home Support Services (Havering & Essex) Ltd,Home Care - Private Contractors Payment,1102.74,0.00,COMMERCIAL SUPPLIER 
 16-11-2022,Adults,Lodge Group Care UK Ltd,Home Care - Private Contractors Payment,1102.74,0.00,COMMERCIAL SUPPLIER 
 21-11-2022,Adults,John Stanleys Care Agency Ltd,Home Care - Private Contractors Payment,1102.74,0.00,COMMERCIAL SUPPLIER 
 09-11-2022,Adults,Prestige Care & Support Ltd,Home Care - Private Contractors Payment,1103.06,0.00,COMMERCIAL SUPPLIER 
 16-11-2022,Adults,Lodge Group Care UK Ltd,Home Care - Private Contractors Payment,1103.06,0.00,COMMERCIAL SUPPLIER 
 22-11-2022,Adults,Prior Care Ltd_a,Home Care - Private Contractors Payment,1103.06,0.00,COMMERCIAL SUPPLIER 
 06-11-2022,Adults,Homestead Care Service,Home Care - Private Contractors Payment,1103.72,0.00,COMMERCIAL SUPPLIER 
 06-11-2022,Adults,Homestead Care Service,Home Care - Private Contractors Payment,1103.72,0.00,COMMERCIAL SUPPLIER 
 15-11-2022,Adults,Home Sweet Home Care Ltd,Home Care - Private Contractors Payment,1103.72,0.00,COMMERCIAL SUPPLIER 
 15-11-2022,Adults,Home Sweet Home Care Ltd,Home Care - Private Contractors Payment,1104.05,0.00,COMMERCIAL SUPPLIER 
 15-11-2022,Adults,Home Support Services (Havering & Essex) Ltd,Home Care - Private Contractors Payment,1104.05,0.00,COMMERCIAL SUPPLIER 
 16-11-2022,Adults,Lodge Group Care UK Ltd,Home Care - Private Contractors Payment,1104.05,0.00,COMMERCIAL SUPPLIER 
 15-11-2022,Adults,Home Support Services (Havering & Essex) Ltd,Home Care - Private Contractors Payment,1104.38,0.00,COMMERCIAL SUPPLIER 
 22-11-2022,Adults,Prior Care Ltd_a,Home Care - Private Contractors Payment,1104.38,0.00,COMMERCIAL SUPPLIER 
 15-11-2022,Adults,Home Support Services (Havering & Essex) Ltd,Home Care - Private Contractors Payment,1104.70,0.00,COMMERCIAL SUPPLIER 
 15-11-2022,Adults,Home Support Services (Havering & Essex) Ltd,Home Care - Private Contractors Payment,1104.70,0.00,COMMERCIAL SUPPLIER 
 15-11-2022,Adults,Home Support Services (Havering & Essex) Ltd,Home Care - Private Contractors Payment,1104.70,0.00,COMMERCIAL SUPPLIER 
 22-11-2022,Adults,Prior Care Ltd_a,Home Care - Private Contractors Payment,1104.70,0.00,COMMERCIAL SUPPLIER 
 15-11-2022,Adults,Cera Care Operations Ltd,Home Care - Private Contractors Payment,1105.03,0.00,COMMERCIAL SUPPLIER 
 16-11-2022,Adults,Lodge Group Care UK Ltd,Home Care - Private Contractors Payment,1105.03,0.00,COMMERCIAL SUPPLIER 
 15-11-2022,Adults,Home Sweet Home Care Ltd,Home Care - Private Contractors Payment,1105.36,0.00,COMMERCIAL SUPPLIER 
 16-11-2022,Adults,Lodge Group Care UK Ltd,Home Care - Private Contractors Payment,1105.36,0.00,COMMERCIAL SUPPLIER 
 15-11-2022,Adults,Home Sweet Home Care Ltd,Home Care - Private Contractors Payment,1105.69,0.00,COMMERCIAL SUPPLIER 
 06-11-2022,Adults,Homestead Care Service,Home Care - Private Contractors Payment,1106.02,0.00,COMMERCIAL SUPPLIER 
 15-11-2022,Adults,Home Sweet Home Care Ltd,Home Care - Private Contractors Payment,1106.02,0.00,COMMERCIAL SUPPLIER 
 15-11-2022,Adults,Home Support Services (Havering & Essex) Ltd,Home Care - Private Contractors Payment,1106.02,0.00,COMMERCIAL SUPPLIER 
 16-11-2022,Adults,Lodge Group Care UK Ltd,Home Care - Private Contractors Payment,1106.02,0.00,COMMERCIAL SUPPLIER 
 16-11-2022,Adults,Lodge Group Care UK Ltd,Home Care - Private Contractors Payment,1106.02,0.00,COMMERCIAL SUPPLIER 
 15-11-2022,Adults,Cera Care Operations Ltd,Home Care - Private Contractors Payment,1106.34,0.00,COMMERCIAL SUPPLIER 
 15-11-2022,Adults,Home Support Services (Havering & Essex) Ltd,Home Care - Private Contractors Payment,1107.00,0.00,COMMERCIAL SUPPLIER 
 15-11-2022,Adults,Home Support Services (Havering & Essex) Ltd,Home Care - Private Contractors Payment,1107.33,0.00,COMMERCIAL SUPPLIER 
 16-11-2022,Adults,Lodge Group Care UK Ltd,Home Care - Private Contractors Payment,1107.33,0.00,COMMERCIAL SUPPLIER 
 09-11-2022,Adults,Prestige Care & Support Ltd,Home Care - Private Contractors Payment,1107.66,0.00,COMMERCIAL SUPPLIER 
 15-11-2022,Adults,Home Support Services (Havering & Essex) Ltd,Home Care - Private Contractors Payment,1107.66,0.00,COMMERCIAL SUPPLIER 
 06-11-2022,Adults,Westminster Homecare Ltd_a,Home Care - Private Contractors Payment,1107.98,0.00,COMMERCIAL SUPPLIER 
 06-11-2022,Adults,Homestead Care Service,Home Care - Private Contractors Payment,1108.97,0.00,COMMERCIAL SUPPLIER 
 15-11-2022,Adults,Home Sweet Home Care Ltd,Home Care - Private Contractors Payment,1108.97,0.00,COMMERCIAL SUPPLIER 
 06-11-2022,Adults,Homestead Care Service,Home Care - Private Contractors Payment,1109.30,0.00,COMMERCIAL SUPPLIER 
 09-11-2022,Adults,Anytime Care 2020_a,Home Care - Private Contractors Payment,1109.30,0.00,COMMERCIAL SUPPLIER 
 15-11-2022,Adults,Home Support Services (Havering & Essex) Ltd,Home Care - Private Contractors Payment,1109.30,0.00,COMMERCIAL SUPPLIER 
 16-11-2022,Adults,Lodge Group Care UK Ltd,Home Care - Private Contractors Payment,1109.30,0.00,COMMERCIAL SUPPLIER 
 16-11-2022,Adults,Lodge Group Care UK Ltd,Home Care - Private Contractors Payment,1109.30,0.00,COMMERCIAL SUPPLIER 
 06-11-2022,Adults,Homestead Care Service,Home Care - Private Contractors Payment,1109.62,0.00,COMMERCIAL SUPPLIER 
 15-11-2022,Adults,Home Support Services (Havering & Essex) Ltd,Home Care - Private Contractors Payment,1109.62,0.00,COMMERCIAL SUPPLIER 
 15-11-2022,Adults,Home Sweet Home Care Ltd,Home Care - Private Contractors Payment,1109.95,0.00,COMMERCIAL SUPPLIER 
 16-11-2022,Adults,Lodge Group Care UK Ltd,Home Care - Private Contractors Payment,1110.28,0.00,COMMERCIAL SUPPLIER 
 16-11-2022,Adults,Lodge Group Care UK Ltd,Home Care - Private Contractors Payment,1110.28,0.00,COMMERCIAL SUPPLIER 
 22-11-2022,Adults,Prior Care Ltd_a,Home Care - Private Contractors Payment,1110.61,0.00,COMMERCIAL SUPPLIER 
 16-11-2022,Adults,Lodge Group Care UK Ltd,Home Care - Private Contractors Payment,1110.94,0.00,COMMERCIAL SUPPLIER 
 09-11-2022,Adults,Prestige Care & Support Ltd,Home Care - Private Contractors Payment,1111.26,0.00,COMMERCIAL SUPPLIER 
 15-11-2022,Adults,Home Sweet Home Care Ltd,Home Care - Private Contractors Payment,1111.26,0.00,COMMERCIAL SUPPLIER 
 15-11-2022,Adults,Home Sweet Home Care Ltd,Home Care - Private Contractors Payment,1111.26,0.00,COMMERCIAL SUPPLIER 
 16-11-2022,Adults,Lodge Group Care UK Ltd,Home Care - Private Contractors Payment,1111.59,0.00,COMMERCIAL SUPPLIER 
 22-11-2022,Adults,Prior Care Ltd_a,Home Care - Private Contractors Payment,1111.59,0.00,COMMERCIAL SUPPLIER 
 11-11-2022,Adults,Morepower Ltd t/a Aqs Homecare,Home Care - Private Contractors Payment,1111.92,0.00,COMMERCIAL SUPPLIER 
 16-11-2022,Adults,Lodge Group Care UK Ltd,Home Care - Private Contractors Payment,1111.92,0.00,COMMERCIAL SUPPLIER 
 16-11-2022,Adults,Lodge Group Care UK Ltd,Home Care - Private Contractors Payment,1111.92,0.00,COMMERCIAL SUPPLIER 
 21-11-2022,Adults,John Stanleys Care Agency Ltd,Home Care - Private Contractors Payment,1111.92,0.00,COMMERCIAL SUPPLIER 
 22-11-2022,Adults,Prior Care Ltd_a,Home Care - Private Contractors Payment,1111.92,0.00,COMMERCIAL SUPPLIER 
 16-11-2022,Adults,Lodge Group Care UK Ltd,Home Care - Private Contractors Payment,1112.25,0.00,COMMERCIAL SUPPLIER 
 15-11-2022,Adults,Home Sweet Home Care Ltd,Home Care - Private Contractors Payment,1112.58,0.00,COMMERCIAL SUPPLIER 
 16-11-2022,Adults,Lodge Group Care UK Ltd,Home Care - Private Contractors Payment,1113.56,0.00,COMMERCIAL SUPPLIER 
 15-11-2022,Adults,Quality Healthcare Solutions Ltd t/a Kare Plus Romford,Home Care - Private Contractors Payment,1113.89,0.00,COMMERCIAL SUPPLIER 
 15-11-2022,Adults,Home Sweet Home Care Ltd,Home Care - Private Contractors Payment,1113.89,0.00,COMMERCIAL SUPPLIER 
 16-11-2022,Adults,Lodge Group Care UK Ltd,Home Care - Private Contractors Payment,1113.89,0.00,COMMERCIAL SUPPLIER 
 16-11-2022,Adults,Lodge Group Care UK Ltd,Home Care - Private Contractors Payment,1113.89,0.00,COMMERCIAL SUPPLIER 
 16-11-2022,Adults,Lodge Group Care UK Ltd,Home Care - Private Contractors Payment,1114.54,0.00,COMMERCIAL SUPPLIER 
 06-11-2022,Adults,Homestead Care Service,Home Care - Private Contractors Payment,1115.53,0.00,COMMERCIAL SUPPLIER 
 15-11-2022,Adults,Home Sweet Home Care Ltd,Home Care - Private Contractors Payment,1115.53,0.00,COMMERCIAL SUPPLIER 
 15-11-2022,Adults,Home Support Services (Havering & Essex) Ltd,Home Care - Private Contractors Payment,1115.86,0.00,COMMERCIAL SUPPLIER 
 15-11-2022,Adults,Cera Care Operations Ltd,Home Care - Private Contractors Payment,1116.18,0.00,COMMERCIAL SUPPLIER 
 16-11-2022,Adults,Lodge Group Care UK Ltd,Home Care - Private Contractors Payment,1116.18,0.00,COMMERCIAL SUPPLIER 
 16-11-2022,Adults,Lodge Group Care UK Ltd,Home Care - Private Contractors Payment,1116.51,0.00,COMMERCIAL SUPPLIER 
 06-11-2022,Adults,Homestead Care Service,Home Care - Private Contractors Payment,1116.84,0.00,COMMERCIAL SUPPLIER 
 15-11-2022,Adults,Cera Care Operations Ltd,Home Care - Private Contractors Payment,1117.50,0.00,COMMERCIAL SUPPLIER 
 15-11-2022,Adults,Home Support Services (Havering & Essex) Ltd,Home Care - Private Contractors Payment,1117.50,0.00,COMMERCIAL SUPPLIER 
 02-11-2022,Adults,Matrix SCM Ltd,Agency Staff,1118.66,0.00,COMMERCIAL SUPPLIER 
 09-11-2022,Adults,Prestige Care & Support Ltd,Home Care - Private Contractors Payment,1119.46,0.00,COMMERCIAL SUPPLIER 
 22-11-2022,Adults,Prior Care Ltd_a,Home Care - Private Contractors Payment,1119.46,0.00,COMMERCIAL SUPPLIER 
 06-11-2022,Adults,Westminster Homecare Ltd_a,Home Care - Private Contractors Payment,1119.79,0.00,COMMERCIAL SUPPLIER 
 06-11-2022,Adults,Homestead Care Service,Home Care - Private Contractors Payment,1121.10,0.00,COMMERCIAL SUPPLIER 
 17-11-2022,Adults,Hospiva Care & Associates Agency Ltd_a,Home Care - Private Contractors Payment,1121.43,0.00,COMMERCIAL SUPPLIER 
 15-11-2022,Adults,Home Support Services (Havering & Essex) Ltd,Home Care - Private Contractors Payment,1121.76,0.00,COMMERCIAL SUPPLIER 
 15-11-2022,Adults,Passion Tree Care Services Ltd,Home Care - Private Contractors Payment,1121.76,0.00,COMMERCIAL SUPPLIER 
 15-11-2022,Adults,Home Support Services (Havering & Essex) Ltd,Home Care - Private Contractors Payment,1122.09,0.00,COMMERCIAL SUPPLIER 
 15-11-2022,Adults,Home Support Services (Havering & Essex) Ltd,Home Care - Private Contractors Payment,1122.09,0.00,COMMERCIAL SUPPLIER 
 15-11-2022,Adults,Home Sweet Home Care Ltd,Home Care - Private Contractors Payment,1122.74,0.00,COMMERCIAL SUPPLIER 
 06-11-2022,Adults,Homestead Care Service,Home Care - Private Contractors Payment,1123.07,0.00,COMMERCIAL SUPPLIER 
 16-11-2022,Adults,Lodge Group Care UK Ltd,Home Care - Private Contractors Payment,1123.07,0.00,COMMERCIAL SUPPLIER 
 02-11-2022,Adults,Matrix SCM Ltd,Agency Staff,1123.48,0.00,COMMERCIAL SUPPLIER 
 06-11-2022,Adults,Homestead Care Service,Home Care - Private Contractors Payment,1124.38,0.00,COMMERCIAL SUPPLIER 
 22-11-2022,Adults,Prior Care Ltd_a,Home Care - Private Contractors Payment,1124.38,0.00,COMMERCIAL SUPPLIER 
 15-11-2022,Adults,Cera Care Operations Ltd,Home Care - Private Contractors Payment,1125.70,0.00,COMMERCIAL SUPPLIER 
 30-11-2022,Adults,Matrix SCM Ltd,Agency Staff,1125.96,0.00,COMMERCIAL SUPPLIER 
 21-11-2022,Adults,John Stanleys Care Agency Ltd,Home Care - Private Contractors Payment,1126.02,0.00,COMMERCIAL SUPPLIER 
 15-11-2022,Adults,Home Support Services (Havering & Essex) Ltd,Home Care - Private Contractors Payment,1127.34,0.00,COMMERCIAL SUPPLIER 
 06-11-2022,Adults,Homestead Care Service,Home Care - Private Contractors Payment,1127.66,0.00,COMMERCIAL SUPPLIER 
 15-11-2022,Adults,Home Sweet Home Care Ltd,Home Care - Private Contractors Payment,1127.66,0.00,COMMERCIAL SUPPLIER 
 17-11-2022,Adults,Headway East London,Daycare - Private Contractors Payment,1128.00,0.00,COMMERCIAL SUPPLIER 
 16-11-2022,Adults,Lodge Group Care UK Ltd,Home Care - Private Contractors Payment,1129.63,0.00,COMMERCIAL SUPPLIER 
 16-11-2022,Adults,Lodge Group Care UK Ltd,Home Care - Private Contractors Payment,1129.63,0.00,COMMERCIAL SUPPLIER 
 06-11-2022,Adults,Homestead Care Service,Home Care - Private Contractors Payment,1129.96,0.00,COMMERCIAL SUPPLIER 
 11-11-2022,Adults,Morepower Ltd t/a Aqs Homecare,Home Care - Private Contractors Payment,1130.62,0.00,COMMERCIAL SUPPLIER 
 11-11-2022,Adults,Morepower Ltd t/a Aqs Homecare,Home Care - Private Contractors Payment,1131.27,0.00,COMMERCIAL SUPPLIER 
 15-11-2022,Adults,Home Sweet Home Care Ltd,Home Care - Private Contractors Payment,1131.60,0.00,COMMERCIAL SUPPLIER 
 16-11-2022,Adults,Lodge Group Care UK Ltd,Home Care - Private Contractors Payment,1131.60,0.00,COMMERCIAL SUPPLIER 
 16-11-2022,Adults,Lodge Group Care UK Ltd,Home Care - Private Contractors Payment,1131.60,0.00,COMMERCIAL SUPPLIER 
 16-11-2022,Adults,Lodge Group Care UK Ltd,Home Care - Private Contractors Payment,1131.93,0.00,COMMERCIAL SUPPLIER 
 06-11-2022,Adults,Homestead Care Service,Home Care - Private Contractors Payment,1132.91,0.00,COMMERCIAL SUPPLIER 
 11-11-2022,Adults,Morepower Ltd t/a Aqs Homecare,Home Care - Private Contractors Payment,1133.24,0.00,COMMERCIAL SUPPLIER 
 17-11-2022,Adults,Hospiva Care & Associates Agency Ltd_a,Home Care - Private Contractors Payment,1133.90,0.00,COMMERCIAL SUPPLIER 
 11-11-2022,Adults,Morepower Ltd t/a Aqs Homecare,Home Care - Private Contractors Payment,1134.22,0.00,COMMERCIAL SUPPLIER 
 15-11-2022,Adults,Home Support Services (Havering & Essex) Ltd,Home Care - Private Contractors Payment,1134.55,0.00,COMMERCIAL SUPPLIER 
 11-11-2022,Adults,Morepower Ltd t/a Aqs Homecare,Home Care - Private Contractors Payment,1135.54,0.00,COMMERCIAL SUPPLIER 
 06-11-2022,Adults,Homestead Care Service,Home Care - Private Contractors Payment,1135.86,0.00,COMMERCIAL SUPPLIER 
 11-11-2022,Adults,Morepower Ltd t/a Aqs Homecare,Home Care - Private Contractors Payment,1135.86,0.00,COMMERCIAL SUPPLIER 
 15-11-2022,Adults,Home Support Services (Havering & Essex) Ltd,Home Care - Private Contractors Payment,1136.52,0.00,COMMERCIAL SUPPLIER 
 09-11-2022,Adults,Prestige Care & Support Ltd,Home Care - Private Contractors Payment,1136.85,0.00,COMMERCIAL SUPPLIER 
 06-11-2022,Adults,Homestead Care Service,Home Care - Private Contractors Payment,1137.83,0.00,COMMERCIAL SUPPLIER 
 09-11-2022,Adults,Matrix SCM Ltd,Agency Staff,1137.84,0.00,COMMERCIAL SUPPLIER 
 15-11-2022,Adults,Cera Care Operations Ltd,Home Care - Private Contractors Payment,1139.80,0.00,COMMERCIAL SUPPLIER 
 08-11-2022,Adults,Tapestry_a.,Daycare - Private Contractors Payment,1140.00,0.00,COMMERCIAL SUPPLIER 
 08-11-2022,Adults,Tapestry_a.,Daycare - Private Contractors Payment,1140.00,0.00,COMMERCIAL SUPPLIER 
 08-11-2022,Adults,Tapestry_a.,Daycare - Private Contractors Payment,1140.00,0.00,COMMERCIAL SUPPLIER 
 23-11-2022,Adults,Matrix SCM Ltd,Agency Staff,1140.80,0.00,COMMERCIAL SUPPLIER 
 15-11-2022,Adults,Home Support Services (Havering & Essex) Ltd,Home Care - Private Contractors Payment,1141.44,0.00,COMMERCIAL SUPPLIER 
 16-11-2022,Adults,Lodge Group Care UK Ltd,Home Care - Private Contractors Payment,1142.10,0.00,COMMERCIAL SUPPLIER 
 06-11-2022,Adults,Homestead Care Service,Home Care - Private Contractors Payment,1142.75,0.00,COMMERCIAL SUPPLIER 
 11-11-2022,Adults,Morepower Ltd t/a Aqs Homecare,Home Care - Private Contractors Payment,1142.75,0.00,COMMERCIAL SUPPLIER 
 18-11-2022,Adults,Bloomscare Ltd,Supported Other Accommodation - Private Contractors Payment,1142.86,0.00,COMMERCIAL SUPPLIER 
 09-11-2022,Adults,Prestige Care & Support Ltd,Home Care - Private Contractors Payment,1145.70,0.00,COMMERCIAL SUPPLIER 
 02-11-2022,Adults,Matrix SCM Ltd,Agency Staff,1146.46,0.00,COMMERCIAL SUPPLIER 
 11-11-2022,Adults,Morepower Ltd t/a Aqs Homecare,Home Care - Private Contractors Payment,1146.69,0.00,COMMERCIAL SUPPLIER 
 11-11-2022,Adults,Morepower Ltd t/a Aqs Homecare,Home Care - Private Contractors Payment,1148.00,0.00,COMMERCIAL SUPPLIER 
 15-11-2022,Adults,Home Support Services (Havering & Essex) Ltd,Home Care - Private Contractors Payment,1148.66,0.00,COMMERCIAL SUPPLIER 
 15-11-2022,Adults,Home Support Services (Havering & Essex) Ltd,Home Care - Private Contractors Payment,1149.31,0.00,COMMERCIAL SUPPLIER 
 16-11-2022,Adults,Lodge Group Care UK Ltd,Home Care - Private Contractors Payment,1149.97,0.00,COMMERCIAL SUPPLIER 
 18-11-2022,Adults,GCH - Hillside Nursing Home,Nursing Homes - Private Contractors Payment,1150.00,0.00,COMMERCIAL SUPPLIER 
 16-11-2022,Adults,Lodge Group Care UK Ltd,Home Care - Private Contractors Payment,1150.62,0.00,COMMERCIAL SUPPLIER 
 16-11-2022,Adults,Lodge Group Care UK Ltd,Home Care - Private Contractors Payment,1150.95,0.00,COMMERCIAL SUPPLIER 
 15-11-2022,Adults,Cera Care Operations Ltd,Home Care - Private Contractors Payment,1151.61,0.00,COMMERCIAL SUPPLIER 
 06-11-2022,Adults,Homestead Care Service,Home Care - Private Contractors Payment,1153.25,0.00,COMMERCIAL SUPPLIER 
 16-11-2022,Adults,Lodge Group Care UK Ltd,Home Care - Private Contractors Payment,1153.25,0.00,COMMERCIAL SUPPLIER 
 16-11-2022,Adults,Lodge Group Care UK Ltd,Home Care - Private Contractors Payment,1153.58,0.00,COMMERCIAL SUPPLIER 
 06-11-2022,Adults,Homestead Care Service,Home Care - Private Contractors Payment,1154.23,0.00,COMMERCIAL SUPPLIER 
 15-11-2022,Adults,Home Support Services (Havering & Essex) Ltd,Home Care - Private Contractors Payment,1154.23,0.00,COMMERCIAL SUPPLIER 
 02-11-2022,Adults,Treal Care Limited,Home Care - Private Contractors Payment,1155.00,0.00,COMMERCIAL SUPPLIER 
 04-11-2022,Adults,Pristine Care London Ltd ,Daycare - Private Contractors Payment,1155.00,0.00,COMMERCIAL SUPPLIER 
 06-11-2022,Adults,Homestead Care Service,Home Care - Private Contractors Payment,1155.54,0.00,COMMERCIAL SUPPLIER 
 06-11-2022,Adults,Homestead Care Service,Home Care - Private Contractors Payment,1159.48,0.00,COMMERCIAL SUPPLIER 
 15-11-2022,Adults,Cera Care Operations Ltd,Home Care - Private Contractors Payment,1159.81,0.00,COMMERCIAL SUPPLIER 
 18-11-2022,Adults,The Riverside Group,Supported Other Accommodation - Private Contractors Payment,1160.00,0.00, 
 18-11-2022,Adults,The Riverside Group,Supported Other Accommodation - Private Contractors Payment,1160.00,0.00, 
 18-11-2022,Adults,The Riverside Group,Supported Other Accommodation - Private Contractors Payment,1160.00,0.00, 
 18-11-2022,Adults,The Riverside Group,Supported Other Accommodation - Private Contractors Payment,1160.00,0.00, 
 18-11-2022,Adults,The Riverside Group,Supported Other Accommodation - Private Contractors Payment,1160.00,0.00, 
 18-11-2022,Adults,The Riverside Group,Supported Other Accommodation - Private Contractors Payment,1160.00,0.00, 
 18-11-2022,Adults,The Riverside Group,Supported Other Accommodation - Private Contractors Payment,1160.00,0.00, 
 18-11-2022,Adults,The Riverside Group,Supported Other Accommodation - Private Contractors Payment,1160.00,0.00, 
 15-11-2022,Adults,Home Support Services (Havering & Essex) Ltd,Home Care - Private Contractors Payment,1160.14,0.00,COMMERCIAL SUPPLIER 
 09-11-2022,Adults,Prestige Care & Support Ltd,Home Care - Private Contractors Payment,1162.43,0.00,COMMERCIAL SUPPLIER 
 15-11-2022,Adults,Cera Care Operations Ltd,Home Care - Private Contractors Payment,1163.09,0.00,COMMERCIAL SUPPLIER 
 11-11-2022,Adults,Morepower Ltd t/a Aqs Homecare,Home Care - Private Contractors Payment,1164.07,0.00,COMMERCIAL SUPPLIER 
 10-11-2022,Adults,Care-Away Ltd T/A Care Support,Home Care - Private Contractors Payment,1164.80,0.00,COMMERCIAL SUPPLIER 
 10-11-2022,Adults,Care-Away Ltd T/A Care Support,Home Care - Private Contractors Payment,1164.80,0.00,COMMERCIAL SUPPLIER 
 10-11-2022,Adults,Care-Away Ltd T/A Care Support,Home Care - Private Contractors Payment,1164.80,0.00,COMMERCIAL SUPPLIER 
 10-11-2022,Adults,Care-Away Ltd T/A Care Support,Home Care - Private Contractors Payment,1164.80,0.00,COMMERCIAL SUPPLIER 
 11-11-2022,Adults,Morepower Ltd t/a Aqs Homecare,Home Care - Private Contractors Payment,1165.71,0.00,COMMERCIAL SUPPLIER 
 11-11-2022,Adults,Morepower Ltd t/a Aqs Homecare,Home Care - Private Contractors Payment,1167.68,0.00,COMMERCIAL SUPPLIER 
 02-11-2022,Adults,Matrix SCM Ltd,Agency Staff,1169.28,0.00,COMMERCIAL SUPPLIER 
 09-11-2022,Adults,Matrix SCM Ltd,Agency Staff,1169.28,0.00,COMMERCIAL SUPPLIER 
 16-11-2022,Adults,Matrix SCM Ltd,Agency Staff,1169.28,0.00,COMMERCIAL SUPPLIER 
 23-11-2022,Adults,Matrix SCM Ltd,Agency Staff,1169.28,0.00,COMMERCIAL SUPPLIER 
 06-11-2022,Adults,Homestead Care Service,Home Care - Private Contractors Payment,1173.26,0.00,COMMERCIAL SUPPLIER 
 02-11-2022,Adults,Matrix SCM Ltd,Agency Staff,1175.04,0.00,COMMERCIAL SUPPLIER 
 09-11-2022,Adults,Matrix SCM Ltd,Agency Staff,1175.04,0.00,COMMERCIAL SUPPLIER 
 16-11-2022,Adults,Matrix SCM Ltd,Agency Staff,1175.04,0.00,COMMERCIAL SUPPLIER 
 30-11-2022,Adults,Matrix SCM Ltd,Agency Staff,1175.04,0.00,COMMERCIAL SUPPLIER 
 18-11-2022,Adults,Footsteps Support Ltd_a,Supported Other Accommodation - Private Contractors Payment,1176.00,0.00,COMMERCIAL SUPPLIER 
 08-11-2022,Adults,KJD Care Limited,Home Care - Private Contractors Payment,1180.80,0.00,INDIVIDUALS 
 10-11-2022,Adults,Carers Trust East Midlands,Home Care - Private Contractors Payment,1180.80,0.00,COMMERCIAL SUPPLIER 
 06-11-2022,Adults,Homestead Care Service,Home Care - Private Contractors Payment,1181.13,0.00,COMMERCIAL SUPPLIER 
 02-11-2022,Adults,Matrix SCM Ltd,Agency Staff,1181.15,0.00,COMMERCIAL SUPPLIER 
 09-11-2022,Adults,Matrix SCM Ltd,Agency Staff,1181.15,0.00,COMMERCIAL SUPPLIER 
 16-11-2022,Adults,Matrix SCM Ltd,Agency Staff,1181.15,0.00,COMMERCIAL SUPPLIER 
 23-11-2022,Adults,Matrix SCM Ltd,Agency Staff,1181.15,0.00,COMMERCIAL SUPPLIER 
 06-11-2022,Adults,Westminster Homecare Ltd_a,Home Care - Private Contractors Payment,1181.78,0.00,COMMERCIAL SUPPLIER 
 06-11-2022,Adults,Homestead Care Service,Home Care - Private Contractors Payment,1183.42,0.00,COMMERCIAL SUPPLIER 
 15-11-2022,Adults,Home Sweet Home Care Ltd,Home Care - Private Contractors Payment,1185.39,0.00,COMMERCIAL SUPPLIER 
 15-11-2022,Adults,Home Sweet Home Care Ltd,Home Care - Private Contractors Payment,1187.69,0.00,COMMERCIAL SUPPLIER 
 15-11-2022,Adults,Home Support Services (Havering & Essex) Ltd,Home Care - Private Contractors Payment,1188.34,0.00,COMMERCIAL SUPPLIER 
 09-11-2022,Adults,Romford Private Hire Ltd,Client Transport,1190.00,0.00,COMMERCIAL SUPPLIER 
 16-11-2022,Adults,Lodge Group Care UK Ltd,Home Care - Private Contractors Payment,1191.62,0.00,COMMERCIAL SUPPLIER 
 16-11-2022,Adults,Lodge Group Care UK Ltd,Home Care - Private Contractors Payment,1191.95,0.00,COMMERCIAL SUPPLIER 
 17-11-2022,Adults,Hospiva Care & Associates Agency Ltd_a,Home Care - Private Contractors Payment,1192.61,0.00,COMMERCIAL SUPPLIER 
 15-11-2022,Adults,Home Support Services (Havering & Essex) Ltd,Home Care - Private Contractors Payment,1193.59,0.00,COMMERCIAL SUPPLIER 
 15-11-2022,Adults,Home Support Services (Havering & Essex) Ltd,Home Care - Private Contractors Payment,1193.92,0.00,COMMERCIAL SUPPLIER 
 15-11-2022,Adults,Quality Healthcare Solutions Ltd t/a Kare Plus Romford,Home Care - Private Contractors Payment,1200.48,0.00,COMMERCIAL SUPPLIER 
 16-11-2022,Adults,Matrix SCM Ltd,Agency Staff,1203.84,0.00,COMMERCIAL SUPPLIER 
 23-11-2022,Adults,Matrix SCM Ltd,Agency Staff,1203.84,0.00,COMMERCIAL SUPPLIER 
 30-11-2022,Adults,Matrix SCM Ltd,Agency Staff,1203.84,0.00,COMMERCIAL SUPPLIER 
 15-11-2022,Adults,Home Support Services (Havering & Essex) Ltd,Home Care - Private Contractors Payment,1204.42,0.00,COMMERCIAL SUPPLIER 
 09-11-2022,Adults,Matrix SCM Ltd,Agency Staff,1207.46,0.00,COMMERCIAL SUPPLIER 
 16-11-2022,Adults,Matrix SCM Ltd,Agency Staff,1207.46,0.00,COMMERCIAL SUPPLIER 
 23-11-2022,Adults,Matrix SCM Ltd,Agency Staff,1207.46,0.00,COMMERCIAL SUPPLIER 
 30-11-2022,Adults,Matrix SCM Ltd,Agency Staff,1207.46,0.00,COMMERCIAL SUPPLIER 
 09-11-2022,Adults,Matrix SCM Ltd,Agency Staff,1209.60,0.00,COMMERCIAL SUPPLIER 
 16-11-2022,Adults,Matrix SCM Ltd,Agency Staff,1209.60,0.00,COMMERCIAL SUPPLIER 
 18-11-2022,Adults,Independent Community Support Ltd t/a Wingletye Lodge ,Supported Other Accommodation - Private Contractors Payment,1209.60,0.00,COMMERCIAL SUPPLIER 
 30-11-2022,Adults,Matrix SCM Ltd,Agency Staff,1209.60,0.00,COMMERCIAL SUPPLIER 
 08-11-2022,Adults,KJD Care Limited,Home Care - Private Contractors Payment,1210.32,0.00,INDIVIDUALS 
 06-11-2022,Adults,Homestead Care Service,Home Care - Private Contractors Payment,1212.62,0.00,COMMERCIAL SUPPLIER 
 16-11-2022,Adults,London Care Plc_a,Home Care - Private Contractors Payment,1214.58,0.00,COMMERCIAL SUPPLIER 
 06-11-2022,Adults,Homestead Care Service,Home Care - Private Contractors Payment,1219.18,0.00,COMMERCIAL SUPPLIER 
 15-11-2022,Adults,Home Support Services (Havering & Essex) Ltd,Home Care - Private Contractors Payment,1220.16,0.00,COMMERCIAL SUPPLIER 
 06-11-2022,Adults,Homestead Care Service,Home Care - Private Contractors Payment,1223.44,0.00,COMMERCIAL SUPPLIER 
 17-11-2022,Adults,Hospiva Care & Associates Agency Ltd_a,Home Care - Private Contractors Payment,1226.72,0.00,COMMERCIAL SUPPLIER 
 02-11-2022,Adults,Matrix SCM Ltd,Agency Staff,1228.32,0.00,COMMERCIAL SUPPLIER 
 09-11-2022,Adults,Matrix SCM Ltd,Agency Staff,1228.32,0.00,COMMERCIAL SUPPLIER 
 16-11-2022,Adults,Matrix SCM Ltd,Agency Staff,1228.32,0.00,COMMERCIAL SUPPLIER 
 23-11-2022,Adults,Matrix SCM Ltd,Agency Staff,1228.32,0.00,COMMERCIAL SUPPLIER 
 30-11-2022,Adults,Matrix SCM Ltd,Agency Staff,1228.32,0.00,COMMERCIAL SUPPLIER 
 11-11-2022,Adults,Morepower Ltd t/a Aqs Homecare,Home Care - Private Contractors Payment,1228.69,0.00,COMMERCIAL SUPPLIER 
 11-11-2022,Adults,Morepower Ltd t/a Aqs Homecare,Home Care - Private Contractors Payment,1229.34,0.00,COMMERCIAL SUPPLIER 
 06-11-2022,Adults,Homestead Care Service,Home Care - Private Contractors Payment,1231.31,0.00,COMMERCIAL SUPPLIER 
 10-11-2022,Adults,Care-Away Ltd T/A Care Support,Home Care - Private Contractors Payment,1231.36,0.00,COMMERCIAL SUPPLIER 
 21-11-2022,Adults,John Stanleys Care Agency Ltd,Home Care - Private Contractors Payment,1231.97,0.00,COMMERCIAL SUPPLIER 
 16-11-2022,Adults,London Care Plc_a,Home Care - Private Contractors Payment,1234.26,0.00,COMMERCIAL SUPPLIER 
 16-11-2022,Adults,Lodge Group Care UK Ltd,Home Care - Private Contractors Payment,1234.92,0.00,COMMERCIAL SUPPLIER 
 16-11-2022,Adults,Lodge Group Care UK Ltd,Home Care - Private Contractors Payment,1237.22,0.00,COMMERCIAL SUPPLIER 
 07-11-2022,Adults,KJD Care Limited,Home Care - Private Contractors Payment,1239.84,0.00,INDIVIDUALS 
 07-11-2022,Adults,KJD Care Limited,Home Care - Private Contractors Payment,1239.84,0.00,INDIVIDUALS 
 07-11-2022,Adults,London Homecare Ltd,Home Care - Private Contractors Payment,1239.84,0.00,COMMERCIAL SUPPLIER 
 07-11-2022,Adults,London Homecare Ltd,Home Care - Private Contractors Payment,1239.84,0.00,COMMERCIAL SUPPLIER 
 07-11-2022,Adults,London Homecare Ltd,Home Care - Private Contractors Payment,1239.84,0.00,COMMERCIAL SUPPLIER 
 07-11-2022,Adults,London Homecare Ltd,Home Care - Private Contractors Payment,1239.84,0.00,COMMERCIAL SUPPLIER 
 07-11-2022,Adults,London Homecare Ltd,Home Care - Private Contractors Payment,1239.84,0.00,COMMERCIAL SUPPLIER 
 08-11-2022,Adults,Inna Care Ltd,Home Care - Private Contractors Payment,1239.84,0.00,COMMERCIAL SUPPLIER 
 08-11-2022,Adults,Inna Care Ltd,Home Care - Private Contractors Payment,1239.84,0.00,COMMERCIAL SUPPLIER 
 08-11-2022,Adults,KJD Care Limited,Home Care - Private Contractors Payment,1239.84,0.00,INDIVIDUALS 
 08-11-2022,Adults,KJD Care Limited,Home Care - Private Contractors Payment,1239.84,0.00,INDIVIDUALS 
 08-11-2022,Adults,Premier Carewaiting Ltd,Home Care - Private Contractors Payment,1239.84,0.00,COMMERCIAL SUPPLIER 
 09-11-2022,Adults,Outreach Support Services Ltd,Home Care - Private Contractors Payment,1239.84,0.00,COMMERCIAL SUPPLIER 
 09-11-2022,Adults,Outreach Support Services Ltd,Home Care - Private Contractors Payment,1239.84,0.00,COMMERCIAL SUPPLIER 
 09-11-2022,Adults,Outreach Support Services Ltd,Home Care - Private Contractors Payment,1239.84,0.00,COMMERCIAL SUPPLIER 
 15-11-2022,Adults,Passion Tree Care Services Ltd,Home Care - Private Contractors Payment,1239.84,0.00,COMMERCIAL SUPPLIER 
 15-11-2022,Adults,Passion Tree Care Services Ltd,Home Care - Private Contractors Payment,1239.84,0.00,COMMERCIAL SUPPLIER 
 15-11-2022,Adults,Passion Tree Care Services Ltd,Home Care - Private Contractors Payment,1239.84,0.00,COMMERCIAL SUPPLIER 
 16-11-2022,Adults,Lodge Group Care UK Ltd,Home Care - Private Contractors Payment,1239.84,0.00,COMMERCIAL SUPPLIER 
 21-11-2022,Adults,John Stanleys Care Agency Ltd,Home Care - Private Contractors Payment,1239.84,0.00,COMMERCIAL SUPPLIER 
 15-11-2022,Adults,Home Sweet Home Care Ltd,Home Care - Private Contractors Payment,1240.50,0.00,COMMERCIAL SUPPLIER 
 21-11-2022,Adults,John Stanleys Care Agency Ltd,Home Care - Private Contractors Payment,1240.82,0.00,COMMERCIAL SUPPLIER 
 02-11-2022,Adults,Matrix SCM Ltd,Agency Staff,1241.28,0.00,COMMERCIAL SUPPLIER 
 02-11-2022,Adults,Matrix SCM Ltd,Agency Staff,1241.28,0.00,COMMERCIAL SUPPLIER 
 02-11-2022,Adults,Matrix SCM Ltd,Agency Staff,1241.28,0.00,COMMERCIAL SUPPLIER 
 02-11-2022,Adults,Matrix SCM Ltd,Agency Staff,1241.28,0.00,COMMERCIAL SUPPLIER 
 09-11-2022,Adults,Matrix SCM Ltd,Agency Staff,1241.28,0.00,COMMERCIAL SUPPLIER 
 09-11-2022,Adults,Matrix SCM Ltd,Agency Staff,1241.28,0.00,COMMERCIAL SUPPLIER 
 09-11-2022,Adults,Matrix SCM Ltd,Agency Staff,1241.28,0.00,COMMERCIAL SUPPLIER 
 09-11-2022,Adults,Matrix SCM Ltd,Agency Staff,1241.28,0.00,COMMERCIAL SUPPLIER 
 09-11-2022,Adults,Matrix SCM Ltd,Agency Staff,1241.28,0.00,COMMERCIAL SUPPLIER 
 16-11-2022,Adults,Matrix SCM Ltd,Agency Staff,1241.28,0.00,COMMERCIAL SUPPLIER 
 16-11-2022,Adults,Matrix SCM Ltd,Agency Staff,1241.28,0.00,COMMERCIAL SUPPLIER 
 16-11-2022,Adults,Matrix SCM Ltd,Agency Staff,1241.28,0.00,COMMERCIAL SUPPLIER 
 16-11-2022,Adults,Matrix SCM Ltd,Agency Staff,1241.28,0.00,COMMERCIAL SUPPLIER 
 16-11-2022,Adults,Matrix SCM Ltd,Agency Staff,1241.28,0.00,COMMERCIAL SUPPLIER 
 16-11-2022,Adults,Matrix SCM Ltd,Agency Staff,1241.28,0.00,COMMERCIAL SUPPLIER 
 23-11-2022,Adults,Matrix SCM Ltd,Agency Staff,1241.28,0.00,COMMERCIAL SUPPLIER 
 23-11-2022,Adults,Matrix SCM Ltd,Agency Staff,1241.28,0.00,COMMERCIAL SUPPLIER 
 23-11-2022,Adults,Matrix SCM Ltd,Agency Staff,1241.28,0.00,COMMERCIAL SUPPLIER 
 23-11-2022,Adults,Matrix SCM Ltd,Agency Staff,1241.28,0.00,COMMERCIAL SUPPLIER 
 23-11-2022,Adults,Matrix SCM Ltd,Agency Staff,1241.28,0.00,COMMERCIAL SUPPLIER 
 23-11-2022,Adults,Matrix SCM Ltd,Agency Staff,1241.28,0.00,COMMERCIAL SUPPLIER 
 23-11-2022,Adults,Matrix SCM Ltd,Agency Staff,1241.28,0.00,COMMERCIAL SUPPLIER 
 30-11-2022,Adults,Matrix SCM Ltd,Agency Staff,1241.28,0.00,COMMERCIAL SUPPLIER 
 30-11-2022,Adults,Matrix SCM Ltd,Agency Staff,1241.28,0.00,COMMERCIAL SUPPLIER 
 30-11-2022,Adults,Matrix SCM Ltd,Agency Staff,1241.28,0.00,COMMERCIAL SUPPLIER 
 30-11-2022,Adults,Matrix SCM Ltd,Agency Staff,1241.28,0.00,COMMERCIAL SUPPLIER 
 30-11-2022,Adults,Matrix SCM Ltd,Agency Staff,1241.28,0.00,COMMERCIAL SUPPLIER 
 30-11-2022,Adults,Matrix SCM Ltd,Agency Staff,1241.28,0.00,COMMERCIAL SUPPLIER 
 21-11-2022,Adults,John Stanleys Care Agency Ltd,Home Care - Private Contractors Payment,1241.48,0.00,COMMERCIAL SUPPLIER 
 22-11-2022,Adults,Prior Care Ltd_a,Home Care - Private Contractors Payment,1241.81,0.00,COMMERCIAL SUPPLIER 
 02-11-2022,Adults,Matrix SCM Ltd,Agency Staff,1244.51,0.00,COMMERCIAL SUPPLIER 
 09-11-2022,Adults,Matrix SCM Ltd,Agency Staff,1244.51,0.00,COMMERCIAL SUPPLIER 
 16-11-2022,Adults,Matrix SCM Ltd,Agency Staff,1244.51,0.00,COMMERCIAL SUPPLIER 
 30-11-2022,Adults,Matrix SCM Ltd,Agency Staff,1244.51,0.00,COMMERCIAL SUPPLIER 
 07-11-2022,Adults,Bluebird Care Havering,Home Care - Private Contractors Payment,1245.20,0.00,COMMERCIAL SUPPLIER 
 21-11-2022,Adults,Bluebird Care Havering,Home Care - Private Contractors Payment,1245.20,0.00,COMMERCIAL SUPPLIER 
 10-11-2022,Adults,Care-Away Ltd T/A Care Support,Home Care - Private Contractors Payment,1248.00,0.00,COMMERCIAL SUPPLIER 
 15-11-2022,Adults,Home Sweet Home Care Ltd,Home Care - Private Contractors Payment,1249.68,0.00,COMMERCIAL SUPPLIER 
 16-11-2022,Adults,Lodge Group Care UK Ltd,Home Care - Private Contractors Payment,1250.99,0.00,COMMERCIAL SUPPLIER 
 06-11-2022,Adults,Westminster Homecare Ltd_a,Home Care - Private Contractors Payment,1253.94,0.00,COMMERCIAL SUPPLIER 
 15-11-2022,Adults,Home Support Services (Havering & Essex) Ltd,Home Care - Private Contractors Payment,1255.58,0.00,COMMERCIAL SUPPLIER 
 15-11-2022,Adults,Home Support Services (Havering & Essex) Ltd,Home Care - Private Contractors Payment,1256.24,0.00,COMMERCIAL SUPPLIER 
 11-11-2022,Adults,Morepower Ltd t/a Aqs Homecare,Home Care - Private Contractors Payment,1261.82,0.00,COMMERCIAL SUPPLIER 
 15-11-2022,Adults,Home Support Services (Havering & Essex) Ltd,Home Care - Private Contractors Payment,1263.13,0.00,COMMERCIAL SUPPLIER 
 02-11-2022,Adults,Matrix SCM Ltd,Agency Staff,1265.06,0.00,COMMERCIAL SUPPLIER 
 23-11-2022,Adults,Matrix SCM Ltd,Agency Staff,1265.06,0.00,COMMERCIAL SUPPLIER 
 30-11-2022,Adults,Matrix SCM Ltd,Agency Staff,1265.06,0.00,COMMERCIAL SUPPLIER 
 21-11-2022,Adults,John Stanleys Care Agency Ltd,Home Care - Private Contractors Payment,1265.75,0.00,COMMERCIAL SUPPLIER 
 16-11-2022,Adults,Lodge Group Care UK Ltd,Home Care - Private Contractors Payment,1267.39,0.00,COMMERCIAL SUPPLIER 
 15-11-2022,Adults,Home Sweet Home Care Ltd,Home Care - Private Contractors Payment,1273.95,0.00,COMMERCIAL SUPPLIER 
 09-11-2022,Adults,Prestige Care & Support Ltd,Home Care - Private Contractors Payment,1274.94,0.00,COMMERCIAL SUPPLIER 
 15-11-2022,Adults,Quality Healthcare Solutions Ltd t/a Kare Plus Romford,Home Care - Private Contractors Payment,1278.22,0.00,COMMERCIAL SUPPLIER 
 07-11-2022,Adults,London Homecare Ltd,Home Care - Private Contractors Payment,1279.20,0.00,COMMERCIAL SUPPLIER 
 11-11-2022,Adults,Morepower Ltd t/a Aqs Homecare,Home Care - Private Contractors Payment,1280.18,0.00,COMMERCIAL SUPPLIER 
 30-11-2022,Adults,Matrix SCM Ltd,Agency Staff,1281.97,0.00,COMMERCIAL SUPPLIER 
 02-11-2022,Adults,Matrix SCM Ltd,Agency Staff,1281.98,0.00,COMMERCIAL SUPPLIER 
 09-11-2022,Adults,Matrix SCM Ltd,Agency Staff,1281.98,0.00,COMMERCIAL SUPPLIER 
 16-11-2022,Adults,Matrix SCM Ltd,Agency Staff,1281.98,0.00,COMMERCIAL SUPPLIER 
 23-11-2022,Adults,Matrix SCM Ltd,Agency Staff,1281.98,0.00,COMMERCIAL SUPPLIER 
 02-11-2022,Adults,Matrix SCM Ltd,Agency Staff,1282.34,0.00,COMMERCIAL SUPPLIER 
 09-11-2022,Adults,Matrix SCM Ltd,Agency Staff,1282.34,0.00,COMMERCIAL SUPPLIER 
 09-11-2022,Adults,Matrix SCM Ltd,Agency Staff,1282.34,0.00,COMMERCIAL SUPPLIER 
 16-11-2022,Adults,Matrix SCM Ltd,Agency Staff,1282.34,0.00,COMMERCIAL SUPPLIER 
 16-11-2022,Adults,Matrix SCM Ltd,Agency Staff,1282.34,0.00,COMMERCIAL SUPPLIER 
 30-11-2022,Adults,Matrix SCM Ltd,Agency Staff,1282.34,0.00,COMMERCIAL SUPPLIER 
 30-11-2022,Adults,Matrix SCM Ltd,Agency Staff,1282.34,0.00,COMMERCIAL SUPPLIER 
 15-11-2022,Adults,Cera Care Operations Ltd,Home Care - Private Contractors Payment,1282.48,0.00,COMMERCIAL SUPPLIER 
 22-11-2022,Adults,Prior Care Ltd_a,Home Care - Private Contractors Payment,1283.79,0.00,COMMERCIAL SUPPLIER 
 16-11-2022,Adults,Matrix SCM Ltd,Agency Staff,1284.13,0.00,COMMERCIAL SUPPLIER 
 23-11-2022,Adults,Matrix SCM Ltd,Agency Staff,1284.13,0.00,COMMERCIAL SUPPLIER 
 30-11-2022,Adults,Matrix SCM Ltd,Agency Staff,1284.13,0.00,COMMERCIAL SUPPLIER 
 15-11-2022,Adults,Home Support Services (Havering & Essex) Ltd,Home Care - Private Contractors Payment,1285.43,0.00,COMMERCIAL SUPPLIER 
 18-11-2022,Adults,Priory Supporting Care Ltd,Residential Placements - Private Contractors Payment,1285.71,0.00,COMMERCIAL SUPPLIER 
 17-11-2022,Adults,Hospiva Care & Associates Agency Ltd_a,Home Care - Private Contractors Payment,1286.09,0.00,COMMERCIAL SUPPLIER 
 17-11-2022,Adults,Hospiva Care & Associates Agency Ltd_a,Home Care - Private Contractors Payment,1286.09,0.00,COMMERCIAL SUPPLIER 
 09-11-2022,Adults,Matrix SCM Ltd,Agency Staff,1288.45,0.00,COMMERCIAL SUPPLIER 
 16-11-2022,Adults,Matrix SCM Ltd,Agency Staff,1288.45,0.00,COMMERCIAL SUPPLIER 
 23-11-2022,Adults,Matrix SCM Ltd,Agency Staff,1288.45,0.00,COMMERCIAL SUPPLIER 
 30-11-2022,Adults,Matrix SCM Ltd,Agency Staff,1288.45,0.00,COMMERCIAL SUPPLIER 
 30-11-2022,Adults,Matrix SCM Ltd,Agency Staff,1289.92,0.00,COMMERCIAL SUPPLIER 
 02-11-2022,Adults,Matrix SCM Ltd,Agency Staff,1290.24,0.00,COMMERCIAL SUPPLIER 
 16-11-2022,Adults,Matrix SCM Ltd,Agency Staff,1290.24,0.00,COMMERCIAL SUPPLIER 
 16-11-2022,Adults,Matrix SCM Ltd,Agency Staff,1290.24,0.00,COMMERCIAL SUPPLIER 
 23-11-2022,Adults,Matrix SCM Ltd,Agency Staff,1290.24,0.00,COMMERCIAL SUPPLIER 
 30-11-2022,Adults,Matrix SCM Ltd,Agency Staff,1290.24,0.00,COMMERCIAL SUPPLIER 
 02-11-2022,Adults,Matrix SCM Ltd,Agency Staff,1290.59,0.00,COMMERCIAL SUPPLIER 
 09-11-2022,Adults,Matrix SCM Ltd,Agency Staff,1290.59,0.00,COMMERCIAL SUPPLIER 
 16-11-2022,Adults,Matrix SCM Ltd,Agency Staff,1290.59,0.00,COMMERCIAL SUPPLIER 
 23-11-2022,Adults,Matrix SCM Ltd,Agency Staff,1290.60,0.00,COMMERCIAL SUPPLIER 
 16-11-2022,Adults,Lodge Group Care UK Ltd,Home Care - Private Contractors Payment,1290.68,0.00,COMMERCIAL SUPPLIER 
 30-11-2022,Adults,Matrix SCM Ltd,Agency Staff,1293.00,0.00,COMMERCIAL SUPPLIER 
 30-11-2022,Adults,Matrix SCM Ltd,Agency Staff,1293.00,0.00,COMMERCIAL SUPPLIER 
 30-11-2022,Adults,Matrix SCM Ltd,Agency Staff,1293.00,0.00,COMMERCIAL SUPPLIER 
 30-11-2022,Adults,Matrix SCM Ltd,Agency Staff,1293.00,0.00,COMMERCIAL SUPPLIER 
 30-11-2022,Adults,Matrix SCM Ltd,Agency Staff,1293.00,0.00,COMMERCIAL SUPPLIER 
 15-11-2022,Adults,Home Sweet Home Care Ltd,Home Care - Private Contractors Payment,1295.27,0.00,COMMERCIAL SUPPLIER 
 02-11-2022,Adults,Matrix SCM Ltd,Agency Staff,1295.70,0.00,COMMERCIAL SUPPLIER 
 09-11-2022,Adults,Matrix SCM Ltd,Agency Staff,1295.70,0.00,COMMERCIAL SUPPLIER 
 16-11-2022,Adults,Matrix SCM Ltd,Agency Staff,1295.70,0.00,COMMERCIAL SUPPLIER 
 23-11-2022,Adults,Matrix SCM Ltd,Agency Staff,1295.70,0.00,COMMERCIAL SUPPLIER 
 30-11-2022,Adults,Matrix SCM Ltd,Agency Staff,1295.70,0.00,COMMERCIAL SUPPLIER 
 06-11-2022,Adults,Homestead Care Service,Home Care - Private Contractors Payment,1296.26,0.00,COMMERCIAL SUPPLIER 
 17-11-2022,Adults,Hospiva Care & Associates Agency Ltd_a,Home Care - Private Contractors Payment,1297.24,0.00,COMMERCIAL SUPPLIER 
 17-11-2022,Adults,Hospiva Care & Associates Agency Ltd_a,Home Care - Private Contractors Payment,1297.24,0.00,COMMERCIAL SUPPLIER 
 08-11-2022,Adults,KJD Care Limited,Home Care - Private Contractors Payment,1298.88,0.00,INDIVIDUALS 
 08-11-2022,Adults,Premier Carewaiting Ltd,Home Care - Private Contractors Payment,1298.88,0.00,COMMERCIAL SUPPLIER 
 08-11-2022,Adults,Premier Carewaiting Ltd,Home Care - Private Contractors Payment,1298.88,0.00,COMMERCIAL SUPPLIER 
 18-11-2022,Adults,Ashgate House Ltd_a,Residential Placements - Private Contractors Payment,1303.80,0.00,COMMERCIAL SUPPLIER 
 15-11-2022,Adults,Home Sweet Home Care Ltd,Home Care - Private Contractors Payment,1309.70,0.00,COMMERCIAL SUPPLIER 
 30-11-2022,Adults,Matrix SCM Ltd,Agency Staff,1312.50,0.00,COMMERCIAL SUPPLIER 
 16-11-2022,Adults,Lodge Group Care UK Ltd,Home Care - Private Contractors Payment,1315.94,0.00,COMMERCIAL SUPPLIER 
 16-11-2022,Adults,Lodge Group Care UK Ltd,Home Care - Private Contractors Payment,1318.56,0.00,COMMERCIAL SUPPLIER 
 18-11-2022,Adults,L & Q Living (SWIFT Payments),Supported Other Accommodation - Private Contractors Payment,1318.72,0.00,COMMERCIAL SUPPLIER 
 15-11-2022,Adults,Home Sweet Home Care Ltd,Home Care - Private Contractors Payment,1323.15,0.00,COMMERCIAL SUPPLIER 
 15-11-2022,Adults,Quality Healthcare Solutions Ltd t/a Kare Plus Romford,Home Care - Private Contractors Payment,1323.48,0.00,COMMERCIAL SUPPLIER 
 06-11-2022,Adults,Homestead Care Service,Home Care - Private Contractors Payment,1329.38,0.00,COMMERCIAL SUPPLIER 
 22-11-2022,Adults,Prior Care Ltd_a,Home Care - Private Contractors Payment,1333.32,0.00,COMMERCIAL SUPPLIER 
 18-11-2022,Adults,One Tree Estates Ltd t/a Ashbrook Nursing Home,Nursing Homes - Private Contractors Payment,1335.71,0.00,COMMERCIAL SUPPLIER 
 16-11-2022,Adults,London Care Plc_a,Home Care - Private Contractors Payment,1343.16,0.00,COMMERCIAL SUPPLIER 
 21-11-2022,Adults,John Stanleys Care Agency Ltd,Home Care - Private Contractors Payment,1343.16,0.00,COMMERCIAL SUPPLIER 
 21-11-2022,Adults,Gims Care Solution Ltd_a,Home Care - Private Contractors Payment,1344.00,0.00,NON COMMERCIAL SUPPLIER 
 21-11-2022,Adults,Gims Care Solution Ltd_a,Home Care - Private Contractors Payment,1344.00,0.00,NON COMMERCIAL SUPPLIER 
 21-11-2022,Adults,Gims Care Solution Ltd_a,Home Care - Private Contractors Payment,1344.00,0.00,NON COMMERCIAL SUPPLIER 
 21-11-2022,Adults,Gims Care Solution Ltd_a,Home Care - Private Contractors Payment,1344.00,0.00,NON COMMERCIAL SUPPLIER 
 21-11-2022,Adults,Gims Care Solution Ltd_a,Home Care - Private Contractors Payment,1344.00,0.00,NON COMMERCIAL SUPPLIER 
 15-11-2022,Adults,Quality Healthcare Solutions Ltd t/a Kare Plus Romford,Home Care - Private Contractors Payment,1344.47,0.00,COMMERCIAL SUPPLIER 
 15-11-2022,Adults,Home Sweet Home Care Ltd,Home Care - Private Contractors Payment,1346.77,0.00,COMMERCIAL SUPPLIER 
 16-11-2022,Adults,Lodge Group Care UK Ltd,Home Care - Private Contractors Payment,1347.75,0.00,COMMERCIAL SUPPLIER 
 15-11-2022,Adults,Home Sweet Home Care Ltd,Home Care - Private Contractors Payment,1348.08,0.00,COMMERCIAL SUPPLIER 
 21-11-2022,Adults,John Stanleys Care Agency Ltd,Home Care - Private Contractors Payment,1348.08,0.00,COMMERCIAL SUPPLIER 
 16-11-2022,Adults,London Care Plc_a,Home Care - Private Contractors Payment,1348.41,0.00,COMMERCIAL SUPPLIER 
 18-11-2022,Adults,2 Peel Way - Outlook Care,Supported Other Accommodation - Private Contractors Payment,1349.88,0.00,NON COMMERCIAL SUPPLIER 
 06-11-2022,Adults,Homestead Care Service,Home Care - Private Contractors Payment,1352.02,0.00,COMMERCIAL SUPPLIER 
 16-11-2022,Adults,Lodge Group Care UK Ltd,Home Care - Private Contractors Payment,1353.98,0.00,COMMERCIAL SUPPLIER 
 29-11-2022,Adults,Havering Care Homes Ltd t/a Abbscross Nursing Home,Nursing Homes - Private Contractors Payment,1356.00,0.00,COMMERCIAL SUPPLIER 
 18-11-2022,Adults,Manor Lodge_a,Residential Placements - Private Contractors Payment,1357.14,0.00,COMMERCIAL SUPPLIER 
 09-11-2022,Adults,Outreach Support Services Ltd,Home Care - Private Contractors Payment,1357.92,0.00,COMMERCIAL SUPPLIER 
 06-11-2022,Adults,Homestead Care Service,Home Care - Private Contractors Payment,1362.84,0.00,COMMERCIAL SUPPLIER 
 11-11-2022,Adults,Morepower Ltd t/a Aqs Homecare,Home Care - Private Contractors Payment,1368.74,0.00,COMMERCIAL SUPPLIER 
 11-11-2022,Adults,Morepower Ltd t/a Aqs Homecare,Home Care - Private Contractors Payment,1368.74,0.00,COMMERCIAL SUPPLIER 
 17-11-2022,Adults,Hospiva Care & Associates Agency Ltd_a,Home Care - Private Contractors Payment,1370.06,0.00,COMMERCIAL SUPPLIER 
 17-11-2022,Adults,Hospiva Care & Associates Agency Ltd_a,Home Care - Private Contractors Payment,1370.06,0.00,COMMERCIAL SUPPLIER 
 16-11-2022,Adults,London Care Plc_a,Home Care - Private Contractors Payment,1375.96,0.00,COMMERCIAL SUPPLIER 
 16-11-2022,Adults,Lodge Group Care UK Ltd,Home Care - Private Contractors Payment,1376.94,0.00,COMMERCIAL SUPPLIER 
 16-11-2022,Adults,London Care Plc_a,Home Care - Private Contractors Payment,1377.27,0.00,COMMERCIAL SUPPLIER 
 01-11-2022,Adults,Crystalize Care Services,Home Care - Private Contractors Payment,1377.60,0.00,COMMERCIAL SUPPLIER 
 07-11-2022,Adults,London Homecare Ltd,Home Care - Private Contractors Payment,1377.60,0.00,COMMERCIAL SUPPLIER 
 15-11-2022,Adults,Passion Tree Care Services Ltd,Home Care - Private Contractors Payment,1377.60,0.00,COMMERCIAL SUPPLIER 
 06-11-2022,Adults,Eastway Care Ltd_a,Daycare - Private Contractors Payment,1380.00,0.00,COMMERCIAL SUPPLIER 
 09-11-2022,Adults,Matrix SCM Ltd,Agency Staff,1394.66,0.00,COMMERCIAL SUPPLIER 
 16-11-2022,Adults,Matrix SCM Ltd,Agency Staff,1394.66,0.00,COMMERCIAL SUPPLIER 
 23-11-2022,Adults,Matrix SCM Ltd,Agency Staff,1394.66,0.00,COMMERCIAL SUPPLIER 
 30-11-2022,Adults,Matrix SCM Ltd,Agency Staff,1394.66,0.00,COMMERCIAL SUPPLIER 
 09-11-2022,Adults,New City College,Supported Other Accommodation - Private Contractors Payment,1397.12,0.00,NON COMMERCIAL SUPPLIER 
 07-11-2022,Adults,KJD Care Limited,Home Care - Private Contractors Payment,1397.28,0.00,INDIVIDUALS 
 07-11-2022,Adults,London Homecare Ltd,Home Care - Private Contractors Payment,1397.28,0.00,COMMERCIAL SUPPLIER 
 08-11-2022,Adults,KJD Care Limited,Home Care - Private Contractors Payment,1397.28,0.00,INDIVIDUALS 
 15-11-2022,Adults,Home Support Services (Havering & Essex) Ltd,Home Care - Private Contractors Payment,1397.28,0.00,COMMERCIAL SUPPLIER 
 10-11-2022,Adults,Care-Away Ltd T/A Care Support,Home Care - Private Contractors Payment,1397.76,0.00,COMMERCIAL SUPPLIER 
 16-11-2022,Adults,London Care Plc_a,Home Care - Private Contractors Payment,1399.90,0.00,COMMERCIAL SUPPLIER 
 30-11-2022,Adults,Matrix SCM Ltd,Agency Staff,1400.77,0.00,COMMERCIAL SUPPLIER 
 16-11-2022,Adults,Lodge Group Care UK Ltd,Home Care - Private Contractors Payment,1403.51,0.00,COMMERCIAL SUPPLIER 
 07-11-2022,Adults,KJD Care Limited,Home Care - Private Contractors Payment,1407.12,0.00,INDIVIDUALS 
 07-11-2022,Adults,KJD Care Limited,Home Care - Private Contractors Payment,1407.12,0.00,INDIVIDUALS 
 16-11-2022,Adults,Lodge Group Care UK Ltd,Home Care - Private Contractors Payment,1415.65,0.00,COMMERCIAL SUPPLIER 
 15-11-2022,Adults,Bloomscare Ltd,Home Care - Private Contractors Payment,1416.96,0.00,COMMERCIAL SUPPLIER 
 16-11-2022,Adults,Lodge Group Care UK Ltd,Home Care - Private Contractors Payment,1420.57,0.00,COMMERCIAL SUPPLIER 
 23-11-2022,Adults,Matrix SCM Ltd,Agency Staff,1423.36,0.00,COMMERCIAL SUPPLIER 
 16-11-2022,Adults,Lodge Group Care UK Ltd,Home Care - Private Contractors Payment,1424.50,0.00,COMMERCIAL SUPPLIER 
 09-11-2022,Adults,Anytime Care 2020_a,Home Care - Private Contractors Payment,1426.47,0.00,COMMERCIAL SUPPLIER 
 04-11-2022,Adults,Romford Private Hire Ltd,Client Transport,1430.00,0.00,COMMERCIAL SUPPLIER 
 16-11-2022,Adults,Lodge Group Care UK Ltd,Home Care - Private Contractors Payment,1433.36,0.00,COMMERCIAL SUPPLIER 
 06-11-2022,Adults,Westminster Homecare Ltd_a,Home Care - Private Contractors Payment,1436.97,0.00,COMMERCIAL SUPPLIER 
 06-11-2022,Adults,Homestead Care Service,Home Care - Private Contractors Payment,1437.95,0.00,COMMERCIAL SUPPLIER 
 14-11-2022,Adults,London Borough of Barking & Dagenham_a,Daycare - Private Contractors Payment,1440.00,0.00,LOCAL AUTHORITY SERVICES 
 14-11-2022,Adults,London Borough of Barking & Dagenham_a,Daycare - Private Contractors Payment,1440.00,0.00,LOCAL AUTHORITY SERVICES 
 18-11-2022,Adults,Bettertogether Limited,Supported Other Accommodation - Private Contractors Payment,1440.00,0.00,NON COMMERCIAL SUPPLIER 
 06-11-2022,Adults,Homestead Care Service,Home Care - Private Contractors Payment,1440.58,0.00,COMMERCIAL SUPPLIER 
 30-11-2022,Adults,Matrix SCM Ltd,Agency Staff,1448.16,0.00,COMMERCIAL SUPPLIER 
 15-11-2022,Adults,Cera Care Operations Ltd,Home Care - Private Contractors Payment,1452.71,0.00,COMMERCIAL SUPPLIER 
 18-11-2022,Adults,Fountains Care Centre - Bondcare,Respite Care - Private Contractors Payment,1452.86,0.00,COMMERCIAL SUPPLIER 
 15-11-2022,Adults,Home Sweet Home Care Ltd,Home Care - Private Contractors Payment,1455.66,0.00,COMMERCIAL SUPPLIER 
 16-11-2022,Adults,Matrix SCM Ltd,Agency Staff,1462.32,0.00,COMMERCIAL SUPPLIER 
 23-11-2022,Adults,Matrix SCM Ltd,Agency Staff,1462.32,0.00,COMMERCIAL SUPPLIER 
 02-11-2022,Adults,Matrix SCM Ltd,Agency Staff,1462.34,0.00,COMMERCIAL SUPPLIER 
 09-11-2022,Adults,Matrix SCM Ltd,Agency Staff,1462.34,0.00,COMMERCIAL SUPPLIER 
 30-11-2022,Adults,Matrix SCM Ltd,Agency Staff,1462.34,0.00,COMMERCIAL SUPPLIER 
 18-11-2022,Adults,Black Swan International Ltd - Drummonds,Residential Placements - Private Contractors Payment,1470.00,0.00,COMMERCIAL SUPPLIER 
 02-11-2022,Adults,Matrix SCM Ltd,Agency Staff,1473.12,0.00,COMMERCIAL SUPPLIER 
 02-11-2022,Adults,Matrix SCM Ltd,Agency Staff,1473.12,0.00,COMMERCIAL SUPPLIER 
 09-11-2022,Adults,Matrix SCM Ltd,Agency Staff,1473.12,0.00,COMMERCIAL SUPPLIER 
 16-11-2022,Adults,Matrix SCM Ltd,Agency Staff,1473.12,0.00,COMMERCIAL SUPPLIER 
 23-11-2022,Adults,Matrix SCM Ltd,Agency Staff,1473.12,0.00,COMMERCIAL SUPPLIER 
 30-11-2022,Adults,Matrix SCM Ltd,Agency Staff,1473.12,0.00,COMMERCIAL SUPPLIER 
 18-11-2022,Adults,Blueboard Care Services Ltd,Supported Other Accommodation - Private Contractors Payment,1478.40,0.00,COMMERCIAL SUPPLIER 
 18-11-2022,Adults,Blueboard Care Services Ltd,Supported Other Accommodation - Private Contractors Payment,1478.40,0.00,COMMERCIAL SUPPLIER 
 18-11-2022,Adults,The Cedars,Supported Other Accommodation - Private Contractors Payment,1479.24,0.00,COMMERCIAL SUPPLIER 
 18-11-2022,Adults,Ebony Health Care Services Limited,Supported Other Accommodation - Private Contractors Payment,1496.24,0.00,COMMERCIAL SUPPLIER 
 17-11-2022,Adults,Osborne Partnership,Daycare - Private Contractors Payment,1500.00,0.00,COMMERCIAL SUPPLIER 
 11-11-2022,Adults,Care-Away Ltd T/A Care Support,Home Care - Private Contractors Payment,1514.24,0.00,COMMERCIAL SUPPLIER 
 11-11-2022,Adults,Morepower Ltd t/a Aqs Homecare,Home Care - Private Contractors Payment,1523.23,0.00,COMMERCIAL SUPPLIER 
 06-11-2022,Adults,Westminster Homecare Ltd_a,Home Care - Private Contractors Payment,1525.53,0.00,COMMERCIAL SUPPLIER 
 18-11-2022,Adults,The Cedars,Supported Other Accommodation - Private Contractors Payment,1531.00,0.00,COMMERCIAL SUPPLIER 
 18-11-2022,Adults,DMP Healthcare (Cherry Orchard) Ltd,Nursing Homes - Private Contractors Payment,1532.14,0.00,COMMERCIAL SUPPLIER 
 02-11-2022,Adults,Matrix SCM Ltd,Agency Staff,1533.82,0.00,COMMERCIAL SUPPLIER 
 14-11-2022,Adults,Pleasant Home Healthcare Ltd,Home Care - Private Contractors Payment,1535.04,0.00,COMMERCIAL SUPPLIER 
 18-11-2022,Adults,Affinia Healthcare Ltd_a,Supported Other Accommodation - Private Contractors Payment,1538.48,0.00,COMMERCIAL SUPPLIER 
 09-11-2022,Adults,Anytime Care 2020_a,Home Care - Private Contractors Payment,1539.63,0.00,COMMERCIAL SUPPLIER 
 18-11-2022,Adults,Ranc Care Homes Ltd - Romford Care Centre,Nursing Homes - Private Contractors Payment,1542.86,0.00,COMMERCIAL SUPPLIER 
 18-11-2022,Adults,Ranc Care Homes Ltd - Romford Care Centre,Residential Placements - Private Contractors Payment,1549.71,0.00,COMMERCIAL SUPPLIER 
 16-11-2022,Adults,Action First Assessments Ltd,Private Contractors Payment - Other,1550.00,0.00,COMMERCIAL SUPPLIER 
 15-11-2022,Adults,Passion Tree Care Services Ltd,Home Care - Private Contractors Payment,1554.72,0.00,COMMERCIAL SUPPLIER 
 16-11-2022,Adults,Lodge Group Care UK Ltd,Home Care - Private Contractors Payment,1554.72,0.00,COMMERCIAL SUPPLIER 
 18-11-2022,Adults,Outlook Care - 76 Neave Crescent,Supported Other Accommodation - Private Contractors Payment,1562.00,0.00,COMMERCIAL SUPPLIER 
 18-11-2022,Adults,Outlook Care - 76 Neave Crescent,Supported Other Accommodation - Private Contractors Payment,1562.00,0.00,COMMERCIAL SUPPLIER 
 18-11-2022,Adults,Outlook Care - 76 Neave Crescent,Supported Other Accommodation - Private Contractors Payment,1562.00,0.00,COMMERCIAL SUPPLIER 
 18-11-2022,Adults,Outlook Care - 76 Neave Crescent,Supported Other Accommodation - Private Contractors Payment,1562.00,0.00,COMMERCIAL SUPPLIER 
 18-11-2022,Adults,Outlook Care - 76 Neave Crescent,Supported Other Accommodation - Private Contractors Payment,1562.00,0.00,COMMERCIAL SUPPLIER 
 18-11-2022,Adults,Outlook Care - 76 Neave Crescent,Supported Other Accommodation - Private Contractors Payment,1562.00,0.00,COMMERCIAL SUPPLIER 
 18-11-2022,Adults,Outlook Care - 76 Neave Crescent,Supported Other Accommodation - Private Contractors Payment,1562.00,0.00,COMMERCIAL SUPPLIER 
 18-11-2022,Adults,Outlook Care - 76 Neave Crescent,Supported Other Accommodation - Private Contractors Payment,1562.00,0.00,COMMERCIAL SUPPLIER 
 18-11-2022,Adults,Outlook Care - 76 Neave Crescent,Supported Other Accommodation - Private Contractors Payment,1562.00,0.00,COMMERCIAL SUPPLIER 
 10-11-2022,Adults,Care-Away Ltd T/A Care Support,Home Care - Private Contractors Payment,1564.16,0.00,COMMERCIAL SUPPLIER 
 18-11-2022,Adults,Outlook Care - 86 Veronica Close,Residential Placements - Private Contractors Payment,1565.56,0.00,COMMERCIAL SUPPLIER 
 18-11-2022,Adults,Outlook Care - 76 Neave Crescent,Supported Other Accommodation - Private Contractors Payment,1566.60,0.00,COMMERCIAL SUPPLIER 
 18-11-2022,Adults,Outlook Care - 76 Neave Crescent,Supported Other Accommodation - Private Contractors Payment,1566.60,0.00,COMMERCIAL SUPPLIER 
 18-11-2022,Adults,Outlook Care - 4 Peel Way,Supported Other Accommodation - Private Contractors Payment,1570.80,0.00,COMMERCIAL SUPPLIER 
 06-11-2022,Adults,Westminster Homecare Ltd_a,Home Care - Private Contractors Payment,1571.78,0.00,COMMERCIAL SUPPLIER 
 18-11-2022,Adults,Pathways Care and Support Services Ltd,Supported Other Accommodation - Private Contractors Payment,1581.72,0.00,COMMERCIAL SUPPLIER 
 15-11-2022,Adults,Home Support Services (Havering & Essex) Ltd,Home Care - Private Contractors Payment,1587.85,0.00,COMMERCIAL SUPPLIER 
 18-11-2022,Adults,Outlook Care - 76 Neave Crescent,Supported Other Accommodation - Private Contractors Payment,1597.92,0.00,COMMERCIAL SUPPLIER 
 18-11-2022,Adults,Outlook Care - 76 Neave Crescent,Supported Other Accommodation - Private Contractors Payment,1597.92,0.00,COMMERCIAL SUPPLIER 
 18-11-2022,Adults,Outlook Care - 76 Neave Crescent,Supported Other Accommodation - Private Contractors Payment,1597.92,0.00,COMMERCIAL SUPPLIER 
 18-11-2022,Adults,Outlook Care - 76 Neave Crescent,Supported Other Accommodation - Private Contractors Payment,1597.92,0.00,COMMERCIAL SUPPLIER 
 09-11-2022,Adults,Matrix SCM Ltd,Agency Staff,1601.28,0.00,COMMERCIAL SUPPLIER 
 16-11-2022,Adults,Matrix SCM Ltd,Agency Staff,1601.28,0.00,COMMERCIAL SUPPLIER 
 23-11-2022,Adults,Matrix SCM Ltd,Agency Staff,1601.28,0.00,COMMERCIAL SUPPLIER 
 18-11-2022,Adults,Coastal Supported Living CIC,Supported Other Accommodation - Private Contractors Payment,1606.88,0.00,COMMERCIAL SUPPLIER 
 18-11-2022,Adults,Bettertogether Limited,Supported Other Accommodation - Private Contractors Payment,1612.00,0.00,NON COMMERCIAL SUPPLIER 
 18-11-2022,Adults,Bettertogether Limited,Supported Other Accommodation - Private Contractors Payment,1612.00,0.00,NON COMMERCIAL SUPPLIER 
 18-11-2022,Adults,Ashking House Ltd,Residential Placements - Private Contractors Payment,1616.84,0.00,COMMERCIAL SUPPLIER 
 18-11-2022,Adults,The Riverside Group,Supported Other Accommodation - Private Contractors Payment,1623.12,0.00, 
 25-11-2022,Adults,D J Howard Ltd t/a Bluebird Care Milton Keynes,Home Care - Private Contractors Payment,1625.10,0.00,COMMERCIAL SUPPLIER 
 09-11-2022,Adults,Outreach Support Services Ltd,Home Care - Private Contractors Payment,1633.44,0.00,COMMERCIAL SUPPLIER 
 30-11-2022,Adults,Matrix SCM Ltd,Agency Staff,1649.12,0.00,COMMERCIAL SUPPLIER 
 18-11-2022,Adults,Affinia Healthcare Ltd_a,Supported Other Accommodation - Private Contractors Payment,1650.76,0.00,COMMERCIAL SUPPLIER 
 08-11-2022,Adults,KJD Care Limited,Home Care - Private Contractors Payment,1653.12,0.00,INDIVIDUALS 
 08-11-2022,Adults,Premier Carewaiting Ltd,Home Care - Private Contractors Payment,1653.12,0.00,COMMERCIAL SUPPLIER 
 08-11-2022,Adults,Premier Carewaiting Ltd,Home Care - Private Contractors Payment,1653.12,0.00,COMMERCIAL SUPPLIER 
 09-11-2022,Adults,Outreach Support Services Ltd,Home Care - Private Contractors Payment,1653.12,0.00,COMMERCIAL SUPPLIER 
 09-11-2022,Adults,Prestige Care & Support Ltd,Home Care - Private Contractors Payment,1668.54,0.00,COMMERCIAL SUPPLIER 
 02-11-2022,Adults,Matrix SCM Ltd,Agency Staff,1675.90,0.00,COMMERCIAL SUPPLIER 
 09-11-2022,Adults,Matrix SCM Ltd,Agency Staff,1675.90,0.00,COMMERCIAL SUPPLIER 
 30-11-2022,Adults,Matrix SCM Ltd,Agency Staff,1675.90,0.00,COMMERCIAL SUPPLIER 
 30-11-2022,Adults,Matrix SCM Ltd,Agency Staff,1675.90,0.00,COMMERCIAL SUPPLIER 
 18-11-2022,Adults,Outlook Care - 76 Neave Crescent,Supported Other Accommodation - Private Contractors Payment,1677.92,0.00,COMMERCIAL SUPPLIER 
 18-11-2022,Adults,Protecthand Care Ltd ,Supported Other Accommodation - Private Contractors Payment,1680.00,0.00,COMMERCIAL SUPPLIER 
 15-11-2022,Adults,Cera Care Operations Ltd,Home Care - Private Contractors Payment,1681.98,0.00,COMMERCIAL SUPPLIER 
 16-11-2022,Adults,Matrix SCM Ltd,Agency Staff,1686.60,0.00,COMMERCIAL SUPPLIER 
 16-11-2022,Adults,Matrix SCM Ltd,Agency Staff,1686.60,0.00,COMMERCIAL SUPPLIER 
 16-11-2022,Adults,Matrix SCM Ltd,Agency Staff,1686.60,0.00,COMMERCIAL SUPPLIER 
 16-11-2022,Adults,Matrix SCM Ltd,Agency Staff,1686.60,0.00,COMMERCIAL SUPPLIER 
 16-11-2022,Adults,Matrix SCM Ltd,Agency Staff,1686.60,0.00,COMMERCIAL SUPPLIER 
 18-11-2022,Adults,2 Peel Way - Outlook Care,Supported Other Accommodation - Private Contractors Payment,1687.28,0.00,NON COMMERCIAL SUPPLIER 
 10-11-2022,Adults,IJB Healthcare Ltd,Home Care - Private Contractors Payment,1692.48,0.00,COMMERCIAL SUPPLIER 
 18-11-2022,Adults,Affinia Healthcare Ltd_a,Supported Other Accommodation - Private Contractors Payment,1704.20,0.00,COMMERCIAL SUPPLIER 
 18-11-2022,Adults,Outlook Care - 4 Peel Way,Supported Other Accommodation - Private Contractors Payment,1719.80,0.00,COMMERCIAL SUPPLIER 
 18-11-2022,Adults,Outlook Care - 76 Neave Crescent,Supported Other Accommodation - Private Contractors Payment,1719.88,0.00,COMMERCIAL SUPPLIER 
 18-11-2022,Adults,Vibrance ,Residential Placements - Private Contractors Payment,1720.76,0.00,COMMERCIAL SUPPLIER 
 18-11-2022,Adults,2 Peel Way - Outlook Care,Supported Other Accommodation - Private Contractors Payment,1721.00,0.00,NON COMMERCIAL SUPPLIER 
 15-11-2022,Adults,Home Sweet Home Care Ltd,Home Care - Private Contractors Payment,1721.02,0.00,COMMERCIAL SUPPLIER 
 18-11-2022,Adults,One Tree Estates Ltd t/a Ashbrook Nursing Home,Nursing Homes - Private Contractors Payment,1728.00,0.00,COMMERCIAL SUPPLIER 
 10-11-2022,Adults,Care-Away Ltd T/A Care Support,Home Care - Private Contractors Payment,1730.56,0.00,COMMERCIAL SUPPLIER 
 18-11-2022,Adults,Affinia Healthcare Ltd_a,Supported Other Accommodation - Private Contractors Payment,1731.28,0.00,COMMERCIAL SUPPLIER 
 18-11-2022,Adults,Affinia Healthcare Ltd_a,Supported Other Accommodation - Private Contractors Payment,1751.12,0.00,COMMERCIAL SUPPLIER 
 18-11-2022,Adults,Affinia Healthcare Ltd_a,Supported Other Accommodation - Private Contractors Payment,1751.12,0.00,COMMERCIAL SUPPLIER 
 18-11-2022,Adults,Affinia Healthcare Ltd_a,Supported Other Accommodation - Private Contractors Payment,1751.12,0.00,COMMERCIAL SUPPLIER 
 09-11-2022,Adults,Prestige Care & Support Ltd,Home Care - Private Contractors Payment,1751.52,0.00,COMMERCIAL SUPPLIER 
 18-11-2022,Adults,Affinia Healthcare Ltd_a,Supported Other Accommodation - Private Contractors Payment,1752.48,0.00,COMMERCIAL SUPPLIER 
 09-11-2022,Adults,Outreach Support Services Ltd,Home Care - Private Contractors Payment,1758.48,0.00,COMMERCIAL SUPPLIER 
 09-11-2022,Adults,Outreach Support Services Ltd,Home Care - Private Contractors Payment,1758.48,0.00,COMMERCIAL SUPPLIER 
 18-11-2022,Adults,Abbottswood Lodge,Residential Placements - Private Contractors Payment,1763.76,0.00,COMMERCIAL SUPPLIER 
 11-11-2022,Adults,Morepower Ltd t/a Aqs Homecare,Home Care - Private Contractors Payment,1770.87,0.00,COMMERCIAL SUPPLIER 
 18-11-2022,Adults,Bettertogether Limited,Supported Other Accommodation - Private Contractors Payment,1776.00,0.00,NON COMMERCIAL SUPPLIER 
 07-11-2022,Adults,KJD Care Limited,Home Care - Private Contractors Payment,1790.88,0.00,INDIVIDUALS 
 08-11-2022,Adults,KJD Care Limited,Home Care - Private Contractors Payment,1790.88,0.00,INDIVIDUALS 
 14-11-2022,Adults,Pleasant Home Healthcare Ltd,Home Care - Private Contractors Payment,1790.88,0.00,COMMERCIAL SUPPLIER 
 18-11-2022,Adults,Outlook Care - 4 Peel Way,Supported Other Accommodation - Private Contractors Payment,1796.08,0.00,COMMERCIAL SUPPLIER 
 18-11-2022,Adults,Outlook Care - 4 Peel Way,Supported Other Accommodation - Private Contractors Payment,1796.08,0.00,COMMERCIAL SUPPLIER 
 18-11-2022,Adults,Kadmiel Projects Ltd,Supported Other Accommodation - Private Contractors Payment,1803.36,0.00,COMMERCIAL SUPPLIER 
 18-11-2022,Adults,Kadmiel Projects Ltd,Supported Other Accommodation - Private Contractors Payment,1812.88,0.00,COMMERCIAL SUPPLIER 
 10-11-2022,Adults,Care-Away Ltd T/A Care Support,Home Care - Private Contractors Payment,1813.76,0.00,COMMERCIAL SUPPLIER 
 18-11-2022,Adults,Affinia Healthcare Ltd_a,Supported Other Accommodation - Private Contractors Payment,1817.80,0.00,COMMERCIAL SUPPLIER 
 18-11-2022,Adults,Bettertogether Limited,Supported Other Accommodation - Private Contractors Payment,1832.00,0.00,NON COMMERCIAL SUPPLIER 
 18-11-2022,Adults,Bettertogether Limited,Supported Other Accommodation - Private Contractors Payment,1832.00,0.00,NON COMMERCIAL SUPPLIER 
 18-11-2022,Adults,Bettertogether Limited,Supported Other Accommodation - Private Contractors Payment,1832.00,0.00,NON COMMERCIAL SUPPLIER 
 18-11-2022,Adults,Bettertogether Limited,Supported Other Accommodation - Private Contractors Payment,1832.00,0.00,NON COMMERCIAL SUPPLIER 
 18-11-2022,Adults,Bettertogether Limited,Supported Other Accommodation - Private Contractors Payment,1832.00,0.00,NON COMMERCIAL SUPPLIER 
 18-11-2022,Adults,Bettertogether Limited,Supported Other Accommodation - Private Contractors Payment,1832.00,0.00,NON COMMERCIAL SUPPLIER 
 18-11-2022,Adults,Bettertogether Limited,Supported Other Accommodation - Private Contractors Payment,1832.00,0.00,NON COMMERCIAL SUPPLIER 
 09-11-2022,Adults,Action First Assessments Ltd,Private Contractors Payment - Other,1860.00,0.00,COMMERCIAL SUPPLIER 
 10-11-2022,Adults,Care-Away Ltd T/A Care Support,Home Care - Private Contractors Payment,1863.68,0.00,COMMERCIAL SUPPLIER 
 11-11-2022,Adults,Care-Away Ltd T/A Care Support,Home Care - Private Contractors Payment,1880.32,0.00,COMMERCIAL SUPPLIER 
 18-11-2022,Adults,Maison Moti Ltd,Supported Other Accommodation - Private Contractors Payment,1890.00,0.00,COMMERCIAL SUPPLIER 
 18-11-2022,Adults,Affinia Healthcare Ltd_a,Supported Other Accommodation - Private Contractors Payment,1901.04,0.00,COMMERCIAL SUPPLIER 
 18-11-2022,Adults,S & S Support Service Ltd   ,Supported Other Accommodation - Private Contractors Payment,1904.00,0.00,COMMERCIAL SUPPLIER 
 28-11-2022,Adults,All Therapy Solutions Ltd,Occupational Health,1920.00,0.00,COMMERCIAL SUPPLIER 
 08-11-2022,Adults,Inna Care Ltd,Home Care - Private Contractors Payment,1928.64,0.00,COMMERCIAL SUPPLIER 
 09-11-2022,Adults,Outreach Support Services Ltd,Home Care - Private Contractors Payment,1928.64,0.00,COMMERCIAL SUPPLIER 
 15-11-2022,Adults,Home Support Services (Havering & Essex) Ltd,Home Care - Private Contractors Payment,1928.64,0.00,COMMERCIAL SUPPLIER 
 18-11-2022,Adults,Ashgate House Ltd_a,Residential Placements - Private Contractors Payment,1932.96,0.00,COMMERCIAL SUPPLIER 
 18-11-2022,Adults,Endsleigh Care Ltd,Residential Placements - Private Contractors Payment,1940.84,0.00,COMMERCIAL SUPPLIER 
 07-11-2022,Adults,KJD Care Limited,Home Care - Private Contractors Payment,1948.32,0.00,INDIVIDUALS 
 08-11-2022,Adults,KJD Care Limited,Home Care - Private Contractors Payment,1948.32,0.00,INDIVIDUALS 
 18-11-2022,Adults,Affinia Healthcare Ltd_a,Supported Other Accommodation - Private Contractors Payment,1987.72,0.00,COMMERCIAL SUPPLIER 
 18-11-2022,Adults,Blueboard Care Services Ltd,Supported Other Accommodation - Private Contractors Payment,1999.20,0.00,COMMERCIAL SUPPLIER 
 18-11-2022,Adults,One Tree Estates Ltd t/a Ashbrook Nursing Home,Nursing Homes - Private Contractors Payment,2000.00,0.00,COMMERCIAL SUPPLIER 
 18-11-2022,Adults,EC Romford Holdings Ltd,Residential Placements - Private Contractors Payment,2000.00,0.00,COMMERCIAL SUPPLIER 
 02-11-2022,Adults,Matrix SCM Ltd,Agency Staff,2011.05,0.00,COMMERCIAL SUPPLIER 
 09-11-2022,Adults,Matrix SCM Ltd,Agency Staff,2011.05,0.00,COMMERCIAL SUPPLIER 
 01-11-2022,Adults,Marlow,Residential Placements - Private Contractors Payment,2018.48,0.00,COMMERCIAL SUPPLIER 
 18-11-2022,Adults,Adjuvo Care Essex Ltd ,Supported Other Accommodation - Private Contractors Payment,2033.72,0.00,COMMERCIAL SUPPLIER 
 18-11-2022,Adults,DMP Healthcare (Heatherbrook) Ltd,Nursing Homes - Private Contractors Payment,2034.00,0.00,NON COMMERCIAL SUPPLIER 
 10-11-2022,Adults,Care-Away Ltd T/A Care Support,Home Care - Private Contractors Payment,2038.40,0.00,COMMERCIAL SUPPLIER 
 21-11-2022,Adults,All Therapy Solutions Ltd,Occupational Health,2040.00,0.00,COMMERCIAL SUPPLIER 
 18-11-2022,Adults,Black Swan International Ltd - Drummonds,Residential Placements - Private Contractors Payment,2044.00,0.00,COMMERCIAL SUPPLIER 
 09-11-2022,Adults,Outreach Support Services Ltd,Home Care - Private Contractors Payment,2046.72,0.00,COMMERCIAL SUPPLIER 
 09-11-2022,Adults,Outreach Support Services Ltd,Home Care - Private Contractors Payment,2046.72,0.00,COMMERCIAL SUPPLIER 
 09-11-2022,Adults,Outreach Support Services Ltd,Home Care - Private Contractors Payment,2046.72,0.00,COMMERCIAL SUPPLIER 
 09-11-2022,Adults,Outreach Support Services Ltd,Home Care - Private Contractors Payment,2046.72,0.00,COMMERCIAL SUPPLIER 
 23-11-2022,Adults,Trinity London Care Ltd,Daycare - Private Contractors Payment,2050.00,0.00,COMMERCIAL SUPPLIER 
 23-11-2022,Adults,Trinity London Care Ltd,Daycare - Private Contractors Payment,2050.00,0.00,COMMERCIAL SUPPLIER 
 23-11-2022,Adults,Trinity London Care Ltd,Daycare - Private Contractors Payment,2050.00,0.00,COMMERCIAL SUPPLIER 
 18-11-2022,Adults,Affinia Healthcare Ltd_a,Supported Other Accommodation - Private Contractors Payment,2053.68,0.00,COMMERCIAL SUPPLIER 
 18-11-2022,Adults,Bettertogether Limited,Supported Other Accommodation - Private Contractors Payment,2056.00,0.00,NON COMMERCIAL SUPPLIER 
 18-11-2022,Adults,Bettertogether Limited,Supported Other Accommodation - Private Contractors Payment,2056.00,0.00,NON COMMERCIAL SUPPLIER 
 18-11-2022,Adults,Bettertogether Limited,Supported Other Accommodation - Private Contractors Payment,2056.00,0.00,NON COMMERCIAL SUPPLIER 
 08-11-2022,Adults,KJD Care Limited,Home Care - Private Contractors Payment,2066.40,0.00,INDIVIDUALS 
 08-11-2022,Adults,KJD Care Limited,Home Care - Private Contractors Payment,2066.40,0.00,INDIVIDUALS 
 18-11-2022,Adults,Gemstone Properties Ltd,Residential Placements - Private Contractors Payment,2078.44,0.00,COMMERCIAL SUPPLIER 
 18-11-2022,Adults,Hillsview Care Services Ltd,Residential Placements - Private Contractors Payment,2079.00,0.00,COMMERCIAL SUPPLIER 
 18-11-2022,Adults,Highfield Care Homes Ltd t/a Romford Grange Care Home,Residential Placements - Private Contractors Payment,2085.00,0.00,COMMERCIAL SUPPLIER 
 10-11-2022,Adults,Care-Away Ltd T/A Care Support,Home Care - Private Contractors Payment,2096.64,0.00,COMMERCIAL SUPPLIER 
 29-11-2022,Adults,Jaktol Day Centers,Daycare - Private Contractors Payment,2099.70,0.00,COMMERCIAL SUPPLIER 
 18-11-2022,Adults,Alpine Resources UK Ltd,Supported Other Accommodation - Private Contractors Payment,2100.00,0.00,COMMERCIAL SUPPLIER 
 18-11-2022,Adults,Cygnet (OE) Ltd ,Residential Placements - Private Contractors Payment,2100.00,0.00,COMMERCIAL SUPPLIER 
 18-11-2022,Adults,Outreach Support Services Ltd,Supported Other Accommodation - Private Contractors Payment,2121.00,0.00,COMMERCIAL SUPPLIER 
 07-11-2022,Adults,KJD Care Limited,Home Care - Private Contractors Payment,2125.46,0.00,INDIVIDUALS 
 07-11-2022,Adults,KJD Care Limited,Home Care - Private Contractors Payment,2125.46,0.00,INDIVIDUALS 
 07-11-2022,Adults,Agracare Ltd t/a Home Instead Senior Care,Home Care - Private Contractors Payment,2125.50,0.00,COMMERCIAL SUPPLIER 
 18-11-2022,Adults,Beechcourt Care Centre - Bondcare,Nursing Homes - Private Contractors Payment,2130.86,0.00,COMMERCIAL SUPPLIER 
 18-11-2022,Adults,Runwood Homes Plc - Woodbury Court,Residential Placements - Private Contractors Payment,2132.00,0.00,COMMERCIAL SUPPLIER 
 18-11-2022,Adults,Ash Grove Residential Care Home,Residential Placements - Private Contractors Payment,2142.86,0.00,COMMERCIAL SUPPLIER 
 14-11-2022,Adults,London Borough of Barking & Dagenham_a,Daycare - Private Contractors Payment,2160.00,0.00,LOCAL AUTHORITY SERVICES 
 14-11-2022,Adults,London Borough of Barking & Dagenham_a,Daycare - Private Contractors Payment,2160.00,0.00,LOCAL AUTHORITY SERVICES 
 04-11-2022,Adults,Florijn Care Ltd,Residential Placements - Private Contractors Payment,2170.65,0.00,COMMERCIAL SUPPLIER 
 18-11-2022,Adults,One Tree Estates Ltd t/a Ashbrook Nursing Home,Nursing Homes - Private Contractors Payment,2178.00,0.00,COMMERCIAL SUPPLIER 
 08-11-2022,Adults,Inna Care Ltd,Home Care - Private Contractors Payment,2204.16,0.00,COMMERCIAL SUPPLIER 
 08-11-2022,Adults,Inna Care Ltd,Home Care - Private Contractors Payment,2204.16,0.00,COMMERCIAL SUPPLIER 
 11-11-2022,Adults,Gims Care Solution Ltd_a,Home Care - Private Contractors Payment,2204.16,0.00,NON COMMERCIAL SUPPLIER 
 11-11-2022,Adults,Gims Care Solution Ltd_a,Home Care - Private Contractors Payment,2204.16,0.00,NON COMMERCIAL SUPPLIER 
 18-11-2022,Adults,Cygnet Health Care,Residential Placements - Private Contractors Payment,2205.00,0.00,COMMERCIAL SUPPLIER 
 15-11-2022,Adults,Home Support Services (Havering & Essex) Ltd,Home Care - Private Contractors Payment,2205.14,0.00,COMMERCIAL SUPPLIER 
 18-11-2022,Adults,DMP Healthcare (Heatherbrook) Ltd,Respite Care - Private Contractors Payment,2227.71,0.00,NON COMMERCIAL SUPPLIER 
 29-11-2022,Adults,Havering Care Homes Ltd t/a Abbscross Nursing Home,Nursing Homes - Private Contractors Payment,2228.57,0.00,COMMERCIAL SUPPLIER 
 15-11-2022,Adults,Home Support Services (Havering & Essex) Ltd,Home Care - Private Contractors Payment,2230.73,0.00,COMMERCIAL SUPPLIER 
 18-11-2022,Adults,Bettertogether Limited,Supported Other Accommodation - Private Contractors Payment,2236.00,0.00,NON COMMERCIAL SUPPLIER 
 19-11-2022,Adults,Jaktol Day Centers,Daycare - Private Contractors Payment,2239.68,0.00,COMMERCIAL SUPPLIER 
 19-11-2022,Adults,Jaktol Day Centers,Daycare - Private Contractors Payment,2239.68,0.00,COMMERCIAL SUPPLIER 
 19-11-2022,Adults,Jaktol Day Centers,Daycare - Private Contractors Payment,2239.68,0.00,COMMERCIAL SUPPLIER 
 29-11-2022,Adults,Jaktol Day Centers,Daycare - Private Contractors Payment,2239.68,0.00,COMMERCIAL SUPPLIER 
 14-11-2022,Adults,Mayflower Travel,Client Transport,2240.00,0.00,COMMERCIAL SUPPLIER 
 18-11-2022,Adults,Outlook Care_a,Supported Other Accommodation - Private Contractors Payment,2253.44,0.00,COMMERCIAL SUPPLIER 
 18-11-2022,Adults,Faris Lodge,Supported Other Accommodation - Private Contractors Payment,2267.72,0.00,COMMERCIAL SUPPLIER 
 18-11-2022,Adults,Home From Home Support Service Ltd ,Supported Other Accommodation - Private Contractors Payment,2268.00,0.00,COMMERCIAL SUPPLIER 
 07-11-2022,Adults,London Homecare Ltd,Home Care - Private Contractors Payment,2282.88,0.00,COMMERCIAL SUPPLIER 
 18-11-2022,Adults,Pathways Care Group Ltd,Residential Placements - Private Contractors Payment,2285.56,0.00,COMMERCIAL SUPPLIER 
 18-11-2022,Adults,DMP Healthcare (Cherry Orchard) Ltd,Residential Placements - Private Contractors Payment,2300.12,0.00,COMMERCIAL SUPPLIER 
 18-11-2022,Adults,Livability - John Grooms Court,Residential Placements - Private Contractors Payment,2311.28,0.00,COMMERCIAL SUPPLIER 
 18-11-2022,Adults,Livability - John Grooms Court,Residential Placements - Private Contractors Payment,2311.28,0.00,COMMERCIAL SUPPLIER 
 18-11-2022,Adults,Fountains Care Centre - Bondcare,Residential Placements - Private Contractors Payment,2314.24,0.00,COMMERCIAL SUPPLIER 
 18-11-2022,Adults,Highfield Care Homes Ltd t/a Romford Grange Care Home,Nursing Homes - Private Contractors Payment,2324.57,0.00,COMMERCIAL SUPPLIER 
 18-11-2022,Adults,Barleycroft Care Home Ltd,Nursing Homes - Private Contractors Payment,2324.57,0.00,COMMERCIAL SUPPLIER 
 11-11-2022,Adults,Care-Away Ltd T/A Care Support,Home Care - Private Contractors Payment,2329.60,0.00,COMMERCIAL SUPPLIER 
 18-11-2022,Adults,Kadmiel Projects Ltd,Supported Other Accommodation - Private Contractors Payment,2342.08,0.00,COMMERCIAL SUPPLIER 
 18-11-2022,Adults,2 Peel Way - Outlook Care,Supported Other Accommodation - Private Contractors Payment,2344.96,0.00,NON COMMERCIAL SUPPLIER 
 18-11-2022,Adults,Fresh Tree Care Services,Supported Other Accommodation - Private Contractors Payment,2352.00,0.00,COMMERCIAL SUPPLIER 
 01-11-2022,Adults,Emerson Court_a,Respite Care - Private Contractors Payment,2362.50,0.00,COMMERCIAL SUPPLIER 
 18-11-2022,Adults,Clearwater Care (Hackney) Ltd - Craigdale,Supported Other Accommodation - Private Contractors Payment,2413.04,0.00,COMMERCIAL SUPPLIER 
 18-11-2022,Adults,Ebony Health Care Services Limited,Supported Other Accommodation - Private Contractors Payment,2417.68,0.00,COMMERCIAL SUPPLIER 
 18-11-2022,Adults,Clearwater Care (Hackney) Ltd - Craigdale,Supported Other Accommodation - Private Contractors Payment,2425.52,0.00,COMMERCIAL SUPPLIER 
 18-11-2022,Adults,Manor Lodge_a,Residential Placements - Private Contractors Payment,2442.86,0.00,COMMERCIAL SUPPLIER 
 07-11-2022,Adults,Bluebird Care Havering,Home Care - Private Contractors Payment,2450.00,0.00,COMMERCIAL SUPPLIER 
 07-11-2022,Adults,Bluebird Care Havering,Home Care - Private Contractors Payment,2450.00,0.00,COMMERCIAL SUPPLIER 
 18-11-2022,Adults,R G Care Ltd ,Residential Placements - Private Contractors Payment,2450.00,0.00,COMMERCIAL SUPPLIER 
 18-11-2022,Adults,R G Care Ltd ,Residential Placements - Private Contractors Payment,2450.00,0.00,COMMERCIAL SUPPLIER 
 21-11-2022,Adults,Bluebird Care Havering,Home Care - Private Contractors Payment,2450.00,0.00,COMMERCIAL SUPPLIER 
 21-11-2022,Adults,Bluebird Care Havering,Home Care - Private Contractors Payment,2450.00,0.00,COMMERCIAL SUPPLIER 
 18-11-2022,Adults,Adjuvo Care and Support Ltd,Supported Other Accommodation - Private Contractors Payment,2463.68,0.00,COMMERCIAL SUPPLIER 
 18-11-2022,Adults,Lukka Care Homes Ltd - Ravenscourt,Nursing Homes - Private Contractors Payment,2465.42,0.00,COMMERCIAL SUPPLIER 
 18-11-2022,Adults,Black Swan International Ltd - Drummonds,Residential Placements - Private Contractors Payment,2468.80,0.00,COMMERCIAL SUPPLIER 
 18-11-2022,Adults,Black Swan International Ltd - Drummonds,Residential Placements - Private Contractors Payment,2468.80,0.00,COMMERCIAL SUPPLIER 
 18-11-2022,Adults,Highfield Care Homes Ltd t/a Romford Grange Care Home,Nursing Homes - Private Contractors Payment,2472.84,0.00,COMMERCIAL SUPPLIER 
 18-11-2022,Adults,Fountains Care Centre - Bondcare,Residential Placements - Private Contractors Payment,2480.00,0.00,COMMERCIAL SUPPLIER 
 18-11-2022,Adults,Fountains Care Centre - Bondcare,Nursing Homes - Private Contractors Payment,2480.00,0.00,COMMERCIAL SUPPLIER 
 18-11-2022,Adults,Fountains Care Centre - Bondcare,Residential Placements - Private Contractors Payment,2480.00,0.00,COMMERCIAL SUPPLIER 
 18-11-2022,Adults,Fountains Care Centre - Bondcare,Residential Placements - Private Contractors Payment,2480.00,0.00,COMMERCIAL SUPPLIER 
 18-11-2022,Adults,Highfield Care Homes Ltd t/a Romford Grange Care Home,Residential Placements - Private Contractors Payment,2480.00,0.00,COMMERCIAL SUPPLIER 
 18-11-2022,Adults,Beechcourt Care Centre - Bondcare,Residential Placements - Private Contractors Payment,2480.00,0.00,COMMERCIAL SUPPLIER 
 18-11-2022,Adults,Oakley Carehomes Ltd t/a Abbey Care Home,Residential Placements - Private Contractors Payment,2480.00,0.00,COMMERCIAL SUPPLIER 
 18-11-2022,Adults,Masumin Ltd t/s Abbeleigh House,Residential Placements - Private Contractors Payment,2480.00,0.00,COMMERCIAL SUPPLIER 
 18-11-2022,Adults,Clover Cottage Ltd,Residential Placements - Private Contractors Payment,2480.00,0.00,COMMERCIAL SUPPLIER 
 18-11-2022,Adults,Clover Cottage Ltd,Residential Placements - Private Contractors Payment,2480.00,0.00,COMMERCIAL SUPPLIER 
 18-11-2022,Adults,Clover Cottage Ltd,Residential Placements - Private Contractors Payment,2480.00,0.00,COMMERCIAL SUPPLIER 
 18-11-2022,Adults,Clover Cottage Ltd,Residential Placements - Private Contractors Payment,2480.00,0.00,COMMERCIAL SUPPLIER 
 18-11-2022,Adults,Langley House,Residential Placements - Private Contractors Payment,2480.00,0.00,COMMERCIAL SUPPLIER 
 18-11-2022,Adults,Langley House,Residential Placements - Private Contractors Payment,2480.00,0.00,COMMERCIAL SUPPLIER 
 18-11-2022,Adults,Langley House,Residential Placements - Private Contractors Payment,2480.00,0.00,COMMERCIAL SUPPLIER 
 18-11-2022,Adults,Oaks Residential Home,Residential Placements - Private Contractors Payment,2480.00,0.00,COMMERCIAL SUPPLIER 
 18-11-2022,Adults,Ash Grove Residential Care Home,Residential Placements - Private Contractors Payment,2480.00,0.00,COMMERCIAL SUPPLIER 
 18-11-2022,Adults,Ash Grove Residential Care Home,Residential Placements - Private Contractors Payment,2480.00,0.00,COMMERCIAL SUPPLIER 
 18-11-2022,Adults,GCH - Hillside Nursing Home,Residential Placements - Private Contractors Payment,2480.00,0.00,COMMERCIAL SUPPLIER 
 18-11-2022,Adults,Barleycroft Care Home Ltd,Residential Placements - Private Contractors Payment,2480.00,0.00,COMMERCIAL SUPPLIER 
 18-11-2022,Adults,Barleycroft Care Home Ltd,Residential Placements - Private Contractors Payment,2480.00,0.00,COMMERCIAL SUPPLIER 
 18-11-2022,Adults,Barleycroft Care Home Ltd,Residential Placements - Private Contractors Payment,2480.00,0.00,COMMERCIAL SUPPLIER 
 18-11-2022,Adults,Pathways Care Group Ltd,Residential Placements - Private Contractors Payment,2486.16,0.00,COMMERCIAL SUPPLIER 
 18-11-2022,Adults,Affinia Healthcare Ltd_a,Supported Other Accommodation - Private Contractors Payment,2490.32,0.00,COMMERCIAL SUPPLIER 
 18-11-2022,Adults,Alpine Resources UK Ltd,Supported Other Accommodation - Private Contractors Payment,2504.24,0.00,COMMERCIAL SUPPLIER 
 18-11-2022,Adults,Runwood Homes Ltd - Kathryn Court,Residential Placements - Private Contractors Payment,2507.96,0.00,COMMERCIAL SUPPLIER 
 18-11-2022,Adults,HC-One Oval Ltd - Chaseview,Nursing Homes - Private Contractors Payment,2516.76,0.00,COMMERCIAL SUPPLIER 
 18-11-2022,Adults,Acer Healthcare Operation Ltd,Nursing Homes - Private Contractors Payment,2516.76,0.00,COMMERCIAL SUPPLIER 
 03-11-2022,Adults,Matrix SCM Ltd,Consultancy Fees,2519.44,0.00,COMMERCIAL SUPPLIER 
 18-11-2022,Adults,Ebony Health Care Services Limited,Supported Other Accommodation - Private Contractors Payment,2520.00,0.00,COMMERCIAL SUPPLIER 
 18-11-2022,Adults,Independent Community Support Ltd t/a Wingletye Lodge ,Supported Other Accommodation - Private Contractors Payment,2520.00,0.00,COMMERCIAL SUPPLIER 
 18-11-2022,Adults,Ladyville Lodge_a,Nursing Homes - Private Contractors Payment,2525.92,0.00,COMMERCIAL SUPPLIER 
 18-11-2022,Adults,Highfield Care Homes Ltd t/a Romford Grange Care Home,Residential Care Income,2527.99,0.00,COMMERCIAL SUPPLIER 
 18-11-2022,Adults,Fountains Care Centre - Bondcare,Nursing Homes - Private Contractors Payment,2528.00,0.00,COMMERCIAL SUPPLIER 
 18-11-2022,Adults,One Tree Estates Ltd t/a Ashbrook Nursing Home,Nursing Homes - Private Contractors Payment,2528.00,0.00,COMMERCIAL SUPPLIER 
 18-11-2022,Adults,Highfield Care Homes Ltd t/a Romford Grange Care Home,Nursing Homes - Private Contractors Payment,2528.00,0.00,COMMERCIAL SUPPLIER 
 18-11-2022,Adults,Highfield Care Homes Ltd t/a Romford Grange Care Home,Nursing Homes - Private Contractors Payment,2528.00,0.00,COMMERCIAL SUPPLIER 
 18-11-2022,Adults,Highfield Care Homes Ltd t/a Romford Grange Care Home,Residential Care Income,2528.00,0.00,COMMERCIAL SUPPLIER 
 18-11-2022,Adults,Highfield Care Homes Ltd t/a Romford Grange Care Home,Residential Placements - Private Contractors Payment,2528.00,0.00,COMMERCIAL SUPPLIER 
 18-11-2022,Adults,Highfield Care Homes Ltd t/a Romford Grange Care Home,Nursing Homes - Private Contractors Payment,2528.00,0.00,COMMERCIAL SUPPLIER 
 18-11-2022,Adults,Highfield Care Homes Ltd t/a Romford Grange Care Home,Nursing Homes - Private Contractors Payment,2528.00,0.00,COMMERCIAL SUPPLIER 
 18-11-2022,Adults,Lukka Care Homes Ltd - Ravenscourt,Nursing Homes - Private Contractors Payment,2528.00,0.00,COMMERCIAL SUPPLIER 
 18-11-2022,Adults,HC-One Oval Ltd - The Hornchurch Nursing Centre,Nursing Homes - Private Contractors Payment,2528.00,0.00,COMMERCIAL SUPPLIER 
 18-11-2022,Adults,HC-One Oval Ltd - The Hornchurch Nursing Centre,Nursing Homes - Private Contractors Payment,2528.00,0.00,COMMERCIAL SUPPLIER 
 18-11-2022,Adults,HC-One Oval Ltd - The Hornchurch Nursing Centre,Nursing Homes - Private Contractors Payment,2528.00,0.00,COMMERCIAL SUPPLIER 
 18-11-2022,Adults,Beechcourt Care Centre - Bondcare,Nursing Homes - Private Contractors Payment,2528.00,0.00,COMMERCIAL SUPPLIER 
 18-11-2022,Adults,Beechcourt Care Centre - Bondcare,Nursing Homes - Private Contractors Payment,2528.00,0.00,COMMERCIAL SUPPLIER 
 18-11-2022,Adults,Beechcourt Care Centre - Bondcare,Nursing Homes - Private Contractors Payment,2528.00,0.00,COMMERCIAL SUPPLIER 
 18-11-2022,Adults,Beechcourt Care Centre - Bondcare,Nursing Homes - Private Contractors Payment,2528.00,0.00,COMMERCIAL SUPPLIER 
 18-11-2022,Adults,Beechcourt Care Centre - Bondcare,Nursing Homes - Private Contractors Payment,2528.00,0.00,COMMERCIAL SUPPLIER 
 18-11-2022,Adults,Alexander Court Care Centre - Bondcare,Nursing Homes - Private Contractors Payment,2528.00,0.00,COMMERCIAL SUPPLIER 
 18-11-2022,Adults,DMP Healthcare (Heatherbrook) Ltd,Nursing Homes - Private Contractors Payment,2528.00,0.00,NON COMMERCIAL SUPPLIER 
 18-11-2022,Adults,Ladyville Lodge_a,Nursing Homes - Private Contractors Payment,2528.00,0.00,COMMERCIAL SUPPLIER 
 18-11-2022,Adults,Barleycroft Care Home Ltd,Nursing Homes - Private Contractors Payment,2528.00,0.00,COMMERCIAL SUPPLIER 
 18-11-2022,Adults,Barleycroft Care Home Ltd,Nursing Homes - Private Contractors Payment,2528.00,0.00,COMMERCIAL SUPPLIER 
 18-11-2022,Adults,Ranc Care Homes Ltd - Romford Care Centre,Nursing Homes - Private Contractors Payment,2528.00,0.00,COMMERCIAL SUPPLIER 
 29-11-2022,Adults,Havering Care Homes Ltd t/a Abbscross Nursing Home,Nursing Homes - Private Contractors Payment,2528.00,0.00,COMMERCIAL SUPPLIER 
 29-11-2022,Adults,Havering Care Homes Ltd t/a Abbscross Nursing Home,Nursing Homes - Private Contractors Payment,2528.00,0.00,COMMERCIAL SUPPLIER 
 29-11-2022,Adults,Havering Care Homes Ltd t/a Abbscross Nursing Home,Nursing Homes - Private Contractors Payment,2528.00,0.00,COMMERCIAL SUPPLIER 
 29-11-2022,Adults,Havering Care Homes Ltd t/a Abbscross Nursing Home,Nursing Homes - Private Contractors Payment,2528.00,0.00,COMMERCIAL SUPPLIER 
 29-11-2022,Adults,Havering Care Homes Ltd t/a Abbscross Nursing Home,Nursing Homes - Private Contractors Payment,2528.00,0.00,COMMERCIAL SUPPLIER 
 29-11-2022,Adults,Havering Care Homes Ltd t/a Abbscross Nursing Home,Nursing Homes - Private Contractors Payment,2528.00,0.00,COMMERCIAL SUPPLIER 
 29-11-2022,Adults,Havering Care Homes Ltd t/a Abbscross Nursing Home,Nursing Homes - Private Contractors Payment,2528.00,0.00,COMMERCIAL SUPPLIER 
 29-11-2022,Adults,Havering Care Homes Ltd t/a Abbscross Nursing Home,Nursing Homes - Private Contractors Payment,2528.00,0.00,COMMERCIAL SUPPLIER 
 18-11-2022,Adults,Highfield Care Homes Ltd t/a Romford Grange Care Home,Residential Placements - Private Contractors Payment,2530.96,0.00,COMMERCIAL SUPPLIER 
 18-11-2022,Adults,Sandstone Care Liverpool Ltd,Residential Placements - Private Contractors Payment,2540.28,0.00,COMMERCIAL SUPPLIER 
 18-11-2022,Adults,St Giles Homes Ltd T/A Forest Home,Residential Placements - Private Contractors Payment,2544.84,0.00,COMMERCIAL SUPPLIER 
 18-11-2022,Adults,Mundy House,Residential Placements - Private Contractors Payment,2559.40,0.00,COMMERCIAL SUPPLIER 
 18-11-2022,Adults,Priory Supporting Care Ltd,Residential Placements - Private Contractors Payment,2559.40,0.00,COMMERCIAL SUPPLIER 
 10-11-2022,Adults,Care-Away Ltd T/A Care Support,Home Care - Private Contractors Payment,2562.56,0.00,COMMERCIAL SUPPLIER 
 18-11-2022,Adults,Mundy House,Residential Placements - Private Contractors Payment,2579.84,0.00,COMMERCIAL SUPPLIER 
 06-11-2022,Adults,Eastway Care Ltd_a,Daycare - Private Contractors Payment,2580.00,0.00,COMMERCIAL SUPPLIER 
 06-11-2022,Adults,Eastway Care Ltd_a,Daycare - Private Contractors Payment,2580.00,0.00,COMMERCIAL SUPPLIER 
 18-11-2022,Adults,Black Swan International Ltd - Belamacanda,Residential Placements - Private Contractors Payment,2596.48,0.00,COMMERCIAL SUPPLIER 
 06-11-2022,Adults,Homestead Care Service,Home Care - Private Contractors Payment,2601.37,0.00,COMMERCIAL SUPPLIER 
 18-11-2022,Adults,Westminster Health Care Ltd Derham House,Nursing Homes - Private Contractors Payment,2606.08,0.00,COMMERCIAL SUPPLIER 
 18-11-2022,Adults,HC-One Oval Ltd - Chaseview,Nursing Homes - Private Contractors Payment,2616.00,0.00,COMMERCIAL SUPPLIER 
 04-11-2022,Adults,Florijn Care Ltd,Residential Placements - Private Contractors Payment,2621.28,0.00,COMMERCIAL SUPPLIER 
 18-11-2022,Adults,Ebony Health Care Services Limited,Supported Other Accommodation - Private Contractors Payment,2621.80,0.00,COMMERCIAL SUPPLIER 
